date,department,beneficiary,amount,summary of purpose,category,Transaction number,SAP vendor number
18.03.2024,Collection Fund,GREATER LONDON AUTHORITY,"9,289,048.83",NNDR ACCOUNT - GLA SHARE,EXTERNAL AGENCIES AND BODIES,5902627752,1000015827
18.03.2024,Children and Adults,GUYS & ST THOMAS NHS FOUNDATION TRUST,"5,529,374.28",PH 0-5 SERVICES,EXTERNAL AGENCIES AND BODIES,5902627712,1765536
14.03.2024,Collection Fund,GREATER LONDON AUTHORITY,"4,752,146.41",GLA PRECEPT,LEVIES,5902627255,1000015827
19.03.2024,Suspense,HM REVENUE & CUSTOMS,"2,933,169.34",SUSPENSE ACCOUNT (COMPANY CODE 1000),INLAND REVENUE,2103829522,1016231
17.03.2024,Housing,HILL PARTNERSHIP LTD,"2,723,314.05",CAPITAL PS (HRA),CONSTRUCTION MAIN CONTRACT -CERTIFICATED,2103839384,3000002185
19.03.2024,Suspense,HM REVENUE & CUSTOMS,"2,609,230.08",SUSPENSE ACCOUNT (COMPANY CODE 1000),INLAND REVENUE,2103829521,1016231
20.03.2024,Environment Neighbourhoods and Growth,VEOLIA ES SOUTHWARK LTD,"2,421,667.00",WASTE PFI,PFI/PPP PAYMENTS,5902628338,1000056979
07.03.2024,Environment Neighbourhoods and Growth,VEOLIA ES SOUTHWARK LTD,"2,369,684.23",WASTE PFI,PFI/PPP PAYMENTS,5902625779,1000056979
27.03.2024,Housing,KENT COUNTY COUNCIL - LASER,"2,238,533.67",HEATING ACCOUNT,GAS,5902629488,1000012926
20.03.2024,Housing,BL CW HOLDINGS PLOT K1 CO LTD,"1,772,367.00",CAPITAL PS (HRA),CONSTRUCTION MAIN CONTRACT,2103842529,3000002236
20.03.2024,Environment Neighbourhoods and Growth,GUILDMORE LTD,"1,659,314.52",CAPITAL PS (REGEN),CONSTRUCTION MAIN CONTRACT -CERTIFICATED,2103842706,3000002150
20.03.2024,Housing,EQUANS REGENERATION (APOLLO) LTD,"1,636,112.74",CAPITAL PS (HRA),CONSTRUCTION MAIN CONTRACT -CERTIFICATED,2103841630,4000449
05.03.2024,Housing,GUILDMORE LTD,"1,487,051.88",CAPITAL PS (HRA),CONSTRUCTION MAIN CONTRACT -CERTIFICATED,2103834220,3000002150
14.03.2024,Children and Adults,TEACHERS' PENSIONS,"1,460,944.86",TEACHERS PENSION MONTHLY RETURN,PAYROLL CREDITORS - TEACHERS PENSIONS & AVCS,5902627352,1000015184
11.03.2024,Housing,EQUANS REGENERATION LTD,"1,309,500.00",CAPITAL PS (HRA),CONSTRUCTION MAIN CONTRACT -CERTIFICATED,2103838457,3000002035
21.03.2024,Housing,EQUANS REGENERATION LTD,"1,188,250.00",CAPITAL PS (HRA),CONSTRUCTION MAIN CONTRACT -CERTIFICATED,2103841213,3000002035
18.03.2024,Children and Adults,GUYS & ST THOMAS NHS FOUNDATION TRUST,"1,140,149.00",5-19 PUBLIC HEALTH,EXTERNAL AGENCIES AND BODIES,5902627716,1765536
18.03.2024,Housing,HILL PARTNERSHIP LTD,"1,132,503.81",CAPITAL PS (HRA),CONSTRUCTION MAIN CONTRACT -CERTIFICATED,2103841214,3000002185
26.03.2024,Environment Neighbourhoods and Growth,BL CW HOLDINGS LTD,"1,033,710.22",CAPITAL PS (REGEN),CONSTRUCTION FEES  - EXTERNAL,5902629278,1000086680
30.03.2024,Finance,LONDON BOROUGH OF BRENT,"989,164.00",SHARED SERVICES,COMMS & COMPUTING CONTRACT CHARGES,5902629962,1000064734
28.03.2024,Governance and Assurance,MATRIX SCM LIMITED,"967,265.26",WEEKLY PAYMENTS,AGENCY STAFF,5902630133,1000089740
22.03.2024,Governance and Assurance,MATRIX SCM LIMITED,"938,617.33",WEEKLY PAYMENTS,AGENCY STAFF,5902628761,1000089740
15.03.2024,Governance and Assurance,MATRIX SCM LIMITED,"936,729.16",WEEKLY PAYMENTS,AGENCY STAFF,5902627608,1000089740
08.03.2024,Governance and Assurance,MATRIX SCM LIMITED,"905,661.58",WEEKLY PAYMENTS,AGENCY STAFF,5902626126,1000089740
21.03.2024,Children and Adults,NEILCOTT SPECIAL WORKS LTD,"845,866.74",CAPITAL PS (EDUCATION),CONSTRUCTION,2103841210,3000000770
16.03.2024,Housing,GLENMAN CORPORATION LTD,"842,594.26",CAPITAL PS (HRA),CONSTRUCTION MAIN CONTRACT -CERTIFICATED,2103839355,3000002230
14.03.2024,Collection Fund,GREATER LONDON AUTHORITY,"823,048.00",GLA CROSSRAIL BUSINESS RATE SUPPLEMENT,LEVIES,5902627256,1000015827
16.03.2024,Housing,A & E ELKINS LTD,"789,372.55",CAPITAL PS (HRA),CONSTRUCTION MAIN CONTRACT -CERTIFICATED,2103839373,4012501
27.03.2024,Finance,LONDON BOROUGH OF BRENT,"755,580.00",SHARED SERVICES,COMMS & COMPUTING CONTRACT CHARGES,5902629494,1000064734
16.03.2024,Housing,A & E ELKINS LTD,"680,408.26",CAPITAL PS (HRA),CONSTRUCTION MAIN CONTRACT -CERTIFICATED,2103839371,4012501
24.03.2024,Housing,A & E ELKINS LTD,"665,499.33",CAPITAL PS (HRA),CONSTRUCTION MAIN CONTRACT -CERTIFICATED,2103842694,4012501
24.03.2024,Housing,A & E ELKINS LTD,"644,416.15",CAPITAL PS (HRA),CONSTRUCTION MAIN CONTRACT -CERTIFICATED,2103842532,4012501
18.03.2024,Collection Fund,MINISTRY OF HOUSING COMMUNITIES & LOCAL GOVERNMENT,"619,186.00",NNDR CLG SHARE,EXTERNAL AGENCIES AND BODIES,5902627756,1000081809
28.03.2024,Housing,SPOKEMEAD MAINTENANCE LTD,"582,709.40",PAYMENTS CONTROL ACCOUNT - SPOKEMEAD,I-WORLD CONTRACTORS HOLDING ACCOUNT,5902628738,1000059211
18.03.2024,Housing,OCO LIMITED,"549,407.22",PAYMENTS CONTROL ACCOUNT - OCO,I-WORLD CONTRACTORS HOLDING ACCOUNT,5902627749,1006066
14.03.2024,Housing,BUILDTRUST LTD,"529,846.54",BUILD TRUST,I-WORLD CONTRACTORS HOLDING ACCOUNT,2103839368,3000002010
20.03.2024,Housing,HIGGINS PARTNERSHIPS,"509,206.12",CAPITAL PS (HRA),CONSTRUCTION,2103841627,4000859
15.03.2024,Housing,SMITH & BYFORD LTD,"502,140.42",SMITH AND BYFORD,I-WORLD CONTRACTORS HOLDING ACCOUNT,2103841109,3000000520
15.03.2024,Housing,GUILDMORE LTD,"492,577.26",CAPITAL PS (HRA),CONSTRUCTION MAIN CONTRACT -CERTIFICATED,2103841215,3000002150
25.03.2024,Housing,NATIONWIDE ACCOMMODATION,"454,867.40",NIGHTLY TA (NSC),EXTERNAL AGENCIES AND BODIES,5902629087,1000076112
27.03.2024,Housing,GUIDELINE LIFT SERVICES LTD,"404,265.22",GUIDELINE,I-WORLD CONTRACTORS HOLDING ACCOUNT,5902629603,1000064176
08.03.2024,Housing,EQUANS REGENERATION (APOLLO) LTD,"400,843.14",CAPITAL PS (HRA),CONSTRUCTION MAIN CONTRACT -CERTIFICATED,2103835456,4000449
06.03.2024,Housing,NATIONWIDE ACCOMMODATION,"389,269.40",NIGHTLY TA (NSC),EXTERNAL AGENCIES AND BODIES,5902625363,1000076112
16.03.2024,Governance and Assurance,ATALIAN SERVEST LTD,"380,373.82",FM SERVICES BY INTERSERVE,INTEGRATED FACILITIES MANAGEMENT CONTRACT,5902627050,1000088775
12.03.2024,Housing,KENT COUNTY COUNCIL - LASER,"327,811.10",HEATING ACCOUNT,ELECTRICITY,5902626666,1000012926
11.03.2024,Finance,IEG4 LIMITED,"325,573.00",ADMINISTRATIVE SUPPORT,SOFTWARE,5902626444,1000083899
11.03.2024,Housing,EQUANS REGENERATION LTD,"322,828.06",CAPITAL PS (HRA),CONSTRUCTION MAIN CONTRACT -CERTIFICATED,2103838494,3000002035
08.03.2024,Housing,ARJ CONSTRUCTION LTD,"309,713.65",CAPITAL PS (HRA),CONSTRUCTION MAIN CONTRACT,2103837033,3000002232
05.03.2024,Children and Adults,CHANGE GROW LIVE SERVICES LTD,"302,915.41",ADULT SM SERVICE,OTHER CONTRACTORS,5902625215,1000082721
17.03.2024,Children and Adults,CHANGE GROW LIVE SERVICES LTD,"302,915.41",ADULT SM SERVICE,OTHER CONTRACTORS,5902627171,1000082721
16.03.2024,Housing,GLENMAN CORPORATION LTD,"301,649.34",CAPITAL PS (HRA),CONSTRUCTION MAIN CONTRACT -CERTIFICATED,2103839381,3000002230
07.03.2024,Children and Adults,GOODRICH PRIMARY SCHOOL,"300,000.00",GOODRICH PRIMARY SCHOOL,SCHOOLS CAPITATION,2103835440,5001000028
25.03.2024,Children and Adults,CHANGE GROW LIVE SERVICES LTD,"288,491.92",SSMTRG,OTHER CONTRACTORS,5902628666,1000082721
12.03.2024,Housing,A & E ELKINS LTD,"285,177.48",CAPITAL PS (HRA),CONSTRUCTION,2103838505,4012501
25.03.2024,Environment Neighbourhoods and Growth,QUADRON SERVICES LIMITED,"271,714.94",CLIENT SERV(GRNS MAIN),OTHER CONTRACTORS,5902628913,1000066528
28.03.2024,Environment Neighbourhoods and Growth,QUADRON SERVICES LIMITED,"271,714.94",CLIENT SERV(GRNS MAIN),OTHER CONTRACTORS,5902630019,1000066528
25.03.2024,Housing,SALTASH ENTERPRISES LTD,"269,166.04",CAPITAL PS (HRA),CONSTRUCTION MAIN CONTRACT -CERTIFICATED,2103844443,4013605
22.03.2024,Housing,BCS (ELECTRICAL & BUILDING SERVICES LTD),"265,344.95",BCS,I-WORLD CONTRACTORS HOLDING ACCOUNT,5902628692,1000062321
15.03.2024,Housing,ST MUNGOS,"262,333.50",RAPID REHOUSING,PROFESSIONAL FEES,5902627596,1000017600
23.03.2024,Environment Neighbourhoods and Growth,BOUYGUES (UK) LTD,"262,133.97",CAPITAL PS (REGEN),CONSTRUCTION MAIN CONTRACT -CERTIFICATED,2103842871,3000002179
28.03.2024,Housing,SILK & MACKMAN SERVICES LTD,"251,653.11",PAYMENTS CONTROL ACCOUNT SILK & MACKMAN,I-WORLD CONTRACTORS HOLDING ACCOUNT,5902630242,1000035282
14.03.2024,Corporate,4 FUTURES PHASE 1 LIMITED,"250,642.05",ONGOING SCHOOLS PFI COSTS,PFI/PPP PAYMENTS,5902627253,1000061400
21.03.2024,Children and Adults,CITY OF LONDON CORPORATION,"248,488.01",SEXUAL HEALTH - STI,MEDICAL / HEALTH & SAFETY SERVICES,5902627764,1000052061
25.03.2024,Environment Neighbourhoods and Growth,BLAKEDOWN LANDSCAPES,"246,849.68",CAPITAL PS (REGEN),CONSTRUCTION MAIN CONTRACT,2103844452,4005399
14.03.2024,Corporate,4 FUTURES PHASE 2 LTD,"235,804.20",ONGOING SCHOOLS PFI COSTS,PFI/PPP PAYMENTS,5902627254,1000068567
14.03.2024,Corporate,4 FUTURES PHASE 2 LTD,"235,804.20",ONGOING SCHOOLS PFI COSTS,PFI/PPP PAYMENTS,5902627254,1000068567
27.03.2024,Housing,VEOLIA ES (UK)LTD,"231,579.40",HEATING ACCOUNT,GAS,5902629690,1824835
28.03.2024,Children and Adults,AGE UK  LEWISHAM & SOUTHWARK,"229,701.48",OLDER PEOPLES HUBS,EXTERNAL AGENCIES AND BODIES,5902630462,1000066751
28.03.2024,Housing,VEOLIA ES SOUTHWARK LTD,"229,386.28",HEATING ACCOUNT,GAS,5902630367,1000056979
28.03.2024,Housing,WILLOW ESTATE AGENTS (LONDON) LTD,"209,930.84",NIGHTLY TA (NSC),EXTERNAL AGENCIES AND BODIES,5902629895,1000060607
05.03.2024,Housing,KIND & COMPANY (BUILDERS) LTD,"208,711.00",CAPITAL PS (HRA),CONSTRUCTION SITE COSTS,2103834301,3000001608
25.03.2024,Housing,GUIDELINE LIFT SERVICES LTD,"204,229.92",GUIDELINE,I-WORLD CONTRACTORS HOLDING ACCOUNT,5902629028,1000064176
13.03.2024,Housing,SILK & MACKMAN SERVICES LTD,"203,680.00",PAYMENTS CONTROL ACCOUNT SILK & MACKMAN,I-WORLD CONTRACTORS HOLDING ACCOUNT,5902627082,1000035282
21.03.2024,Environment Neighbourhoods and Growth,F M CONWAY LTD,"200,000.00",CAPITAL PS (REGEN),CONSTRUCTION FEES,5902628513,1000002412
14.03.2024,Housing,TKC HOUSING LIMITED,"199,973.27",PSL PLACEMENTS,EXTERNAL AGENCIES AND BODIES,5902627278,1000088199
14.03.2024,Housing,SPOKEMEAD MAINTENANCE LTD,"196,304.17",PAYMENTS CONTROL ACCOUNT - SPOKEMEAD,I-WORLD CONTRACTORS HOLDING ACCOUNT,5902627166,1000059211
23.03.2024,Housing,HILL PARTNERSHIP LTD,"194,157.47",CAPITAL PS (HRA),CONSTRUCTION MAIN CONTRACT -CERTIFICATED,2103842528,3000002185
22.03.2024,Housing,SMITH & BYFORD LTD,"192,766.56",CAPITAL PS (HRA),CONSTRUCTION,2103844393,3000000520
14.03.2024,Housing,DUCTCLEAN (UK) LTD,"192,344.83",DUCTCLEAN,I-WORLD CONTRACTORS HOLDING ACCOUNT,2103839388,3000001635
18.03.2024,Housing,NIBLOCK (BUILDERS) LTD,"190,722.65",CAPITAL PS (HRA),CONSTRUCTION,2103841219,3000000235
19.03.2024,Housing,PRB ESTATES LTD,"189,897.29",PRBE,I-WORLD CONTRACTORS HOLDING ACCOUNT,2103841532,3000001691
05.03.2024,Children and Adults,GROUNDWORK LONDON,"185,293.00",THE NEST 255 RYELANE,EXTERNAL AGENCIES AND BODIES,5902625162,1897585
22.03.2024,DSO,PROPERTY FACILITIES GROUP PLC,"180,163.70",SR COMMUNAL - DELIVERY TEAM,OTHER CONTRACTORS,2103843326,3000001420
14.03.2024,Housing,EQUANS REGENERATION LTD,"177,731.18",CAPITAL PS (HRA),CONSTRUCTION MAIN CONTRACT -CERTIFICATED,2103839382,3000002035
18.03.2024,Housing,A & E ELKINS LTD,"177,004.12",A&E ELKINS,I-WORLD CONTRACTORS HOLDING ACCOUNT,2103841518,4012501
20.03.2024,Housing,BL CW HOLDINGS PLOT K1 CO LTD,"173,609.49",CAPITAL PS (HRA),CONSTRUCTION MAIN CONTRACT,2103841635,3000002236
15.03.2024,Housing,A & E ELKINS LTD,"172,348.80",CAPITAL PS (HRA),CONSTRUCTION MAIN CONTRACT -CERTIFICATED,2103841104,4012501
21.03.2024,DSO,BCS (ELECTRICAL & BUILDING) LTD,"171,203.47",SR - VOIDS TEAM,OTHER CONTRACTORS,2103843264,3000001471
31.03.2024,Children and Adults,ST MUNGOS,"167,929.00",S75 SUPHSG SCH LBS LEAD,EXTERNAL AGENCIES AND BODIES,5902629680,1000017600
11.03.2024,Environment Neighbourhoods and Growth,RENAISI LTD,"166,667.00",SOUTHWARK PIONEER FUND,EXTERNAL AGENCIES AND BODIES,5902626325,1000022051
24.03.2024,Housing,SALTASH ENTERPRISES LTD,"165,486.65",CAPITAL PS (HRA),CONSTRUCTION MAIN CONTRACT -CERTIFICATED,2103844387,4013605
12.03.2024,Environment Neighbourhoods and Growth,F M CONWAY LTD,"164,551.33",CAPITAL PS (LEISURE),CONSTRUCTION FEES  - EXTERNAL,2103838525,4001384
13.03.2024,Environment Neighbourhoods and Growth,REFUGE,"164,060.25",VIOLENCE AGAINST WOMEN & GIRLS,OTHER CONTRACTORS,5902627004,1000034825
13.03.2024,Environment Neighbourhoods and Growth,REFUGE,"164,060.25",VIOLENCE AGAINST WOMEN & GIRLS,OTHER CONTRACTORS,5902627018,1000034825
14.03.2024,Environment Neighbourhoods and Growth,F M CONWAY LTD,"163,733.03",HIGHWAY MAINTENANCE OVERHEADS,HIGHWAYS TERM CONTRACT,2103839380,4001384
29.03.2024,Housing,NIBLOCK (BUILDERS) LTD,"163,409.93",CAPITAL PS (HRA),CONSTRUCTION,2103844392,3000000235
22.03.2024,Housing,ZFA ACCOMMODATION LTD,"162,759.44",NIGHTLY TA (NSC),EXTERNAL AGENCIES AND BODIES,5902628911,1000082620
04.03.2024,Housing,OCO LIMITED,"161,372.83",PAYMENTS CONTROL ACCOUNT - OCO,I-WORLD CONTRACTORS HOLDING ACCOUNT,5902625009,1006066
21.03.2024,Housing,A & E ELKINS LTD,"160,021.85",CAPITAL PS (HRA),CONSTRUCTION,2103841420,4012501
20.03.2024,Environment Neighbourhoods and Growth,KENT COUNTY COUNCIL - LASER,"158,171.36",STREET LIGHTING REACTIVE,ELECTRICITY,5902628246,1000012926
20.03.2024,Children and Adults,STANDAGE & CO LTD,"157,823.26",CAPITAL PS (SOC SERV),CONSTRUCTION MAIN CONTRACT -CERTIFICATED,2103842693,4002817
14.03.2024,Environment Neighbourhoods and Growth,F M CONWAY LTD,"157,525.47",CAPITAL PS (LEISURE),CONSTR'N SUB CONTRACT - NON CERTIFICATED,2103839376,4001384
28.03.2024,Housing,CRS DRAWING AND DESIGN LTD,"156,560.00",CAPITAL PS (HRA),CONSTRUCTION,5902630125,1000085835
18.03.2024,Housing,LETTING INTERNATIONAL LTD,"155,525.00",NIGHTLY TA (NSC),EXTERNAL AGENCIES AND BODIES,5902627730,1000070102
10.03.2024,Housing,A & E ELKINS LTD,"153,841.66",CAPITAL PS (HRA),CONSTRUCTION MAIN CONTRACT -CERTIFICATED,2103835311,4012501
27.03.2024,Housing,A & E ELKINS LTD,"153,841.66",CAPITAL PS (HRA),CONSTRUCTION MAIN CONTRACT -CERTIFICATED,2103845110,4012501
13.03.2024,Corporate,GREATER LONDON AUTHORITY,"152,354.90",LONDON PENSION FUND,LEVIES,5902626958,1000015827
07.03.2024,Children and Adults,TUKE SCHOOL,"151,820.00",INVEST TO SAVE DSG,CONSULTANTS SERVICES,2103835434,5001000097
05.03.2024,Housing,ZFA ACCOMMODATION LTD,"151,096.31",PSL PLACEMENTS,EXTERNAL AGENCIES AND BODIES,5902625148,1000082620
20.03.2024,Housing,EQUANS REGENERATION (APOLLO) LTD,"150,769.39",CAPITAL PS (HRA),CONSTRUCTION MAIN CONTRACT -CERTIFICATED,2103841632,4000449
13.03.2024,Housing,CRS DRAWING AND DESIGN LTD,"150,000.00",CAPITAL PS (HRA),CONSTRUCTION,5902626880,1000085835
26.03.2024,Children and Adults,TREASURE HOUSE (LONDON) CIC,"149,717.02",NMSS/ INDEP SPECIAL,STATEMENTED FEES,2103845074,1000061163
17.03.2024,Housing,KIND & COMPANY (BUILDERS) LTD,"147,828.00",CAPITAL PS (HRA),CONSTRUCTION SITE COSTS,2103841218,3000001608
28.03.2024,Housing,THEORI HOUSING MANAGEMENT SERVICES,"147,666.26",PSL PLACEMENTS,EXTERNAL AGENCIES AND BODIES,5902629978,1000079264
15.03.2024,Housing,BCS (ELECTRICAL & BUILDING SERVICES LTD),"146,222.29",BCS,I-WORLD CONTRACTORS HOLDING ACCOUNT,5902627161,1000062321
22.03.2024,Housing,ZFA ACCOMMODATION LTD,"141,740.56",NIGHTLY TA (NSC),EXTERNAL AGENCIES AND BODIES,5902628911,1000082620
04.03.2024,Housing,SMITH & BYFORD LTD,"140,141.00",SMITH AND BYFORD,I-WORLD CONTRACTORS HOLDING ACCOUNT,5902625010,11212119
19.03.2024,Children and Adults,HIGHSHORE SCHOOL,"139,475.00",LBS SPECIAL AND HOSP SCHLS,SCHOOLS CAPITATION,2103842572,5001000046
22.03.2024,Children and Adults,HIGHSHORE SCHOOL,"139,475.00",LBS SPECIAL AND HOSP SCHLS,SCHOOLS CAPITATION,2103843319,5001000046
28.03.2024,Environment Neighbourhoods and Growth,WARWICK LANDSCAPING LTD,"137,464.72",CAPITAL PS (LEISURE),CONSTRUCTION MAIN CONTRACT -CERTIFICATED,2103849106,3000001705
28.03.2024,Housing,MX ESTATES LTD,"136,814.91",NIGHTLY TA (NSC),EXTERNAL AGENCIES AND BODIES,5902629990,1000083639
18.03.2024,Children and Adults,CITY OF LONDON CORPORATION,"136,223.23",SEXUAL HEALTH - STI,MEDICAL / HEALTH & SAFETY SERVICES,5902627760,1000052061
18.03.2024,Environment Neighbourhoods and Growth,F M CONWAY LTD,"136,150.45",CAPITAL PS (LEISURE),CONSTRUCTION FEES - EMPLOYERS AGENT,2103840998,4001384
01.03.2024,Governance and Assurance,ATALIAN SERVEST LTD,"135,726.85",FM SERVICES BY INTERSERVE,BUILDING R&M,5902624698,1000088775
18.03.2024,Children and Adults,BREATHE ARTS HEALTH RESEARCH,"135,628.00",FAMILY HUBS GRANT,EXTERNAL AGENCIES AND BODIES,5902627762,1000085139
19.03.2024,Children and Adults,ST MICHAELS CATHOLIC COLLEGE,"135,561.91",AC & FREE - MSTREAM,STATEMENTED FEES,2103841536,1000071000
28.03.2024,DSO,SANDERSONS BUILDING SERVICES LTD,"135,088.55",SR - VOIDS TEAM,OTHER CONTRACTORS,2103846578,3000002065
21.03.2024,Suspense,LONDON MUTUAL CREDIT UNION,"134,697.22",SUSPENSE ACCOUNT (COMPANY CODE 1000),PAYROLL - 3RD PARTY DEDUCTIONS,2103843235,1000015860
21.03.2024,Environment Neighbourhoods and Growth,GUILDMORE LTD,"134,446.42",CAPITAL PS (REGEN),CONSTRUCTION MAIN CONTRACT -CERTIFICATED,2103842872,3000002150
18.03.2024,Housing,ZFA ACCOMMODATION LTD,"133,848.70",PSL PLACEMENTS,EXTERNAL AGENCIES AND BODIES,5902627775,1000082620
22.03.2024,Housing,SMITH & BYFORD LTD,"133,335.88",CAPITAL PS (HRA),CONSTRUCTION,2103844390,3000000520
26.03.2024,Housing,SALTASH ENTERPRISES LTD,"131,606.69",CAPITAL PS (HRA),CONSTRUCTION MAIN CONTRACT -CERTIFICATED,2103844780,4013605
21.03.2024,Finance,COVERED MARKETS LTD,"128,750.00",SANDGATE ST INDUSTRIAL ESTATE,RENTS,2103842945,3000134
07.03.2024,Children and Adults,HATS GROUP LTD,"128,550.16",SCH TRANS � TRAVEL,CAB FARES,5902625770,1000042743
26.03.2024,Housing,ASPEN BUILD (EAST ANGLIA) LTD,"126,779.51",CAPITAL PS (HRA),CONSTRUCTION MAIN CONTRACT -CERTIFICATED,2103845101,3000002075
25.03.2024,Children and Adults,CHANGE GROW LIVE SERVICES LTD,"126,094.66",ROUGH SLEEPERS SM,OTHER CONTRACTORS,5902628552,1000082721
26.03.2024,Children and Adults,THE LONDON NAUTICAL SCHOOL,"125,472.03",OTHER LA MAINSTREAM,STATEMENTED FEES,2103845071,1000053815
30.03.2024,Housing,CRS DRAWING AND DESIGN LTD,"124,720.00",CAPITAL PS (HRA),CONSTRUCTION,5902630126,1000085835
28.03.2024,DSO,ARMINA LTD,"124,265.06",SR TEMPORARY ACCOMMODATION DD,OTHER CONTRACTORS,2103846576,3000002121
06.03.2024,DSO,BCS (ELECTRICAL & BUILDING) LTD,"124,258.79",SR - VOIDS TEAM,OTHER CONTRACTORS,2103834366,3000001471
07.03.2024,Children and Adults,COUNTRY COURT CARE HOMES 2 LTD,"119,774.19",RESIDENTIAL CARE CHARTER,EXTERNAL AGENCIES AND BODIES,5902625693,1000080172
13.03.2024,Housing,DUCTCLEAN (UK) LTD,"119,521.18",DUCTCLEAN,I-WORLD CONTRACTORS HOLDING ACCOUNT,2103839366,3000001635
06.03.2024,DSO,ARMINA LTD,"116,483.83",SR TEMPORARY ACCOMMODATION DD,OTHER CONTRACTORS,2103834368,3000002121
25.03.2024,Children and Adults,MIHOMECARE LTD,"115,920.00",REABLEMENT CONTRACT,HOMECARE - IC,5902628647,1000042594
13.03.2024,Housing,PROPERTY FACILITIES GROUP PLC,"115,000.00",PROPERTY FACILITIES GROUP,I-WORLD CONTRACTORS HOLDING ACCOUNT,2103839358,3000001420
31.03.2024,Housing,EQUANS REGENERATION LTD,"113,993.88",CAPITAL PS (HRA),CONSTRUCTION MAIN CONTRACT -CERTIFICATED,2103844789,3000002035
13.03.2024,Environment Neighbourhoods and Growth,N. MCKECHNIE & CO LTD,"112,002.00",LEISURE INSOURCING MOBILISATION COST,BUILDING R&M,5902627408,1000090373
14.03.2024,Environment Neighbourhoods and Growth,N. MCKECHNIE & CO LTD,"112,002.00",LEISURE INSOURCING MOBILISATION COST,BUILDING R&M,5902627444,1000090373
19.03.2024,Housing,BRIDGEWATER ROOFING CONTRACTORS LTD,"111,452.00",A&E ELKINS,I-WORLD CONTRACTORS HOLDING ACCOUNT,2103841528,3000001482
23.03.2024,Children and Adults,NHS SOUTH EAST LONDON CCG,"110,000.00",HEALTH CHECKS CONTRACTS,EXTERNAL AGENCIES AND BODIES,5902628033,1000085592
21.03.2024,Children and Adults,NHS SOUTH EAST LONDON CCG,"110,000.00",HEALTH CHECKS CONTRACTS,EXTERNAL AGENCIES AND BODIES,5902628482,1000085592
14.03.2024,Housing,STAR PEOPLE LTD,"108,574.40",NIGHTLY TA (NSC),EXTERNAL AGENCIES AND BODIES,5902627193,1000088790
27.03.2024,Environment Neighbourhoods and Growth,TRANSPORT FOR LONDON,"106,249.52",TRAFFIC SIGNALS,EXTERNAL AGENCIES AND BODIES,5902629411,1000023986
06.03.2024,DSO,SANDERSONS BUILDING SERVICES LTD,"106,138.59",SR - VOIDS TEAM,OTHER CONTRACTORS,2103834367,3000002065
05.03.2024,Children and Adults,GROUNDWORK LONDON,"106,000.00",THE NEST 255 RYELANE,EXTERNAL AGENCIES AND BODIES,5902625162,1897585
11.03.2024,Environment Neighbourhoods and Growth,GLENMAN CORPORATION LTD,"105,321.60",CAPITAL PS (REGEN),CONSTRUCTION MAIN CONTRACT -CERTIFICATED,2103838456,3000002230
25.03.2024,Environment Neighbourhoods and Growth,F M CONWAY LTD,"104,547.92",HIGHWAY MAINTENANCE OVERHEADS,HIGHWAYS TERM CONTRACT,2103844447,4001384
10.03.2024,Housing,APCOA PARKING (UK) LTD,"104,406.14",PARKING CONTROL,OTHER CONTRACTORS,5902626108,1718645
11.03.2024,Environment Neighbourhoods and Growth,GLENMAN CORPORATION LTD,"103,539.94",CAPITAL PS (REGEN),CONSTRUCTION MAIN CONTRACT -CERTIFICATED,2103838455,3000002230
08.03.2024,Housing,STACK LONDON LTD,"102,799.90",CAPITAL PS (HRA),CONSTRUCTION MAIN CONTRACT -CERTIFICATED,2103835476,3000002216
18.03.2024,Housing,ARCHITECTURAL DECORATORS LTD,"102,032.15",CAPITAL PS (HRA),CONSTRUCTION MAIN CONTRACT -CERTIFICATED,2103841517,3000001065
22.03.2024,Housing,PRB ESTATES LTD,"101,365.78",PRBE,I-WORLD CONTRACTORS HOLDING ACCOUNT,2103844000,3000001691
22.03.2024,DSO,CRATUS BUILDING SERVICES LIMITED,"100,683.76",SR - VOIDS TEAM,OTHER CONTRACTORS,2103843325,3000001055
18.03.2024,Children and Adults,GUYS & ST THOMAS NHS FOUNDATION TRUST,"99,529.72",PH 0-5 SERVICES,EXTERNAL AGENCIES AND BODIES,5902627712,1765536
16.03.2024,Children and Adults,AFRICA ADVOCACY FOUNDATION,"99,000.00",SEXUAL HEALTH - STI,EXTERNAL AGENCIES AND BODIES,5902626903,1000036963
21.03.2024,DSO,GC CONSTRUCT LTD,"96,191.54",SR - VOIDS TEAM,OTHER CONTRACTORS,2103842867,3000002106
18.03.2024,Environment Neighbourhoods and Growth,F M CONWAY LTD,"95,712.03",CAPITAL PS (LEISURE),CONSTRUCTION FEES - EMPLOYERS AGENT,2103840997,4001384
11.03.2024,Environment Neighbourhoods and Growth,ALLPAY LTD,"95,000.00",NO RECOURSE TO PUBLIC FUNDS,OTHER PAYMENTS FOR CLIENTS,5902626366,1000078859
22.03.2024,Housing,SILK & MACKMAN SERVICES LTD,"94,160.00",TA HOSTELS,BUILDING R&M,5902628903,1000035282
15.03.2024,Environment Neighbourhoods and Growth,SSCL MPS POLICE SERVICE,"93,724.00",NIGHT TIME ECONOMY,PROFESSIONAL FEES,5902627619,1000035048
15.03.2024,Children and Adults,CARETRADE CHARITABLE TRUST,"91,860.00",SPECIALIST POST-16,STATEMENTED FEES,2103841202,1000067322
04.03.2024,Children and Adults,THE CHARTER SCHOOL EDUCATIONAL TRUST,"91,226.98",AC & FREE - MSTREAM,STATEMENTED FEES,2103834161,1000064975
19.03.2024,Children and Adults,CHERRY GARDEN SCHOOL,"91,183.00",LBS SPECIAL AND HOSP SCHLS,SCHOOLS CAPITATION,2103842576,5001000020
22.03.2024,Children and Adults,CHERRY GARDEN SCHOOL,"91,183.00",LBS SPECIAL AND HOSP SCHLS,SCHOOLS CAPITATION,2103843323,5001000020
22.03.2024,Housing,NATIONWIDE ACCOMMODATION,"91,109.70",PSL PLACEMENTS,EXTERNAL AGENCIES AND BODIES,5902628884,1000076112
20.03.2024,Housing,FINEFAIR LTD,"90,589.40",PSL PLACEMENTS,EXTERNAL AGENCIES AND BODIES,5902628256,1000075570
19.03.2024,Children and Adults,BEORMUND PRIMARY SCHOOL,"90,085.00",LBS SPECIAL AND HOSP SCHLS,SCHOOLS CAPITATION,2103842574,5001000008
22.03.2024,Children and Adults,BEORMUND PRIMARY SCHOOL,"90,085.00",LBS SPECIAL AND HOSP SCHLS,SCHOOLS CAPITATION,2103843321,5001000008
26.03.2024,Governance and Assurance,ATALIAN SERVEST LTD,"89,329.84",FM SERVICES BY INTERSERVE,BUILDING R&M,5902629316,1000088775
27.03.2024,Environment Neighbourhoods and Growth,CONSTELLIA PUBLIC LIMITED,"88,333.82",CAPITAL PS (LEISURE),CONSTRUCTION FEES,5902629549,1000088137
06.03.2024,DSO,CRATUS BUILDING SERVICES LIMITED,"88,044.53",SR - VOIDS TEAM,OTHER CONTRACTORS,2103834361,3000001055
15.03.2024,Housing,ST MUNGOS,"87,444.50",RAPID REHOUSING,PROFESSIONAL FEES,5902627595,1000017600
13.03.2024,Governance and Assurance,CORPORATE DOCUMENT SERVICES LTD,"87,442.78",REPAIR AND MAINTENANCE SERVICES,PRINTING,5902627083,11324274
12.03.2024,Children and Adults,CHANGE GROW LIVE SERVICES LTD,"86,834.00",ROUGH SLEEPERS SM,OTHER CONTRACTORS,5902626686,1000082721
16.03.2024,Housing,BONDS BUILDERS AND CONTRACTORS LTD,"85,903.27",CAPITAL PS (HRA),CONSTRUCTION MAIN CONTRACT -CERTIFICATED,2103841216,3000002137
12.03.2024,Housing,A & E ELKINS LTD,"85,322.47",CAPITAL PS (HRA),CONSTRUCTION,2103838506,4012501
13.03.2024,Housing,SITTARA LTD,"84,812.86",NIGHTLY TA (NSC),EXTERNAL AGENCIES AND BODIES,5902627110,1000080857
21.03.2024,Children and Adults,ST MUNGOS,"84,583.25",S75 SUPHSG SCH LBS LEAD,EXTERNAL AGENCIES AND BODIES,5902628445,1000017600
18.03.2024,Children and Adults,LINDEN LODGE SCHOOL,"84,462.00",OTHER LA SPECIAL,STATEMENTED FEES,2103841244,1000070880
26.03.2024,Housing,FRANKLYN SHAW ASSOCIATES LTD,"83,486.13",FRANKLIN SHAW ASSOCIATES,I-WORLD CONTRACTORS HOLDING ACCOUNT,2103844787,3000001465
28.03.2024,Children and Adults,GIMS CARE SOLUTION LIMITED,"82,535.00",CHILDREN�S RESID,RESIDENTIAL CARE,2103846604,1000090263
10.03.2024,Children and Adults,ALEXANDRA ROSE CHARITY,"80,750.00",HEALTHY WEIGHT,EXTERNAL AGENCIES AND BODIES,5902625887,1000089616
18.03.2024,Children and Adults,ALEXANDRA ROSE CHARITY,"80,750.00",HEALTHY WEIGHT,EXTERNAL AGENCIES AND BODIES,5902627788,1000089616
26.03.2024,Children and Adults,LAMBETH COLLEGE,"79,690.18",FURTHER EDUCATION,STATEMENTED FEES,2103845070,1810111
14.03.2024,Housing,PROPERTYPLACEBOOK LTD,"79,540.70",NIGHTLY TA (NSC),EXTERNAL AGENCIES AND BODIES,5902627252,1000077817
13.03.2024,Environment Neighbourhoods and Growth,STONEGROVE LIMITED,"79,533.55",CAPITAL PS (REGEN),CONSTRUCTION MAIN CONTRACT,2103839360,3000001525
06.03.2024,DSO,PROPERTY FACILITIES GROUP PLC,"79,418.50",SR COMMUNAL - DELIVERY TEAM,OTHER CONTRACTORS,2103835294,3000001420
17.03.2024,Housing,BUGLER DEVELOPMENTS LIMITED,"77,959.95",CAPITAL PS (HRA),CONSTRUCTION MAIN CONTRACT -CERTIFICATED,2103841212,3000002217
20.03.2024,Children and Adults,FUTURE MEN,"77,875.00",FAMILY HUBS GRANT,EXTERNAL AGENCIES AND BODIES,5902628268,1000046010
19.03.2024,Environment Neighbourhoods and Growth,TYCO INTEGRATED FIRE & SECURITY,"77,868.00",TOWN CENTRE CCTV,TELEPHONES (LAND LINES),5902627961,1000077948
19.03.2024,Housing,A & E ELKINS LTD,"77,355.58",CAPITAL PS (HRA),CONSTRUCTION MAIN CONTRACT -CERTIFICATED,2103841535,4012501
27.03.2024,Environment Neighbourhoods and Growth,F M CONWAY LTD,"77,292.92",CAPITAL PS (LEISURE),CONSTRUCTION,2103845113,4001384
25.03.2024,Environment Neighbourhoods and Growth,F M CONWAY LTD,"77,207.89",HWAY MINOR WKS NON PRINC RD,HIGHWAYS TERM CONTRACT,2103844448,4001384
06.03.2024,DSO,CRATUS BUILDING SERVICES LIMITED,"77,141.36",SR - VOIDS TEAM,OTHER CONTRACTORS,2103834362,3000001055
08.03.2024,Children and Adults,SHARED INTELLIGENCE LTD,"76,189.00",SEXUAL HEALTH - STI,EXTERNAL AGENCIES AND BODIES,5902626044,1000027412
06.03.2024,DSO,BCS (ELECTRICAL & BUILDING) LTD,"75,272.73",SR - VOIDS TEAM,OTHER CONTRACTORS,2103834360,3000001471
08.03.2024,Children and Adults,TURNING POINT LTD,"74,250.00",SEXUAL HEALTH - STI,EXTERNAL AGENCIES AND BODIES,5902626021,1000040642
12.03.2024,Governance and Assurance,ATALIAN SERVEST LTD,"74,194.53",FM SERVICES BY INTERSERVE,BUILDING R&M,5902626742,1000088775
19.03.2024,Children and Adults,HAYMERLE SCHOOL,"73,009.00",LBS SPECIAL AND HOSP SCHLS,SCHOOLS CAPITATION,2103842573,5001000045
22.03.2024,Children and Adults,HAYMERLE SCHOOL,"73,009.00",LBS SPECIAL AND HOSP SCHLS,SCHOOLS CAPITATION,2103843320,5001000045
14.03.2024,Housing,BUGLER DEVELOPMENTS LIMITED,"72,971.33",CAPITAL PS (HRA),CONSTRUCTION MAIN CONTRACT -CERTIFICATED,2103839369,3000002217
04.03.2024,Children and Adults,THE CHARTER SCHOOL EDUCATIONAL TRUST,"72,352.54",AC & FREE - MSTREAM,STATEMENTED FEES,2103834160,1000064975
28.03.2024,Children and Adults,ALLPAY LTD (APPOINTEESHIPS - ADULTS,"72,000.00",APPOINTEESHIPS,EXTERNAL AGENCIES AND BODIES,2103849141,1000079890
27.03.2024,Housing,DENHAN PROPERTY SERVICES LTD,"71,828.23",PSL PLACEMENTS,EXTERNAL AGENCIES AND BODIES,5902629446,1000082464
19.03.2024,Corporate,HM REVENUE & CUSTOMS,"70,979.49",APPRENTICESHIP LEVY,APPRENTICESHIP LEVY,2103829540,1016231
31.03.2024,Environment Neighbourhoods and Growth,F M CONWAY LTD,"70,206.53",HWAY MINOR WKS NON PRINC RD,HIGHWAYS TERM CONTRACT,2103844449,4001384
12.03.2024,Children and Adults,THE PUBLIC SERVICE CONSULTANTS LTD,"70,000.00",EXTERNALLY FUNDED PROJECTS,CONSULTANTS SERVICES,5902626642,1000090834
28.03.2024,Housing,NORBURY PROPERTY SERVICES (LONDON) LTD,"68,746.70",NIGHTLY TA (NSC),EXTERNAL AGENCIES AND BODIES,5902630114,1000075566
26.03.2024,Children and Adults,LANSDOWNE SCHOOL,"68,123.57",OTHER LA SPECIAL,STATEMENTED FEES,2103845077,1000073368
03.03.2024,Environment Neighbourhoods and Growth,F M CONWAY LTD,"68,046.33",CAPITAL PS (LEISURE),CONSTRUCTION FEES - EMPLOYERS AGENT,2103832721,4001384
21.03.2024,DSO,BCS (ELECTRICAL & BUILDING) LTD,"68,003.39",SR - VOIDS TEAM,OTHER CONTRACTORS,2103843255,3000001471
04.03.2024,Children and Adults,TREASURE HOUSE (LONDON) CIC,"67,667.67",NMSS/ INDEP SPECIAL,STATEMENTED FEES,2103834183,1000061163
04.03.2024,Housing,IDEAL QUARTERS LTD,"67,446.37",PSL PLACEMENTS,EXTERNAL AGENCIES AND BODIES,5902624974,1000079241
29.03.2024,Children and Adults,REDS10 (UK) LTD,"66,839.56",CAPITAL PS (EDUCATION),CONSTRUCTION,2103849107,3000001930
28.03.2024,Children and Adults,BLAK DIAMOND SOCIAL CARE LTD,"66,769.29",SEMI-IND LAC 16-17,EXTERNAL AGENCIES AND BODIES,2103847488,1000090161
04.03.2024,Children and Adults,THE CHARTER SCHOOL EDUCATIONAL TRUST,"66,308.90",AC & FREE - MSTREAM,STATEMENTED FEES,2103834162,1000064975
26.03.2024,Governance and Assurance,ATALIAN SERVEST LTD,"66,259.80",FM SERVICES BY INTERSERVE,BUILDING R&M,5902629317,1000088775
06.03.2024,DSO,GC CONSTRUCT LTD,"66,034.56",SR - VOIDS TEAM,OTHER CONTRACTORS,2103834358,3000002106
07.03.2024,Children and Adults,GIMS CARE SOLUTION LIMITED,"66,028.00",CHILDREN�S RESID,RESIDENTIAL CARE,2103835342,1000090263
20.03.2024,Environment Neighbourhoods and Growth,ST MUNGOS,"65,530.00",MH ST. MUNGO'S,OTHER CONTRACTORS,5902628305,1000017600
28.03.2024,Housing,GEOFFREY OSBORNE LIMITED,"65,492.82",CAPITAL PS (HRA),CONSTRUCTION MAIN CONTRACT -CERTIFICATED,2103849116,3000000753
26.03.2024,Housing,NATIONWIDE ACCOMMODATION,"64,472.00",NIGHTLY TA (NSC),EXTERNAL AGENCIES AND BODIES,5902629383,1000076112
28.03.2024,Children and Adults,OAKLEY HOUSE (KENT) LIMITED,"63,483.57",CHILDREN�S RESID,RESIDENTIAL CARE,2103846617,1000090039
22.03.2024,Children and Adults,NHS SOUTH EAST LONDON CCG,"63,197.82",HEALTH INTELLIGENCE,MISCELLANEOUS RECHARGES,5902628543,1000085592
11.03.2024,Housing,NATIONWIDE ACCOMMODATION,"62,235.00",NIGHTLY TA (NSC),EXTERNAL AGENCIES AND BODIES,5902626376,1000076112
14.03.2024,Housing,MX ESTATES LTD,"62,106.66",PSL PLACEMENTS,EXTERNAL AGENCIES AND BODIES,5902627466,1000083639
28.03.2024,Children and Adults,AEGIS 24/7 LTD,"61,964.35",CHILDREN�S RESID,RESIDENTIAL CARE,2103846630,1000089533
28.03.2024,Housing,HOMES 2 LET UK LTD,"61,415.60",NIGHTLY TA (NSC),EXTERNAL AGENCIES AND BODIES,5902630380,1000079868
21.03.2024,Children and Adults,SOUTHWARK INCLUSIVE LEARNING SERVICE,"61,026.25",AP SILS,SCHOOLS CAPITATION,2103843225,5001000105
11.03.2024,Housing,NATIONWIDE ACCOMMODATION,"60,667.00",NIGHTLY TA (NSC),EXTERNAL AGENCIES AND BODIES,5902626382,1000076112
07.03.2024,Children and Adults,BLAK DIAMOND SOCIAL CARE LTD,"60,216.43",SEMI-IND LAC 16-17,EXTERNAL AGENCIES AND BODIES,2103835363,1000090161
18.03.2024,Finance,FUJITSU SERVICES LTD,"59,546.00",CAPITAL PS (STRAT SERV),ICT ACQUISITION,5902627747,1000089033
26.03.2024,Housing,NATIONWIDE ACCOMMODATION,"59,408.84",NIGHTLY TA (NSC),EXTERNAL AGENCIES AND BODIES,5902629255,1000076112
06.03.2024,DSO,GC CONSTRUCT LTD,"59,196.98",SR - VOIDS TEAM,OTHER CONTRACTORS,2103834359,3000002106
15.03.2024,Environment Neighbourhoods and Growth,ESTATE LIGHTING SOLUTIONS LTD,"58,607.50",PUBLIC LIGHTING,OTHER CONTRACTORS,2103841211,3000002130
04.03.2024,Housing,STANDAGE & CO LTD,"58,566.35",CAPITAL PS (HRA),CONSTRUCTION MAIN CONTRACT -CERTIFICATED,2103834073,4002817
04.03.2024,Children and Adults,PROSPERO RECRUITMENT LTD,"58,003.50",AP & HOSPITAL SCHLS,STATEMENTED FEES,2103834186,1000082492
25.03.2024,Housing,DIAMOND PROPERTY MANAGEMENT LTD,"57,959.15",NIGHTLY TA (NSC),EXTERNAL AGENCIES AND BODIES,5902629145,1000088789
21.03.2024,DSO,CRATUS BUILDING SERVICES LIMITED,"57,850.43",SR - VOIDS TEAM,OTHER CONTRACTORS,2103843256,3000001055
07.03.2024,Children and Adults,CLIFTON CHILDRENS SOCIETY,"57,362.00",ALS INTER AGENCY,EXTERNAL AGENCIES AND BODIES,5902625645,1000049956
20.03.2024,Children and Adults,ACCESS MOBILITY TRANSPORT LTD,"57,133.20",SCH TRANS � TRAVEL,CAB FARES,5902628174,1000074637
28.03.2024,Housing,A & E ELKINS LTD,"56,041.36",DESIGN & DELIVERY,PLANNED MAINTENANCE,2103849305,4012501
12.03.2024,Housing,LETTING INTERNATIONAL LTD,"55,863.33",PSL PLACEMENTS,EXTERNAL AGENCIES AND BODIES,5902626707,1000070102
05.03.2024,Environment Neighbourhoods and Growth,ATALIAN SERVEST LTD,"55,610.88",CAPITAL PS (REGEN),CONSTRUCTION MAIN CONTRACT,2103834221,3000002240
01.03.2024,Environment Neighbourhoods and Growth,ATALIAN SERVEST LTD,"55,610.88",CAPITAL PS (REGEN),CONSTRUCTION MAIN CONTRACT,5902625046,3000002240
28.03.2024,Children and Adults,SOLACE CARE PARTNERS LTD,"55,451.47",CHILDREN�S RESID,RESIDENTIAL CARE,2103846625,1000090499
28.03.2024,Children and Adults,BLAK DIAMOND SOCIAL CARE LTD,"54,861.14",SEMI-IND LAC 16-17,EXTERNAL AGENCIES AND BODIES,2103847487,1000090161
22.03.2024,Housing,SILK & MACKMAN SERVICES LTD,"54,780.00",TA HOSTELS,BUILDING R&M,5902628901,1000035282
08.03.2024,Housing,STACK LONDON LTD,"54,424.30",CAPITAL PS (HRA),CONSTRUCTION MAIN CONTRACT -CERTIFICATED,2103835476,3000002216
12.03.2024,Housing,TAAKSVALE HOUSING LTD,"53,979.64",NIGHTLY TA (NSC),EXTERNAL AGENCIES AND BODIES,5902626752,1000073665
04.03.2024,Housing,SALTASH ENTERPRISES LTD,"53,536.98",CAPITAL PS (HRA),CONSTRUCTION MAIN CONTRACT -CERTIFICATED,2103834158,4013605
22.03.2024,Housing,WENTWORTH HOUSING LTD,"53,536.58",PSL PLACEMENTS,EXTERNAL AGENCIES AND BODIES,5902628734,1000083640
19.03.2024,Children and Adults,THE ST THOMAS THE APOSTLE COLLEGE,"53,454.00",LBS MAINSTREAM,SCHOOLS CAPITATION,2103842571,5001000074
22.03.2024,Children and Adults,THE ST THOMAS THE APOSTLE COLLEGE,"53,454.00",LBS MAINSTREAM,SCHOOLS CAPITATION,2103843318,5001000074
15.03.2024,Housing,TKC HOUSING LIMITED,"52,872.50",PSL PLACEMENTS,EXTERNAL AGENCIES AND BODIES,5902627639,1000088199
21.03.2024,DSO,GC CONSTRUCT LTD,"52,224.37",SR - VOIDS TEAM,OTHER CONTRACTORS,2103843253,3000002106
14.03.2024,Housing,DUCTCLEAN (UK) LTD,"52,079.38",DUCTCLEAN,I-WORLD CONTRACTORS HOLDING ACCOUNT,2103839389,3000001635
11.03.2024,Environment Neighbourhoods and Growth,REDLYNCH LEISURE INSTALLATIONS LTD,"51,885.00",CAPITAL PS (LEISURE),CONSTRUCTION FEES  - EXTERNAL,2103837035,3000000670
15.03.2024,Children and Adults,BLAK DIAMOND SOCIAL CARE LTD,"51,321.71",SEMI-IND LAC 16-17,EXTERNAL AGENCIES AND BODIES,2103841186,1000090161
25.03.2024,Housing,CROMWOOD HOUSING,"50,786.50",NIGHTLY TA (NSC),EXTERNAL AGENCIES AND BODIES,5902629065,1000071450
28.03.2024,Children and Adults,PCS SERVICES LIMITED,"50,416.00",CHILDREN�S RESID,RESIDENTIAL CARE,2103846624,1000087059
18.03.2024,Housing,BRIDGEWATER ROOFING CONTRACTORS LTD,"50,310.40",BRC,I-WORLD CONTRACTORS HOLDING ACCOUNT,2103841520,3000001482
27.03.2024,Children and Adults,JOHN RUSKIN PRIMARY SCHOOL,"50,302.00",LBS MAINSTREAM,SCHOOLS CAPITATION,2103842549,5001000040
22.03.2024,Children and Adults,JOHN RUSKIN PRIMARY SCHOOL,"50,302.00",LBS MAINSTREAM,SCHOOLS CAPITATION,2103843296,5001000040
25.03.2024,Children and Adults,OAKLEY HOUSE (KENT) LIMITED,"50,283.02",CHILDREN�S RESID,RESIDENTIAL CARE,2103844645,1000090039
10.03.2024,Children and Adults,LONDON CARE LTD,"50,001.00",EXTRA CARE CONTRACT,HOMECARE - C&V,5902625871,1000003398
14.03.2024,Children and Adults,TURNING POINT LTD,"50,000.00",SEXUAL HEALTH - STI,EXTERNAL AGENCIES AND BODIES,5902625931,1000040642
28.03.2024,Corporate,ZURICH MUNICIPAL (IMPREST ACCOUNT),"50,000.00",MOTOR RELATED INSURANCE,COMPENSATION,5902630040,1000079549
14.03.2024,Children and Adults,ALLPAY LTD (0-25),"49,999.00",SCH TRANS � TRAVEL,OTHER PAYMENTS FOR CLIENTS,5902627214,1000083062
13.03.2024,Suspense,INLAND REVENUE,"49,461.48",SUSPENSE ACCOUNT (COMPANY CODE 1000),CONSTRUCTION INDUSTRY TAX,2103839354,4003039
15.03.2024,Housing,NEC SOFTWARE SOLUTIONS UK LTD,"49,179.75",BUSINESS APPLICATIONS,SOFTWARE,5902627512,1000087043
27.03.2024,Environment Neighbourhoods and Growth,NATIONWIDE ACCOMMODATION,"49,091.50",NO RECOURSE TO PUBLIC FUNDS,ACCOMMODATION CHARGES,5902629427,1000076112
11.03.2024,Children and Adults,BEECHCROFT SUPPORT LIMITED,"48,872.00",LD LTS 18-64,SUPPORTED LIVING,2103838013,1000085412
18.03.2024,Housing,A & E ELKINS LTD,"48,777.54",A&E ELKINS,I-WORLD CONTRACTORS HOLDING ACCOUNT,2103841519,4012501
25.03.2024,Housing,JUDGE AND PRIESTLEY SOLICITORS,"48,641.00",DISREPAIR,BUILDING R&M,5902628675,1472217
28.03.2024,Children and Adults,LONDON CARE LTD,"48,590.37",EXTRA CARE CONTRACT,HOMECARE - C&V,5902630435,1000003398
27.03.2024,Children and Adults,ALBION PRIMARY SCHOOL,"48,239.00",LBS MAINSTREAM,SCHOOLS CAPITATION,2103842541,5001000000
22.03.2024,Children and Adults,ALBION PRIMARY SCHOOL,"48,239.00",LBS MAINSTREAM,SCHOOLS CAPITATION,2103843288,5001000000
29.03.2024,Environment Neighbourhoods and Growth,THAMES REACH,"48,096.16",CHIEF EXECUTIVE'S OFFICE,EXTERNAL AGENCIES AND BODIES,5902628877,1723415
15.03.2024,Housing,K3 PROPERTY MANAGEMENT LTD,"46,872.00",NIGHTLY TA (NSC),EXTERNAL AGENCIES AND BODIES,5902627554,1000068219
26.03.2024,Children and Adults,LAMBETH COLLEGE,"46,773.13",FURTHER EDUCATION,STATEMENTED FEES,2103845068,1810111
10.03.2024,Environment Neighbourhoods and Growth,METIS CONSULTANTS LIMITED,"46,666.00",CAPITAL PS (LEISURE),CONSTRUCTION FEES - ARCHITECT,5902625854,1000086330
22.03.2024,Children and Adults,CHANGE GROW LIVE SERVICES LTD,"46,545.00",ADULT SM SERVICE,OTHER CONTRACTORS,5902627963,1000082721
11.03.2024,Environment Neighbourhoods and Growth,GLENMAN CORPORATION LTD,"46,538.93",CAPITAL PS (REGEN),CONSTRUCTION MAIN CONTRACT -CERTIFICATED,2103838455,3000002230
14.03.2024,Children and Adults,OXFORD BROOKES ENTERPRISES LTD,"45,972.50",DIR OF ASC,EXTERNAL AGENCIES AND BODIES,5902626421,1000076102
28.03.2024,Children and Adults,LONDON CARE LTD,"45,524.45",EXTRA CARE CONTRACT,HOMECARE - C&V,5902630427,1000003398
14.03.2024,Environment Neighbourhoods and Growth,F M CONWAY LTD,"45,505.46",HIGHWAY MAINTENANCE OVERHEADS,HIGHWAYS TERM CONTRACT,2103839375,4001384
24.03.2024,Children and Adults,PINEAPPLE CONTRACTS UNLIMITED,"45,335.21",CHILDREN�S RES PROJ,FURNITURE PURCHASE & REPAIR,5902628813,11003086
19.03.2024,Children and Adults,IVYDALE PRIMARY SCHOOL,"45,211.50",SHORT BREAKS INNV FUND,EXTERNAL AGENCIES AND BODIES,5902627975,5001000038
10.03.2024,Children and Adults,LONDON CARE LTD,"44,960.08",EXTRA CARE CONTRACT,HOMECARE - C&V,5902625873,1000003398
21.03.2024,Environment Neighbourhoods and Growth,ST GILES TRUST,"44,692.23",CHIEF EXECUTIVE'S OFFICE,EXTERNAL AGENCIES AND BODIES,5902628549,1013828
07.03.2024,Children and Adults,THE JEN GROUP LLP,"44,389.00",COVID-19 CONTROL OUTBREAK MGMNT.FUND,EXTERNAL AGENCIES AND BODIES,5902625116,1000090622
10.03.2024,Children and Adults,LONDON CARE LTD,"44,278.67",EXTRA CARE CONTRACT,HOMECARE - C&V,5902625882,1000003398
12.03.2024,Children and Adults,FLEET TUTORS,"44,214.00",ALTERNATIVE PROVISION,EXTERNAL AGENCIES AND BODIES,5902626677,1000044820
18.03.2024,Children and Adults,LINDEN LODGE SCHOOL,"44,122.00",OTHER LA SPECIAL,STATEMENTED FEES,2103841245,1000070880
28.03.2024,Children and Adults,LONDON CARE LTD,"43,837.96",EXTRA CARE CONTRACT,HOMECARE - C&V,5902630339,1000003398
21.03.2024,Governance and Assurance,WANDLE HOUSING ASSOCIATION LTD,"43,750.00",QUEENS ROAD 3 (BLOCK C),RENTS,2103843014,1039321
12.03.2024,Housing,TKC HOUSING LIMITED,"43,500.00",PSL PLACEMENTS,GRANTS,5902626703,1000088199
26.03.2024,Housing,SALTASH ENTERPRISES LTD,"43,469.53",CAPITAL PS (HRA),CONSTRUCTION MAIN CONTRACT -CERTIFICATED,2103845095,4013605
10.03.2024,Environment Neighbourhoods and Growth,METIS CONSULTANTS LIMITED,"43,258.59",STREETS FOR PEOPLE - WALKING,CONSULTANTS SERVICES,5902625110,1000086330
28.03.2024,DSO,ARMINA LTD,"42,898.60",CAMBERWELL DD,OTHER CONTRACTORS,2103846577,3000002121
11.03.2024,Children and Adults,V-CARE HOMES (UK) LIMITED,"42,492.86",CHILDREN�S RESID,RESIDENTIAL CARE,2103837058,1000090470
13.03.2024,Children and Adults,QUAY HEALTH SOLUTIONS,"42,235.00",HEALTH CHECKS CONTRACTS,EXTERNAL AGENCIES AND BODIES,5902627032,1000079308
07.03.2024,Children and Adults,NORTHUMBERLAND COUNTY COUNCIL,"42,050.00",CHILDREN�S RESID,RESIDENTIAL CARE,2103835343,1000030424
05.03.2024,Housing,STENFORD PROPERTY LTD,"41,302.50",NIGHTLY TA (NSC),EXTERNAL AGENCIES AND BODIES,5902625146,1000074759
21.03.2024,Governance and Assurance,M J MAPP LTD,"41,250.00",47B EAST DULWICH ROAD,RENTS,2103843029,1000056816
29.03.2024,Housing,JUDGE AND PRIESTLEY SOLICITORS,"40,800.00",DISREPAIR,BUILDING R&M,5902630489,1472217
22.03.2024,DSO,J KASH LTD,"40,537.47",DAMP & MOULD TEAM,OTHER CONTRACTORS,2103843327,3000002219
14.03.2024,Environment Neighbourhoods and Growth,PECAN LTD,"40,084.00",CHIEF EXECUTIVE'S OFFICE,EXTERNAL AGENCIES AND BODIES,5902626042,11263114
18.03.2024,Children and Adults,THE CHARTER SCHOOL EDUCATIONAL TRUST,"40,000.00",EHCP INCLUSION FUND,SCHOOLS CAPITATION,2103841241,1000064975
04.03.2024,Children and Adults,CHANGE GROW LIVE SERVICES LTD,"40,000.00",SSMTRG,OTHER CONTRACTORS,5902625047,1000082721
25.03.2024,Housing,JUDGE AND PRIESTLEY SOLICITORS,"40,000.00",DISREPAIR,BUILDING R&M,5902629004,1472217
21.03.2024,Children and Adults,RAYTELL ELECTRICAL CO LTD,"39,955.85",CAPITAL PS (EDUCATION),UTILITIES INSTALLATION,2103843265,4010552
22.03.2024,Children and Adults,SHARED INTELLIGENCE LTD,"39,913.00",BEHAVIOURAL AND DIGITAL HEALTH TEAM,EXTERNAL AGENCIES AND BODIES,5902627911,1000027412
18.03.2024,Environment Neighbourhoods and Growth,ALLIANCE LEISURE SERVICES LTD,"39,500.00",LEISURE CENTRAL COST,MARKETING & PUBLICITY SERVICES,5902627738,1000088982
21.03.2024,Environment Neighbourhoods and Growth,CONWAY AECOM LTD,"39,278.18",STREETS FOR PEOPLE - WALKING,CONSULTANTS SERVICES,5902628041,1000071205
15.03.2024,Corporate,GROUP FINANCE SOLUTIONS CONSULTING,"39,240.00",ERP PROGRAMME BUDGET,PROFESSIONAL FEES,5902627094,1000090315
20.03.2024,Children and Adults,THE FELIX PROJECT,"39,200.00",COVID-19 CONTROL OUTBREAK MGMNT.FUND,EXTERNAL AGENCIES AND BODIES,5902628164,1000089228
13.03.2024,Finance,FAMILY FUND TRADING LTD,"38,976.68",SESS,OTHER PAYMENTS FOR CLIENTS,5902627056,1000071092
23.03.2024,Environment Neighbourhoods and Growth,THE GOOD PEOPLE BUSINESS LTD,"38,925.00",CHIEF EXECUTIVE'S OFFICE,EXTERNAL AGENCIES AND BODIES,5902627739,1000072947
21.03.2024,Children and Adults,COMMITTED CARE HOUSING,"38,827.29",SEMI-IND LAC 16-17,EXTERNAL AGENCIES AND BODIES,2103843186,1000086257
28.03.2024,Children and Adults,COMMITTED CARE HOUSING,"38,816.29",SEMI-IND LAC 16-17,EXTERNAL AGENCIES AND BODIES,2103847528,1000086257
14.03.2024,Environment Neighbourhoods and Growth,UNITY WORKS SOCIAL ENTERPRISES,"38,468.09",CHIEF EXECUTIVE'S OFFICE,EXTERNAL AGENCIES AND BODIES,5902627249,1000083486
24.03.2024,Environment Neighbourhoods and Growth,UNITY WORKS SOCIAL ENTERPRISES,"38,468.09",CHIEF EXECUTIVE'S OFFICE,EXTERNAL AGENCIES AND BODIES,5902628335,1000083486
15.03.2024,Housing,STENFORD PROPERTY LTD,"38,214.75",NIGHTLY TA (NSC),EXTERNAL AGENCIES AND BODIES,5902627559,1000074759
21.03.2024,DSO,SANDERSONS BUILDING SERVICES LTD,"38,209.58",SR - VOIDS TEAM,OTHER CONTRACTORS,2103842821,3000002065
16.03.2024,Children and Adults,QUAY HEALTH SOLUTIONS,"38,129.00",HEALTH INTERVENTIONS,EXTERNAL AGENCIES AND BODIES,5902627023,1000079308
07.03.2024,Strategy and Communities,PEMBROKE COLLEGE SETTLEMENT,"38,077.80",COMMUNITIES PROJECTS,PROFESSIONAL FEES,5902625819,1000073444
29.03.2024,Housing,JUDGE AND PRIESTLEY SOLICITORS,"37,900.00",DISREPAIR,BUILDING R&M,5902630486,1472217
28.03.2024,Children and Adults,CEDAR HOUSE (KENT) LTD,"37,789.07",CHILDREN�S RESID,RESIDENTIAL CARE,2103849052,1000090433
20.03.2024,Housing,EQUANS REGENERATION (APOLLO) LTD,"37,770.48",CAPITAL PS (HRA),CONSTRUCTION MAIN CONTRACT -CERTIFICATED,2103842705,4000449
25.03.2024,Environment Neighbourhoods and Growth,TOFCO CPP LTD,"37,698.66",PUBLIC LIGHTING,MATERIALS,5902629152,1000084062
08.03.2024,Housing,JUDGE AND PRIESTLEY SOLICITORS,"37,650.00",DISREPAIR,BUILDING R&M,5902626039,1472217
19.03.2024,Housing,DMS PROPERTIES SERVICES LTD,"37,600.75",NIGHTLY TA (NSC),EXTERNAL AGENCIES AND BODIES,5902628032,1000081522
28.03.2024,Children and Adults,TRANSPORT TRADING LTD,"37,424.60",SCH TRANS � TRAVEL,PUBLIC TRANSPORT,5902629977,11252077
15.03.2024,Governance and Assurance,RELX (UK) LTD,"37,405.61",LEGAL SVCES MANAGEMENT,SOFTWARE,5902627558,1000090502
15.03.2024,Environment Neighbourhoods and Growth,METIS CONSULTANTS LIMITED,"37,159.00",CAPITAL PS (LEISURE),CONSTRUCTION FEES - ARCHITECT,5902627586,1000086330
19.03.2024,Housing,PRB ESTATES LTD,"37,002.05",DUCTCLEAN,I-WORLD CONTRACTORS HOLDING ACCOUNT,2103841533,3000001691
29.03.2024,Environment Neighbourhoods and Growth,METASTREET LTD,"37,000.00",RESIDENTIAL SERVICES,SOFTWARE,5902630438,1000083150
13.03.2024,Environment Neighbourhoods and Growth,C S G (USHERS) LTD,"36,678.00",TREES TERM CONTRACT,TREE MAINTENANCE,5902626940,1000073203
21.03.2024,Environment Neighbourhoods and Growth,KINDLY PROPERTIES LTD,"36,675.00",NO RECOURSE TO PUBLIC FUNDS,ACCOMMODATION CHARGES,5902628653,1000060734
21.03.2024,Children and Adults,COMMITTED CARE HOUSING,"36,469.42",SEMI-IND LAC 16-17,EXTERNAL AGENCIES AND BODIES,2103843188,1000086257
27.03.2024,Governance and Assurance,KENT COUNTY COUNCIL - LASER,"36,419.20",34 PECKHAM ROAD,ELECTRICITY,5902629428,1000012926
28.03.2024,Children and Adults,BLAK DIAMOND SOCIAL CARE LTD,"36,358.57",SEMI-IND LAC 16-17,EXTERNAL AGENCIES AND BODIES,2103847456,1000090161
15.03.2024,Environment Neighbourhoods and Growth,METIS CONSULTANTS LIMITED,"36,079.00",CAPITAL PS (LEISURE),CONSTRUCTION FEES - ARCHITECT,5902627589,1000086330
19.03.2024,Environment Neighbourhoods and Growth,METIS CONSULTANTS LIMITED,"36,055.00",CAPITAL PS (LEISURE),CONSTRUCTION FEES  - EXTERNAL,5902628091,1000086330
23.03.2024,Governance and Assurance,EVOTIX LTD,"35,985.00",CFM OPERATIONAL BUDGET,SOFTWARE,5902628151,1000088730
20.03.2024,Environment Neighbourhoods and Growth,METIS CONSULTANTS LIMITED,"35,807.34",CAPITAL PS (LEISURE),CONSTRUCTION FEES - ARCHITECT,5902628172,1000086330
22.03.2024,Environment Neighbourhoods and Growth,TWIN EMPLOYMENT & TRAINING,"35,746.83",CHIEF EXECUTIVE'S OFFICE,EXTERNAL AGENCIES AND BODIES,5902628599,1000083699
12.03.2024,Environment Neighbourhoods and Growth,TWIN EMPLOYMENT & TRAINING,"35,746.57",CHIEF EXECUTIVE'S OFFICE,EXTERNAL AGENCIES AND BODIES,5902626685,1000083699
11.03.2024,Children and Adults,HESLEY GROUP LIMITED,"35,637.10",LD LTS 18-64,SUPPORTED LIVING,2103837877,1000089729
27.03.2024,Environment Neighbourhoods and Growth,KELTBRAY LTD,"35,616.80",CAPITAL PS (REGEN),CONSTRUCTION FEES,5902629528,1000075518
27.03.2024,Housing,WENTWORTH HOUSING LTD,"35,579.54",PSL PLACEMENTS,EXTERNAL AGENCIES AND BODIES,5902629474,1000083640
15.03.2024,Housing,A & E ELKINS LTD,"35,236.19",CAPITAL PS (HRA),CONSTRUCTION MAIN CONTRACT -CERTIFICATED,2103841105,4012501
08.03.2024,Housing,JUDGE & PRIESTLEY SOLICITORS,"35,000.00",CAPITAL PS (HRA),CAPITAL GRANTS,2103834159,1000074912
27.03.2024,Housing,LONSDALE & MAYALL SOLICITORS,"35,000.00",CAPITAL PS (HRA),CAPITAL GRANTS,2103846564,1000090720
28.03.2024,Children and Adults,OAKLEY HOUSE (KENT) LIMITED,"34,372.80",CHILDREN�S RESID,RESIDENTIAL CARE,2103849057,1000090039
11.03.2024,Children and Adults,OPTIMA CARE (SHINE) LONDON LTD,"34,345.92",LD LTS 18-64,SUPPORTED LIVING,2103837611,1000079614
26.03.2024,Children and Adults,LAMBETH COLLEGE,"34,188.59",FURTHER EDUCATION,STATEMENTED FEES,2103845067,1810111
13.03.2024,Housing,KARAKUSEVIC CARSON ARCHITECTS,"34,170.00",CAPITAL PS (HRA),CONSTRUCTION FEES - ARCHITECT,5902627133,1000055150
20.03.2024,Housing,KARAKUSEVIC CARSON ARCHITECTS,"34,170.00",CAPITAL PS (HRA),CONSTRUCTION FEES - ARCHITECT,5902628304,1000055150
20.03.2024,Housing,KARAKUSEVIC CARSON ARCHITECTS,"34,170.00",CAPITAL PS (HRA),CONSTRUCTION FEES - ARCHITECT,5902628363,1000055150
27.03.2024,Children and Adults,CAMELOT PRIMARY SCHOOL,"34,042.00",LBS MAINSTREAM,SCHOOLS CAPITATION,2103842542,5001000014
22.03.2024,Children and Adults,CAMELOT PRIMARY SCHOOL,"34,042.00",LBS MAINSTREAM,SCHOOLS CAPITATION,2103843289,5001000014
07.03.2024,Children and Adults,BLAK DIAMOND SOCIAL CARE LTD,"34,012.86",SEMI-IND LAC 16-17,EXTERNAL AGENCIES AND BODIES,2103835352,1000090161
18.03.2024,Children and Adults,LONDON BOROUGH OF LAMBETH,"33,908.00",SEXUAL HEALTH - CONTRACEPTION,EXTERNAL AGENCIES AND BODIES,5902627692,1000044545
13.03.2024,Housing,CRS DRAWING AND DESIGN LTD,"33,720.00",CAPITAL PS (HRA),CONSTRUCTION,5902626880,1000085835
27.03.2024,Housing,CALFORD SEADEN LLP,"33,503.32",CAPITAL PS (HRA),CONSTRUCTION FEES  - EXTERNAL,5902629527,1061592
04.03.2024,Children and Adults,BESSEMER GRANGE PRIMARY SCHOOL,"33,387.26",NURSERY ED GRANT 3 AND 4 YR OLDS,EARLY YEARS - 3 AND 4 YEAR OLDS,2103832099,5001000009
05.03.2024,DSO,J KASH LTD,"33,223.86",SR COMMUNAL - DELIVERY TEAM,OTHER CONTRACTORS,2103834302,3000002219
27.03.2024,Children and Adults,PILGRIM'S WAY PRIMARY SCHOOL,"33,006.00",LBS MAINSTREAM,SCHOOLS CAPITATION,2103842556,5001000054
22.03.2024,Children and Adults,PILGRIM'S WAY PRIMARY SCHOOL,"33,006.00",LBS MAINSTREAM,SCHOOLS CAPITATION,2103843303,5001000054
12.03.2024,Children and Adults,ALLEN CARR'S EASYWAY (INTERNATIONAL,"32,857.00",STOP SMOKING,EXTERNAL AGENCIES AND BODIES,5902626673,1000090277
11.03.2024,Children and Adults,V-CARE HOMES (UK) LIMITED,"32,850.00",CHILDREN�S RESID,RESIDENTIAL CARE,2103837059,1000090470
19.03.2024,Children and Adults,TUKE SCHOOL,"32,841.00",LBS SPECIAL AND HOSP SCHLS,SCHOOLS CAPITATION,2103842575,5001000097
22.03.2024,Children and Adults,TUKE SCHOOL,"32,841.00",LBS SPECIAL AND HOSP SCHLS,SCHOOLS CAPITATION,2103843322,5001000097
27.03.2024,Children and Adults,PETER HILLS CE SCHOOL,"32,837.00",LBS MAINSTREAM,SCHOOLS CAPITATION,2103842566,5001000053
22.03.2024,Children and Adults,PETER HILLS CE SCHOOL,"32,837.00",LBS MAINSTREAM,SCHOOLS CAPITATION,2103843313,5001000053
15.03.2024,Children and Adults,ARK SCHOOLS T/A GLOBE ACADEMY,"32,747.37",PUBLIC HEALTH FHSM,SCHOOLS CAPITATION,2103841103,1000060008
14.03.2024,Environment Neighbourhoods and Growth,WOODLANDS PETCARE LTD,"32,600.00",DOG TRACKING SERVICE,OTHER CONTRACTORS,5902627326,1000063009
23.03.2024,Environment Neighbourhoods and Growth,F M CONWAY LTD,"32,475.09",CAPITAL PS (LEISURE),CONSTRUCTION,2103841629,4001384
04.03.2024,Children and Adults,PROSPERO RECRUITMENT LTD,"32,402.50",AP & HOSPITAL SCHLS,STATEMENTED FEES,2103834184,1000082492
28.03.2024,Children and Adults,OAKLEY HOUSE (KENT) LIMITED,"32,155.20",CHILDREN�S RESID,RESIDENTIAL CARE,2103849055,1000090039
12.03.2024,Corporate,TUKE SCHOOL,"32,149.32",EDUCATION VAT INPUTS,VAT CONTROL ACCOUNT,2103838522,5001000097
12.03.2024,Environment Neighbourhoods and Growth,MARK BAILEY ASSOCIATES LTD,"31,922.00",PUBLIC LIGHTING,MATERIALS,5902626766,1000061353
06.03.2024,Environment Neighbourhoods and Growth,NATIONWIDE ACCOMMODATION,"31,822.36",NO RECOURSE TO PUBLIC FUNDS,ACCOMMODATION CHARGES,5902625603,1000076112
27.03.2024,Governance and Assurance,KENT COUNTY COUNCIL - LASER,"31,708.25",160 TOOLEY ST.,ELECTRICITY,5902629428,1000012926
15.03.2024,Housing,NEC SOFTWARE SOLUTIONS UK LTD,"31,250.00",BUSINESS APPLICATIONS,SOFTWARE,5902627510,1000087043
28.03.2024,Children and Adults,SOUTHSIDE PARTNERSHIP LTD,"31,213.98",S75 SUPHSG SCH LBS LEAD,EXTERNAL AGENCIES AND BODIES,5902630340,1716624
04.03.2024,Children and Adults,CHANGE GROW LIVE SERVICES LTD,"31,150.00",SSMTRG,OTHER CONTRACTORS,5902625008,1000082721
13.03.2024,Environment Neighbourhoods and Growth,REFUGE,"31,090.25",VIOLENCE AGAINST WOMEN & GIRLS,OTHER CONTRACTORS,5902627012,1000034825
13.03.2024,Environment Neighbourhoods and Growth,REFUGE,"31,090.25",VIOLENCE AGAINST WOMEN & GIRLS,OTHER CONTRACTORS,5902627014,1000034825
26.03.2024,Environment Neighbourhoods and Growth,BL CW HOLDINGS LTD,"31,011.31",CAPITAL PS (REGEN),CONSTRUCTION FEES  - EXTERNAL,5902629276,1000086680
10.03.2024,Environment Neighbourhoods and Growth,METIS CONSULTANTS LIMITED,"31,003.60",CAPITAL PS (LEISURE),CONSTRUCTION MAIN CONTRACT,5902625710,1000086330
21.03.2024,Environment Neighbourhoods and Growth,ST GILES TRUST,"30,977.34",CHIEF EXECUTIVE'S OFFICE,EXTERNAL AGENCIES AND BODIES,5902628524,1013828
23.03.2024,Children and Adults,FAITHFUL & GOULD,"30,949.72",CAPITAL PS (EDUCATION),CONSTRUCTION FEES  - EXTERNAL,5902628485,1000061390
26.03.2024,Finance,DIGNITY FUNERALS LTD,"30,900.00",CORONER'S,OTHER CONTRACTORS,5902629323,1000041373
04.03.2024,Children and Adults,NEWCASTLE COLLEGE GROUP,"30,700.66",FURTHER EDUCATION,STATEMENTED FEES,2103834173,1000080965
11.03.2024,Children and Adults,SPECTRA CARE LTD,"30,590.00",LD LTS 18-64,SUPPORTED LIVING,2103837563,1000086280
11.03.2024,Environment Neighbourhoods and Growth,WALWORTH TOWN HALL LLP,"30,549.10",CAPITAL PS (REGEN),CONSTRUCTION SITE COSTS,5902626326,1000089311
19.03.2024,Housing,FAITHDEAN PLC,"30,239.75",CAPITAL PS (HRA),CONSTRUCTION MAIN CONTRACT -CERTIFICATED,2103841524,3000002188
19.03.2024,Children and Adults,DULWICH VILLAGE CE INFANTS SCHOOL,"30,108.00",LBS MAINSTREAM,SCHOOLS CAPITATION,2103842559,5001000027
22.03.2024,Children and Adults,DULWICH VILLAGE CE INFANTS SCHOOL,"30,108.00",LBS MAINSTREAM,SCHOOLS CAPITATION,2103843306,5001000027
07.03.2024,Children and Adults,ST MARY MAGDALENE CE SCHOOL,"30,000.00",ST MARY MAGDALENE CE PRIMARY SCHOOL,SCHOOLS CAPITATION,2103835439,5001000080
01.03.2024,Finance,NEC SOFTWARE SOLUTIONS UK LTD,"30,000.00",ADMINISTRATIVE SUPPORT,SOFTWARE,5902624537,1000087043
04.03.2024,Children and Adults,CHANGE GROW LIVE SERVICES LTD,"30,000.00",SSMTRG,OTHER CONTRACTORS,5902625037,1000082721
28.03.2024,Environment Neighbourhoods and Growth,METIS CONSULTANTS LIMITED,"29,995.00",CAPITAL PS (LEISURE),CONSTRUCTION MAIN CONTRACT,5902630288,1000086330
11.03.2024,Finance,BDO LLP,"29,936.08",INTERNAL AUDIT CONTRACTS,PAYMENTS FOR FINANCIAL SERVICES,5902626333,1000057898
20.03.2024,Finance,THE LONDON COMMUNITY FOUNDATION,"29,900.00",MASTER PLAN - H/WAY & TRANS INTERCHANGE,GRANTS,5902628384,1000070971
11.03.2024,Environment Neighbourhoods and Growth,PROPERTYPLACEBOOK LTD,"29,868.50",NO RECOURSE TO PUBLIC FUNDS,ACCOMMODATION CHARGES,5902625894,1000077817
12.03.2024,Corporate,ST SAVIOURS & ST OLAVES SCHOOL,"29,843.65",EDUCATION VAT INPUTS,VAT CONTROL ACCOUNT,2103838516,5001000084
19.03.2024,Housing,RS REAL ESTATE LTD,"29,826.50",NIGHTLY TA (NSC),EXTERNAL AGENCIES AND BODIES,5902628066,1000072485
26.03.2024,Children and Adults,THE COMPLETE WORKS INDEPENDENT SCHOOL,"29,700.00",INDEP MAINSTREAM,STATEMENTED FEES,2103845072,1000033256
15.03.2024,Housing,A & E ELKINS LTD,"29,597.82",CAPITAL PS (HRA),CONSTRUCTION MAIN CONTRACT -CERTIFICATED,2103841105,4012501
07.03.2024,Finance,CLUTTONS LLP,"29,500.00",STRATEGIC APPLICATIONS,PROFESSIONAL FEES,5902625068,1000028140
21.03.2024,Children and Adults,FAITHFUL & GOULD,"29,423.20",CAPITAL PS (SOC SERV),CONSTRUCTION FEES  - EXTERNAL,5902627542,1000061390
15.03.2024,Children and Adults,ST SAVIOURS & ST OLAVES SCHOOL,"29,187.00",PUBLIC HEALTH FHSM,SCHOOLS CAPITATION,2103841101,5001000084
01.03.2024,Children and Adults,GOODRICH PRIMARY SCHOOL,"29,015.31",FREE HEALTHY SCHOOL MEALS,EARLY YEARS - 3 AND 4 YEAR OLDS,2103826370,5001000028
12.03.2024,Children and Adults,THE GROVE CHILDRENS CENTRE,"28,865.05",THE GROVE NURSERY SCHOOL,EARLY YEARS - 3 AND 4 YEAR OLDS,2103838735,5001000090
25.03.2024,Children and Adults,THE KENNEDY AND ELLIOTT PARTNERSHIP,"28,800.00",CHILDREN�S RESID,RESIDENTIAL CARE,2103844646,1000089711
05.03.2024,Children and Adults,EAST SUSSEX COUNTY COUNCIL,"28,667.00",ALS INTER AGENCY,EXTERNAL AGENCIES AND BODIES,5902625278,1000015148
23.03.2024,Environment Neighbourhoods and Growth,ETC SPORTS SURFACES LTD,"28,351.00",CAPITAL PS (LEISURE),FURNITURE & FITTINGS ACQUISITION,2103841631,3000001845
28.03.2024,Children and Adults,INTEGRATED FOSTERING SERVICES LTD,"28,326.41",FRIENDS & FAMILY FOSTERING,EXTERNAL AGENCIES AND BODIES,2103849045,1000082605
22.03.2024,Environment Neighbourhoods and Growth,KINDLY PROPERTIES LTD,"28,325.00",NO RECOURSE TO PUBLIC FUNDS,ACCOMMODATION CHARGES,5902628736,1000060734
13.03.2024,Environment Neighbourhoods and Growth,DIAMOND PROPERTY MANAGEMENT LTD,"28,277.50",NO RECOURSE TO PUBLIC FUNDS,ACCOMMODATION CHARGES,5902627081,1000088789
06.03.2024,Housing,NIBLOCK (BUILDERS) LTD,"28,215.32",CAPITAL PS (HRA),CONSTRUCTION MAIN CONTRACT -CERTIFICATED,2103835307,3000000235
28.03.2024,Housing,GLOUCESTER GROVE ESTATE TMO,"28,014.12",GLOUCESTER GROVE ESTATE,M&M ALLOWANCE CO-OPS,5902630441,1000073072
22.03.2024,Housing,SALVATION ARMY HOUSING ASSOCIATION,"27,964.24",DAVID BARKER HOSTEL,EXTERNAL AGENCIES AND BODIES,5902628722,1000089956
28.03.2024,Children and Adults,TUTELAGE CARE GROUP LTD,"27,740.29",CHILDREN�S RESID,RESIDENTIAL CARE,2103846607,1000088232
19.03.2024,Housing,STANDAGE & CO LTD,"27,657.73",CAPITAL PS (HRA),CONSTRUCTION MAIN CONTRACT -CERTIFICATED,2103841529,4002817
14.03.2024,Environment Neighbourhoods and Growth,HAVELOCK COURT (BUPA CARE),"27,541.27",NO RECOURSE TO PUBLIC FUNDS,NURSING PLACEMENTS FEES,2103840996,1000028902
28.03.2024,Children and Adults,INTEGRATED FOSTERING SERVICES LTD,"27,226.99",FRIENDS & FAMILY FOSTERING,EXTERNAL AGENCIES AND BODIES,2103846704,1000082605
28.03.2024,Children and Adults,INTEGRATED FOSTERING SERVICES LTD,"27,226.99",FRIENDS & FAMILY FOSTERING,EXTERNAL AGENCIES AND BODIES,2103849047,1000082605
14.03.2024,Corporate,4 FUTURES PHASE 2 LTD,"27,064.48",ONGOING SCHOOLS PFI COSTS,PFI/PPP PAYMENTS,5902627254,1000068567
26.03.2024,Environment Neighbourhoods and Growth,KENT COUNTY COUNCIL - LASER,"27,063.76",SDM BUDGET,ELECTRICITY,5902629407,1000012926
18.03.2024,Environment Neighbourhoods and Growth,F M CONWAY LTD,"27,042.60",CAPITAL PS (LEISURE),CONSTRUCTION FEES - EMPLOYERS AGENT,2103840999,4001384
07.03.2024,Children and Adults,TRANSPORT TRADING LTD,"26,935.70",SCH TRANS � TRAVEL,PUBLIC TRANSPORT,5902625888,11252077
28.03.2024,Children and Adults,CHILDHOOD FIRST,"26,739.71",CHILDREN�S RESID,RESIDENTIAL CARE,2103846622,1000076330
18.03.2024,Housing,EASYMOVE EA LIMITED,"26,736.39",PSL PLACEMENTS,EXTERNAL AGENCIES AND BODIES,5902627741,1000066859
25.03.2024,Environment Neighbourhoods and Growth,CONSTELLIA PUBLIC LIMITED,"26,666.67",TREES TERM CONTRACT,TREE MAINTENANCE,5902629053,1000088137
13.03.2024,Children and Adults,LONDON & QUADRANT HOUSING TRUST,"26,395.07",COMMISSIONING DIRECTORATE,RENTS,2103839352,1000014718
28.03.2024,Children and Adults,LONDON & QUADRANT HOUSING TRUST,"26,395.07",COMMISSIONING DIRECTORATE,RENTS,2103846595,1000014718
07.03.2024,Children and Adults,HATS GROUP LTD,"26,196.08",SCH TRANS � TRAVEL,CAB FARES,5902625773,1000042743
20.03.2024,Children and Adults,EARLY START GROUP LTD,"26,000.00",HEALTHY WEIGHT,EXTERNAL AGENCIES AND BODIES,5902628263,1000090890
12.03.2024,Children and Adults,SUPREME EDUCATION LTD,"25,998.00",ALTERNATIVE PROVISION,EXTERNAL AGENCIES AND BODIES,5902626775,1000089065
15.03.2024,Children and Adults,IMPROVING HEALTH LTD,"25,735.50",HEALTH CHECKS CONTRACTS,EXTERNAL AGENCIES AND BODIES,5902627064,1000079313
28.03.2024,Children and Adults,TUTELAGE CARE HARTLEY LTD,"25,735.39",CHILDREN�S RESID,RESIDENTIAL CARE,2103846616,1000088664
26.03.2024,Children and Adults,LAMBETH COLLEGE,"25,695.13",FURTHER EDUCATION,STATEMENTED FEES,2103845069,1810111
28.03.2024,Children and Adults,INTEGRATED FOSTERING SERVICES LTD,"25,597.01",FRIENDS & FAMILY FOSTERING,EXTERNAL AGENCIES AND BODIES,2103846705,1000082605
13.03.2024,Environment Neighbourhoods and Growth,TAAKSVALE HOUSING LTD,"25,582.70",NO RECOURSE TO PUBLIC FUNDS,ACCOMMODATION CHARGES,5902627087,1000073665
12.03.2024,Corporate,PHOENIX PRIMARY SCHOOL,"25,556.86",EDUCATION VAT INPUTS,VAT CONTROL ACCOUNT,2103838575,5001000032
06.03.2024,DSO,ARMINA LTD,"25,540.36",CAMBERWELL DD,OTHER CONTRACTORS,2103834365,3000002121
13.03.2024,Environment Neighbourhoods and Growth,FORGE LEISURE UK LIMITED,"25,488.00",CAPITAL PS (LEISURE),"PLANT, MACHINERY & EQUIPMENT ACQUISITION",5902626936,1000090019
19.03.2024,Children and Adults,INTEGRATED FOSTERING SERVICES LTD,"25,470.41",FRIENDS & FAMILY FOSTERING,EXTERNAL AGENCIES AND BODIES,2103841561,1000082605
28.03.2024,Children and Adults,INTEGRATED FOSTERING SERVICES LTD,"25,470.41",FRIENDS & FAMILY FOSTERING,EXTERNAL AGENCIES AND BODIES,2103849046,1000082605
22.03.2024,Housing,KINDLY PROPERTIES LTD,"25,446.25",NIGHTLY TA (NSC),EXTERNAL AGENCIES AND BODIES,5902628876,1000060734
21.03.2024,Finance,PACIFIC SECURITY SYSTEMS LTD,"25,416.00","COURAGE YARD, SHAD THAMES",BUILDING R&M,2103842873,3000002310
26.03.2024,Children and Adults,KINGSDALE FOUNDATION SCHOOL,"25,333.33",AC & FREE - MSTREAM,STATEMENTED FEES,2103845093,1000065405
20.03.2024,Housing,FAITHFUL & GOULD,"25,328.30",CAPITAL PS (HRA),CONSTRUCTION FEES - EMPLOYERS AGENT,5902628260,1000061390
02.03.2024,Governance and Assurance,KENT COUNTY COUNCIL - LASER,"25,328.04",QUEENS RD 1 (BLOCK F),ELECTRICITY,5902624052,1000012926
20.03.2024,Housing,EQUANS REGENERATION (APOLLO) LTD,"25,326.10",CAPITAL PS (HRA),CONSTRUCTION MAIN CONTRACT -CERTIFICATED,2103842758,4000449
26.03.2024,Children and Adults,LANSDOWNE SCHOOL,"25,141.25",OTHER LA SPECIAL,STATEMENTED FEES,2103845076,1000073368
27.03.2024,Children and Adults,ST PETERS CE SCHOOL,"25,062.00",LBS MAINSTREAM,SCHOOLS CAPITATION,2103842567,5001000083
22.03.2024,Children and Adults,ST PETERS CE SCHOOL,"25,062.00",LBS MAINSTREAM,SCHOOLS CAPITATION,2103843314,5001000083
18.03.2024,Environment Neighbourhoods and Growth,ETC SPORTS SURFACES LTD,"25,001.10",CAPITAL PS (LEISURE),CONSTRUCTION,2103839385,3000001845
11.03.2024,Children and Adults,HOME START,"25,000.00",FAMILY HUBS GRANT,EXTERNAL AGENCIES AND BODIES,5902625769,1000008423
11.03.2024,Children and Adults,HOME START,"25,000.00",FAMILY HUBS GRANT,EXTERNAL AGENCIES AND BODIES,5902625802,1000008423
19.03.2024,Housing,WALWORTH HOMES LTD,"25,000.00",CAPITAL PS (HRA),CONSTRUCTION FEES  - EXTERNAL,5902628087,1000079197
19.03.2024,Housing,TEATREE PROPERTY LIMITED,"24,959.00",NIGHTLY TA (NSC),EXTERNAL AGENCIES AND BODIES,5902628059,1000089741
20.03.2024,Strategy and Communities,QA LTD,"24,938.00",STRATEGY AND CHANGE,TRAINING,5902628387,1000045967
21.03.2024,DSO,BUDMAX CONSTRUCTION LTD,"24,790.96",SR COMMUNAL - DELIVERY TEAM,OTHER CONTRACTORS,2103842863,3000001936
27.03.2024,Children and Adults,ST ANTHONYS RC SCHOOL,"24,754.00",LBS MAINSTREAM,SCHOOLS CAPITATION,2103842570,5001000064
22.03.2024,Children and Adults,ST ANTHONYS RC SCHOOL,"24,754.00",LBS MAINSTREAM,SCHOOLS CAPITATION,2103843317,5001000064
19.03.2024,Environment Neighbourhoods and Growth,METIS CONSULTANTS LIMITED,"24,652.53",STREETS FOR PEOPLE - WALKING,CONSULTANTS SERVICES,5902627949,1000086330
25.03.2024,DSO,SPECTRA-GLAZE SERVICES,"24,586.44",SR COMMUNAL - DELIVERY TEAM,OTHER CONTRACTORS,5902629103,1000077605
26.03.2024,Children and Adults,LAMBETH COLLEGE,"24,423.96",FURTHER EDUCATION,STATEMENTED FEES,2103845066,1810111
22.03.2024,Children and Adults,CAPITA BUSINESS SERVICES LTD,"24,370.83",C&AS SOFTWARE APPS,SOFTWARE,5902628660,1000006291
12.03.2024,Corporate,BRUNSWICK PARK PRIMARY SCHOOL,"24,313.87",EDUCATION VAT INPUTS,VAT CONTROL ACCOUNT,2103838519,5001000013
12.03.2024,Corporate,THE ST THOMAS THE APOSTLE COLLEGE,"24,214.64",EDUCATION VAT INPUTS,VAT CONTROL ACCOUNT,2103838548,5001000074
12.03.2024,Housing,LONDON CARE LTD,"24,154.20",CAPITAL PS (HRA),CONSTRUCTION MAIN CONTRACT -CERTIFICATED,5902626687,1000003398
29.03.2024,Environment Neighbourhoods and Growth,THAMES REACH,"24,151.12",CHIEF EXECUTIVE'S OFFICE,EXTERNAL AGENCIES AND BODIES,5902628872,1723415
27.03.2024,Children and Adults,LONDON BOROUGH OF EALING,"24,137.00",NMSS/ INDEP SPECIAL,PROFESSIONAL FEES,5902629710,1000033322
22.03.2024,Children and Adults,THERAPEUTIC SOLUTIONS (ADDICTIONS),"24,100.00",SSMTRG,OTHER CONTRACTORS,5902628292,1000083671
22.03.2024,Housing,DURKAN LTD,"24,005.23",CAPITAL PS (HRA),CONSTRUCTION MAIN CONTRACT -CERTIFICATED,2103842531,3000000960
15.03.2024,Children and Adults,IESE INNOVATION LTD,"24,000.00",DIR OF ASC,SOFTWARE,5902627492,1000088463
25.03.2024,Environment Neighbourhoods and Growth,ST GILES TRUST,"23,986.29",CHIEF EXECUTIVE'S OFFICE,EXTERNAL AGENCIES AND BODIES,5902628493,1013828
19.03.2024,Children and Adults,INTEGRATED FOSTERING SERVICES LTD,"23,945.59",FRIENDS & FAMILY FOSTERING,EXTERNAL AGENCIES AND BODIES,2103841559,1000082605
28.03.2024,Children and Adults,SUPREME EDUCATION LTD,"23,873.00",ALTERNATIVE PROVISION,EXTERNAL AGENCIES AND BODIES,5902630209,1000089065
26.03.2024,Children and Adults,WANDSWORTH COUNCIL,"23,818.52",OTHER LA SPECIAL,STATEMENTED FEES,2103845086,1000020692
27.03.2024,Environment Neighbourhoods and Growth,ZFA ACCOMMODATION LTD,"23,809.00",NO RECOURSE TO PUBLIC FUNDS,ACCOMMODATION CHARGES,5902629463,1000082620
25.03.2024,Housing,NATIONWIDE ACCOMMODATION,"23,749.00",TA PLACEMENTS,EXTERNAL AGENCIES AND BODIES,5902629016,1000076112
21.03.2024,Housing,CENTRAL & CECIL HOUSING TRUST,"23,736.26",NORTHCOTT HOUSE,RENTS,2103843023,1809267
04.03.2024,Children and Adults,OWNLIFE RESIDENTIAL LTD,"23,614.29",CHILDREN�S RESID,RESIDENTIAL CARE,2103834118,1000085398
12.03.2024,Housing,SK HOUSING LTD,"23,611.80",NIGHTLY TA (NSC),EXTERNAL AGENCIES AND BODIES,5902626690,1000070716
27.03.2024,Children and Adults,MICHAEL FARADAY PRIMARY SCHOOL,"23,550.00",LBS MAINSTREAM,SCHOOLS CAPITATION,2103842552,5001000048
22.03.2024,Children and Adults,MICHAEL FARADAY PRIMARY SCHOOL,"23,550.00",LBS MAINSTREAM,SCHOOLS CAPITATION,2103843299,5001000048
10.03.2024,Children and Adults,SISU WELLNESS LIMITED,"23,400.00",HEALTH CHECKS CONTRACTS,EQUIPMENT PURCHASE & REPAIR,5902625981,1000087110
27.03.2024,Housing,KENT COUNTY COUNCIL - LASER,"23,246.19",HEATING ACCOUNT,GAS,5902629488,1000012926
20.03.2024,Housing,MRX LONDON LTD,"23,153.36",CAPITAL PS (HOUSING GF),CAPITAL GRANTS,5902628291,1000090525
21.03.2024,Environment Neighbourhoods and Growth,LEE VALLEY REGIONAL PARK AUTHORITY,"23,113.31",LEE VALLEY LEVY,LEVIES,5902628473,11020407
21.03.2024,Finance,VENN GROUP LTD,"23,100.00",IT MANAGEMENT,AGENCY STAFF,5902628596,1000033315
14.03.2024,Environment Neighbourhoods and Growth,RIGHT DIRECTIONS (MANAGEMENT) LIMITED,"23,070.00",LEISURE CENTRAL COST,PROFESSIONAL FEES,5902627155,1000089682
28.03.2024,Children and Adults,PROSPERO RECRUITMENT LTD,"23,004.00",ALTERNATIVE PROVISION,EXTERNAL AGENCIES AND BODIES,5902630101,1000082492
28.03.2024,Finance,CAPITA BUSINESS SERVICES LTD,"22,972.96",CAPITA,OTHER CONTRACTORS,5902629959,1000006291
04.03.2024,Housing,ARCHITECTURAL DECORATORS LTD,"22,861.96",CAPITAL PS (HRA),CONSTRUCTION MAIN CONTRACT -CERTIFICATED,2103834075,3000001065
21.03.2024,Housing,APEX HOUSING SOLUTIONS LTD,"22,796.80",NIGHTLY TA (NSC),EXTERNAL AGENCIES AND BODIES,5902628420,1000079786
15.03.2024,Children and Adults,THE CHARTER SCHOOL EDUCATIONAL TRUST,"22,485.00",PUBLIC HEALTH FHSM,SCHOOLS CAPITATION,2103841102,1000064975
26.03.2024,Children and Adults,AMBITIOUS ABOUT AUTISM,"22,333.41",SPECIALIST POST-16,STATEMENTED FEES,2103845078,1000035784
25.03.2024,Children and Adults,CORAM VOICE,"22,302.25",CHILDRENS ADVOCACY & INDEPENDENT VISITOR,ADVOCACY,5902628977,1000076392
25.03.2024,Children and Adults,INTERPRETING DIRECT CO (UK) LTD,"22,300.50",CENTRAL SUPPORT,INTERPRETING SERVICES,5902628998,1000070133
14.03.2024,Environment Neighbourhoods and Growth,HOMELY HOUSING LETS LTD,"22,240.68",NO RECOURSE TO PUBLIC FUNDS,ACCOMMODATION CHARGES,5902627151,1000050013
28.03.2024,Children and Adults,STRIDES CHILDCARE SERVICES LTD,"22,122.83",CHILDREN�S RESID,RESIDENTIAL CARE,2103846623,1000090771
28.03.2024,Children and Adults,KITES CHILDREN'S SERVICES LIMITED,"22,120.72",CHILDREN�S RESID,RESIDENTIAL CARE,2103846610,1000085930
18.03.2024,Children and Adults,JOHN RUSKIN PRIMARY SCHOOL,"22,000.00",EHCP INCLUSION FUND,SCHOOLS CAPITATION,2103841224,5001000040
13.03.2024,Environment Neighbourhoods and Growth,CITYGLEN LTD,"21,868.90",NO RECOURSE TO PUBLIC FUNDS,ACCOMMODATION CHARGES,5902627079,1000026239
21.03.2024,DSO,SER CONTRACTOR LTD,"21,807.44",SR - VOIDS TEAM,OTHER CONTRACTORS,2103842823,3000002234
27.03.2024,Children and Adults,SOUTHWARK PARK PRIMARY SCHOOL,"21,805.00",LBS MAINSTREAM,SCHOOLS CAPITATION,2103842555,5001000062
22.03.2024,Children and Adults,SOUTHWARK PARK PRIMARY SCHOOL,"21,805.00",LBS MAINSTREAM,SCHOOLS CAPITATION,2103843302,5001000062
27.03.2024,Housing,HACKNEY COUNCIL,"21,750.00",DEVELOPMENT DELIVERY,CONSULTANTS SERVICES,5902629686,1000071852
14.03.2024,Housing,STEF & PHILIPS LTD,"21,740.00",NIGHTLY TA (NSC),EXTERNAL AGENCIES AND BODIES,5902627362,1000088522
10.03.2024,Children and Adults,ACCESS UK LTD,"21,684.24",C&AS SOFTWARE APPS,SOFTWARE,5902625841,1000088347
07.03.2024,Strategy and Communities,SOUTHWARK CITIZENS ADVICE,"21,666.00",COMMUNITIES PROJECTS,PROFESSIONAL FEES,5902625757,1874379
25.03.2024,Environment Neighbourhoods and Growth,CONSTELLIA PUBLIC LIMITED,"21,635.42",TREES TERM CONTRACT,TREE MAINTENANCE,5902629049,1000088137
17.03.2024,Environment Neighbourhoods and Growth,DRAIN SCAN (LONDON) LIMITED,"21,560.00",CAPITAL PS (LEISURE),CAPITAL GRANTS,5902627095,1908746
26.03.2024,Environment Neighbourhoods and Growth,ST GILES TRUST,"21,545.02",CHIEF EXECUTIVE'S OFFICE,EXTERNAL AGENCIES AND BODIES,5902629321,1013828
28.03.2024,Children and Adults,HEADSTART RESIDENTIAL CARE LIMITED,"21,478.66",CHILDREN�S RESID,RESIDENTIAL CARE,2103846621,1000088836
19.03.2024,Children and Adults,FRESH START CARE SOLUTIONS LTD,"21,478.57",SEMI-IND LAC 16-17,EXTERNAL AGENCIES AND BODIES,2103841563,1000070537
28.03.2024,Children and Adults,THE CALDECOTT FOUNDATION,"21,367.86",CHILDREN�S RESID,RESIDENTIAL CARE,2103846613,1000074757
19.03.2024,Environment Neighbourhoods and Growth,METIS CONSULTANTS LIMITED,"21,291.00",CAPITAL PS (LEISURE),CONSTRUCTION FEES - ARCHITECT,5902628003,1000086330
27.03.2024,Housing,GAS ADVISORY SERVICES LIMITED,"21,266.76",PHOENIX,I-WORLD CONTRACTORS HOLDING ACCOUNT,5902629641,1000064649
19.03.2024,Children and Adults,COMMITTED CARE HOUSING,"21,202.00",SEMI-IND LAC 16-17,EXTERNAL AGENCIES AND BODIES,2103841570,1000086257
18.03.2024,Strategy and Communities,REDACTED PERSONAL DATA,"21,000.00","EQUALITY, DIVERSITY & INCLUSION",PROFESSIONAL FEES,5902627742,1000080512
28.03.2024,Children and Adults,MCRAE RESIDENTIAL CARE SERVICES LTD,"20,815.26",CHILDREN�S RESID,RESIDENTIAL CARE,2103849051,1000050558
28.03.2024,Children and Adults,MCRAE RESIDENTIAL CARE SERVICES LTD,"20,815.26",CHILDREN�S RESID,RESIDENTIAL CARE,2103849054,1000050558
15.03.2024,Housing,DURKAN LTD,"20,798.33",CAPITAL PS (HRA),CONSTRUCTION MAIN CONTRACT -CERTIFICATED,2103841107,3000000960
08.03.2024,Children and Adults,PEOPLE PLUS GROUP LTD (INDEPENDENT LIVING SERVICES),"20,766.60",LD LTS 18-64 AAD,PAYMENTS TO CLIENTS (DIRECT PAYMENTS),2103836233,1000061886
04.03.2024,Housing,NOTTING HILL HOUSING TRUST,"20,704.60",HYDE/AMICUS AND HALS,EXTERNAL AGENCIES AND BODIES,5902625054,1000043205
28.03.2024,Environment Neighbourhoods and Growth,STREET TREE LTD,"20,584.00",CAPITAL PS (LEISURE),CONSTRUCTION FEES,5902629928,1000055901
18.03.2024,Housing,NOTTING HILL HOUSING TRUST,"20,563.14",HYDE/AMICUS AND HALS,EXTERNAL AGENCIES AND BODIES,5902627778,1000043205
20.03.2024,Children and Adults,HABERDASHERS' ASKE'S BOROUGH ACADEMY,"20,500.00",PUBLIC HEALTH FHSM,SCHOOLS CAPITATION,2103842678,1000083830
27.03.2024,Children and Adults,ARK SCHOOLS,"20,464.66",EDUC INCLUSION TEAM,EXTERNAL AGENCIES AND BODIES,5902629547,1000089039
28.03.2024,Children and Adults,ROCKSTEADY CARE LTD,"20,366.67",CHILDREN�S RESID,RESIDENTIAL CARE,2103846619,1000089573
11.03.2024,Children and Adults,REDACTED PERSONAL DATA,"20,300.00",CHILDREN�S RESID,RESIDENTIAL CARE,2103838418,1000057909
12.03.2024,Environment Neighbourhoods and Growth,LEASEPLAN UK LTD,"20,209.95",COMMERCIAL VEH CTRL A/C,HIRED VEHICLES,5902626575,11014756
22.03.2024,Environment Neighbourhoods and Growth,BOUNCE BACK FOUNDATION,"20,094.18",CHIEF EXECUTIVE'S OFFICE,GRANTS,5902628661,1000090369
19.03.2024,Children and Adults,FRESH START CARE SOLUTIONS LTD,"20,092.85",SEMI-IND LAC 16-17,EXTERNAL AGENCIES AND BODIES,2103841565,1000070537
14.03.2024,Corporate,SCOTTISH EQUITABLE PLC,"20,067.33",A. V. C. TO OTHER PENSION,PAYROLL CREDITORS - EXTERNAL AVCS (LOCAL GOVT),2103839370,1000026367
21.03.2024,DSO,CRATUS BUILDING SERVICES LIMITED,"20,062.92",SR TEMPORARY ACCOMMODATION DD,OTHER CONTRACTORS,2103842865,3000001055
08.03.2024,Children and Adults,PEOPLE PLUS GROUP LTD (INDEPENDENT LIVING SERVICES),"20,057.14",LD LTS 18-64,PAYMENTS TO CLIENTS (DIRECT PAYMENTS),2103836231,1000061886
14.03.2024,Children and Adults,REDACTED PERSONAL DATA,"20,000.00",SFS MGMT & SUPPORT,LEGAL FEES & COURT COSTS,2103839555,1000069179
18.03.2024,Children and Adults,ST JAMES CE PRIMARY SCHOOL,"20,000.00",EHCP INCLUSION FUND,SCHOOLS CAPITATION,2103841233,5001000070
18.03.2024,Children and Adults,CHANGE GROW LIVE SERVICES LTD,"20,000.00",ROUGH SLEEPERS SM,OTHER CONTRACTORS,5902627203,1000082721
21.03.2024,Children and Adults,COMMUNITY SOUTHWARK,"20,000.00",COMMUNITY HEALTH AMBASSADORS,EXTERNAL AGENCIES AND BODIES,5902628145,1000018147
21.03.2024,Children and Adults,MENTIVITY,"20,000.00",SUPERZONES,EXTERNAL AGENCIES AND BODIES,5902628636,1000081738
26.03.2024,Finance,FAMILY FUND TRADING LTD,"20,000.00",SESS,OTHER PAYMENTS FOR CLIENTS,5902629178,1000071092
28.03.2024,Children and Adults,FAITHFUL & GOULD,"20,000.00",CAPITAL PS (SOC SERV),CONSTRUCTION FEES,5902630028,1000061390
28.03.2024,Children and Adults,LIONCARE LIMITED,"19,938.76",CHILDREN�S RESID,RESIDENTIAL CARE,2103846615,1000065330
27.03.2024,Children and Adults,IVYDALE PRIMARY SCHOOL,"19,895.00",LBS MAINSTREAM,SCHOOLS CAPITATION,2103842548,5001000038
22.03.2024,Children and Adults,IVYDALE PRIMARY SCHOOL,"19,895.00",LBS MAINSTREAM,SCHOOLS CAPITATION,2103843295,5001000038
25.03.2024,Children and Adults,BEST BEGINNINGS,"19,885.75",FAMILY HUBS GRANT,EXTERNAL AGENCIES AND BODIES,5902629096,1000090282
25.03.2024,Environment Neighbourhoods and Growth,MARWOOD ELECTRICAL COMPANY LTD,"19,872.82",PUBLIC LIGHTING,MATERIALS,5902629115,1001874
22.03.2024,Housing,SILK & MACKMAN SERVICES LTD,"19,855.00",TA HOSTELS,BUILDING R&M,5902628728,1000035282
13.03.2024,Environment Neighbourhoods and Growth,METIS CONSULTANTS LIMITED,"19,801.97",CAPITAL PS (LEISURE),CONSTRUCTION,5902627044,1000086330
07.03.2024,Children and Adults,CHANNELS & CHOICES FOSTERING LTD,"19,800.00",CHILDREN�S RESID,RESIDENTIAL CARE,2103835344,1000052855
28.03.2024,Children and Adults,CHANNELS & CHOICES FOSTERING LTD,"19,800.00",CHILDREN�S RESID,RESIDENTIAL CARE,2103846628,1000052855
25.03.2024,Environment Neighbourhoods and Growth,GLENDALE COUNTRYSIDE LTD,"19,723.81",TREES TERM CONTRACT,TREE MAINTENANCE,5902629128,1000070980
22.03.2024,Children and Adults,URBAN MISSION SCHOOLS AND COMMUNITY,"19,600.24",INDEP MAINSTREAM,STATEMENTED FEES,2103844408,1000086898
20.03.2024,Housing,BELSHAW & CURTIN SOLICITORS,"19,583.33",DISREPAIR,PAYMENTS FOR LEGAL SERVICES,2103842655,1767379
19.03.2024,Housing,BETHEL ROCK LTD,"19,566.31",PSL PLACEMENTS,EXTERNAL AGENCIES AND BODIES,5902627917,1000080864
28.03.2024,Children and Adults,HIGHVIEW CARE LTD,"19,485.67",CHILDREN�S RESID,RESIDENTIAL CARE,2103846632,1000089728
27.03.2024,Housing,REDACTED PERSONAL DATA,"19,479.17",DISREPAIR,PAYMENTS FOR LEGAL SERVICES,2103846546,1000081260
28.03.2024,Children and Adults,MCRAE RESIDENTIAL CARE SERVICES LTD,"19,472.34",CHILDREN�S RESID,RESIDENTIAL CARE,2103849053,1000050558
28.03.2024,Children and Adults,MCRAE RESIDENTIAL CARE SERVICES LTD,"19,472.34",CHILDREN�S RESID,RESIDENTIAL CARE,2103849056,1000050558
15.03.2024,Environment Neighbourhoods and Growth,SUSTRANS LTD,"19,460.00",STREETS FOR PEOPLE - CONTROLLED PARKING,CONSULTANTS SERVICES,5902627613,1000047385
04.03.2024,Children and Adults,PROSPERO RECRUITMENT LTD,"19,435.00",AP & HOSPITAL SCHLS,STATEMENTED FEES,2103834192,1000082492
26.03.2024,Children and Adults,WANDSWORTH COUNCIL,"19,424.52",OTHER LA SPECIAL,STATEMENTED FEES,2103845082,1000020692
14.03.2024,Finance,LG FUTURES LTD,"19,380.00",CORPORATE SERVICES AND F&G,SUBSCRIPTIONS,5902627181,1000046563
28.03.2024,Children and Adults,THE SALMON YOUTH CENTRE,"19,343.00",SHORT BREAKS,EXTERNAL AGENCIES AND BODIES,5902629913,1000040686
10.03.2024,Children and Adults,LONDON CARE LTD,"19,323.36",TRANSFORMING COM E,HOMECARE - C&V,5902625877,1000003398
28.03.2024,Children and Adults,LONDON CARE LTD,"19,323.36",TRANSFORMING COM E,HOMECARE - C&V,5902630422,1000003398
14.03.2024,Children and Adults,NATIONAL LITERACY TRUST,"19,250.00",FAMILY HUBS GRANT,EXTERNAL AGENCIES AND BODIES,5902625974,1000049473
11.03.2024,Children and Adults,RIVERLEE CARE HOME,"19,060.00",MEM LTS 65+,NURSING PLACEMENTS FEES,2103838313,1000031567
15.03.2024,Environment Neighbourhoods and Growth,ST GILES TRUST,"19,055.00",SOUTHWARK ANTI VIOLENCE UNIT,GRANTS,5902627509,1013828
25.03.2024,Environment Neighbourhoods and Growth,GLENDALE COUNTRYSIDE LTD,"19,034.73",TREES TERM CONTRACT,TREE MAINTENANCE,5902629130,1000070980
12.03.2024,Children and Adults,BRENT KNOLL SCHOOL,"19,000.00",OTHER LA SPECIAL,STATEMENTED FEES,2103838644,1000073656
26.03.2024,Children and Adults,KINGSDALE FOUNDATION SCHOOL,"19,000.00",AC & FREE - MSTREAM,STATEMENTED FEES,2103845094,1000065405
15.03.2024,Strategy and Communities,PRIVATE PUBLIC LTD,"18,993.75",CORPORATE & DEPARTMENTAL EXPENDITURE,CONSULTANTS SERVICES,5902627631,1000081569
04.03.2024,Children and Adults,CENTRAL & NORTH WEST LONDON,"18,960.88",SEXUAL HEALTH - STI,MEDICAL / HEALTH & SAFETY SERVICES,5902624953,1000066666
12.03.2024,Corporate,COMBER GROVE PRIMARY SCHOOL,"18,919.65",EDUCATION VAT INPUTS,VAT CONTROL ACCOUNT,2103838510,5001000022
13.03.2024,Children and Adults,RESOURCES FOR AUTISM,"18,822.00",SHORT BREAKS INNV FUND,EXTERNAL AGENCIES AND BODIES,5902627092,1000062540
28.03.2024,Children and Adults,WESTGATE LIFESTYLE PROJECT LTD,"18,821.34",CHILDREN�S RESID,RESIDENTIAL CARE,2103846629,1000089215
09.03.2024,Children and Adults,LONDON BOROUGH OF HARINGEY,"18,748.67",PH DIRECTOR'S TEAM,SUBSCRIPTIONS,5902625130,1000070686
22.03.2024,Environment Neighbourhoods and Growth,BOUNCE BACK FOUNDATION,"18,723.35",CHIEF EXECUTIVE'S OFFICE,GRANTS,5902628662,1000090369
07.03.2024,Housing,BCS (ELECTRICAL & BUILDING SERVICES LTD),"18,719.42",GARAGE REPAIRS,BUILDING R&M,5902626001,1000062321
27.03.2024,Children and Adults,ALFRED SALTER PRIMARY SCHOOL,"18,704.00",LBS MAINSTREAM,SCHOOLS CAPITATION,2103842557,5001000005
22.03.2024,Children and Adults,ALFRED SALTER PRIMARY SCHOOL,"18,704.00",LBS MAINSTREAM,SCHOOLS CAPITATION,2103843304,5001000005
22.03.2024,Children and Adults,PREMIER ROOFING AND CONSTRUCTION LTD,"18,671.86",CAPITAL PS (EDUCATION),CONSTRUCTION,2103844386,3000002158
28.03.2024,Environment Neighbourhoods and Growth,F M CONWAY LTD,"18,671.57",CAPITAL PS (LEISURE),CONSTRUCTION,2103844450,4001384
11.03.2024,Children and Adults,ALWAYS INCLUSIVE LTD,"18,620.00",LD LTS 18-64,SUPPORTED LIVING,2103837385,1000088268
14.03.2024,Finance,WORKMAN LLP,"18,599.87",14-20 SHAND STREET,SERVICE CHARGES,2103827435,1000063692
11.03.2024,Children and Adults,POSITIVE SOLUTIONS KENT,"18,550.72",LD LTS 18-64,RESIDENTIAL CARE,2103837463,1000090389
07.03.2024,Finance,FEREDAY POLLARD ARCHITECTS LIMITED,"18,503.00",MASTER PLAN - H/WAY & TRANS INTERCHANGE,PROFESSIONAL FEES,5902625885,1000087240
13.03.2024,Governance and Assurance,CORPORATE DOCUMENT SERVICES LTD,"18,409.65",REPAIR AND MAINTENANCE SERVICES,PRINTING,5902627083,11324274
24.03.2024,Children and Adults,STOCKLEY BUILDING SERVICES LTD,"18,346.30",CAPITAL PS (SOC SERV),CONSTRUCTION,5902628230,1000089995
28.03.2024,Children and Adults,ISOS PARTNERSHIP LLP,"18,333.00",SERVICE DEVELOPMENT UNIT,PROFESSIONAL FEES,5902630139,1000089916
19.03.2024,Children and Adults,CORAM ACADEMY LTD,"18,328.64",ADOPT LONDON SOUTH,SUBSCRIPTIONS,5902628143,1000076627
12.03.2024,Children and Adults,ARCO ACADEMY,"18,280.60",AC & FREE - MSTREAM,STATEMENTED FEES,2103838631,1000080706
12.03.2024,Corporate,HAYMERLE SCHOOL,"18,267.69",EDUCATION VAT INPUTS,VAT CONTROL ACCOUNT,2103838557,5001000045
27.03.2024,Children and Adults,ST MARY MAGDALENE CE SCHOOL,"18,250.00",LBS MAINSTREAM,SCHOOLS CAPITATION,2103842565,5001000080
22.03.2024,Children and Adults,ST MARY MAGDALENE CE SCHOOL,"18,250.00",LBS MAINSTREAM,SCHOOLS CAPITATION,2103843312,5001000080
28.03.2024,Children and Adults,KEYS PCE LTD,"18,240.00",CHILDREN�S RESID,RESIDENTIAL CARE,2103846611,1000080090
01.03.2024,Children and Adults,ALBION PRIMARY SCHOOL,"18,238.72",FREE HEALTHY SCHOOL MEALS,EARLY YEARS - 3 AND 4 YEAR OLDS,2103826371,5001000000
11.03.2024,Children and Adults,HIGHVIEW CARE LTD,"18,228.53",CHILDREN�S RESID,RESIDENTIAL CARE,2103838417,1000089728
01.03.2024,Children and Adults,GALLEYWALL PRIMARY SCHOOL,"18,218.45",FREE HEALTHY SCHOOL MEALS,EARLY YEARS - 3 AND 4 YEAR OLDS,2103826372,1000078128
20.03.2024,Children and Adults,LEWISHAM AND GREENWICH NHS TRUST,"18,124.29",SEXUAL HEALTH - STI,MEDICAL / HEALTH & SAFETY SERVICES,5902628146,1000076183
06.03.2024,Children and Adults,THE CHILDREN�S HOMES ASSOCIATION LI,"18,100.00",CHILDREN�S RES PROJ,RECRUITMENT ADVERTISING,5902625590,1000090840
04.03.2024,Environment Neighbourhoods and Growth,FACULTATIEVE TECHNOLOGIES LTD,"18,097.75",CREMATORIUM,PLANNED MAINTENANCE,5902624659,1000077525
25.03.2024,Environment Neighbourhoods and Growth,CONSTELLIA PUBLIC LIMITED,"18,094.31",TREES TERM CONTRACT,TREE MAINTENANCE,5902629050,1000088137
06.03.2024,DSO,ARMINA LTD,"18,074.28",ROTHERHITHE & BERMONDSEY DD,OTHER CONTRACTORS,2103834365,3000002121
25.03.2024,Environment Neighbourhoods and Growth,KENT COUNTY COUNCIL - LASER,"18,011.80",DULWICH LEISURE CENTRE,ELECTRICITY,5902628701,1000012926
22.03.2024,Environment Neighbourhoods and Growth,BOUNCE BACK FOUNDATION,"17,846.22",CHIEF EXECUTIVE'S OFFICE,GRANTS,5902628665,1000090369
28.03.2024,Children and Adults,TACT,"17,725.24",FRIENDS & FAMILY FOSTERING,EXTERNAL AGENCIES AND BODIES,2103846640,1000012941
18.03.2024,Environment Neighbourhoods and Growth,CYCLE CONFIDENT LTD,"17,721.67",NON LCN CYCLE TRAINING,PROFESSIONAL FEES,5902627137,1000070228
13.03.2024,Environment Neighbourhoods and Growth,KENT COUNTY COUNCIL - LASER,"17,645.57",SEVEN ISLANDS LEISURE CENTRE,ELECTRICITY,5902627128,1000012926
20.03.2024,Finance,ETUDE CONSULTING LIMITED,"17,630.00",PLANNING POLICY TEAM,CONSULTANTS SERVICES,5902628231,1000089774
07.03.2024,Children and Adults,WESTGATE LIFESTYLE PROJECT LTD,"17,607.06",CHILDREN�S RESID,RESIDENTIAL CARE,2103835341,1000089215
22.03.2024,Housing,A & E ELKINS LTD,"17,606.43",CAPITAL PS (HRA),CONSTRUCTION MAIN CONTRACT -CERTIFICATED,2103841534,4012501
28.03.2024,Children and Adults,INTEGRATED FOSTERING SERVICES LTD,"17,599.01",FRIENDS & FAMILY FOSTERING,EXTERNAL AGENCIES AND BODIES,2103846726,1000082605
11.03.2024,Finance,WE ARE WATERLOO LTD,"17,482.55",WATERLOO QUARTER,EXTERNAL AGENCIES AND BODIES,5902626356,1000057618
21.03.2024,Environment Neighbourhoods and Growth,GUILDMORE LTD,"17,470.44",CAPITAL PS (REGEN),CONSTRUCTION MAIN CONTRACT -CERTIFICATED,2103842872,3000002150
11.03.2024,Children and Adults,ROSEDENE NURSING HOME,"17,468.80",LD LTS 18-64,RESIDENTIAL CARE,2103837800,1163215
28.03.2024,Children and Adults,MY CHOICE CHILDREN'S HOMES LIMITED,"17,439.71",CHILDREN�S RESID,RESIDENTIAL CARE,2103846614,1000085839
28.03.2024,Children and Adults,KEYS PCE LTD,"17,380.00",CHILDREN�S RESID,RESIDENTIAL CARE,2103846612,1000080090
14.03.2024,Finance,REDACTED PERSONAL DATA,"17,331.50",ENFORCEMENT AND MONITORING TEAM,LEGAL FEES & COURT COSTS,2103839521,1000086093
20.03.2024,Children and Adults,CENTRAL & NORTH WEST LONDON,"17,321.85",SEXUAL HEALTH - STI,MEDICAL / HEALTH & SAFETY SERVICES,5902628165,1000066666
11.03.2024,Children and Adults,DIAGRAMA HEALTH CARE,"17,304.64",LD LTS 18-64,RESIDENTIAL CARE,2103837403,1000075492
18.03.2024,Housing,CROWN HOUSING LTD,"17,235.50",NIGHTLY TA (NSC),EXTERNAL AGENCIES AND BODIES,5902627849,1000075070
15.03.2024,Children and Adults,ACORN CARE & EDUCATION LTD,"17,234.65",NMSS/ INDEP SPECIAL,STATEMENTED FEES,2103841205,1000085841
15.03.2024,Children and Adults,ACORN CARE & EDUCATION LTD,"17,234.64",NMSS/ INDEP SPECIAL,STATEMENTED FEES,2103841204,1000085841
17.03.2024,Children and Adults,COUNTRY COURT CARE HOMES 2 LTD,"17,208.29",PHY LTS 65+,RESIDENTIAL CARE,5902627100,1000080172
28.03.2024,Children and Adults,TUTELAGE CARE GROUP LTD,"17,112.00",CHILDREN�S RESID,RESIDENTIAL CARE,2103849058,1000088232
15.03.2024,Children and Adults,CITY OF LONDON ACADEMY,"17,005.00",PUBLIC HEALTH FHSM,SCHOOLS CAPITATION,2103841100,1000049128
24.03.2024,Environment Neighbourhoods and Growth,DECONSTRUCT (UK) LTD,"17,000.00",CAPITAL PS (REGEN),CONSTRUCTION SITE COSTS,2103842869,3000002260
23.03.2024,Housing,PINNICALE BUILDING SERVICES LIMITED,"17,000.00",CAPITAL PS (HOUSING GF),CAPITAL GRANTS,5902628302,1000082308
07.03.2024,Housing,RNS HOMES LTD,"16,997.00",PSL PLACEMENTS,EXTERNAL AGENCIES AND BODIES,5902625952,1000090648
15.03.2024,Children and Adults,ROYAL FREE LONDON NHS FOUNDATION TRUST,"16,997.00",PH DIRECTOR'S TEAM,SUBSCRIPTIONS,5902627585,1000076322
21.03.2024,Environment Neighbourhoods and Growth,MURPHY GEOSPATIAL UK LTD,"16,965.60",CAPITAL PS (LEISURE),CONSTRUCTION,5902628413,1000087178
14.03.2024,Children and Adults,LONDON BOROUGH OF TOWER HAMLETS,"16,955.54",STOP SMOKING,EXTERNAL AGENCIES AND BODIES,5902627198,1000054528
13.03.2024,Housing,BUGLER DEVELOPMENTS LIMITED,"16,935.43",CAPITAL PS (HRA),CONSTRUCTION SITE COSTS,5902626974,1000088776
28.03.2024,Children and Adults,HORIZON CARE & EDUCATION GROUP LTD,"16,881.67",CHILDREN�S RESID,RESIDENTIAL CARE,2103846658,1000075467
28.03.2024,Environment Neighbourhoods and Growth,PWLC PROJECTS,"16,860.00",STREETS FOR PEOPLE - CYCLING,MISCELLANEOUS RECHARGES,5902630103,1000079351
28.03.2024,Children and Adults,ACORN HOMES (UK) LTD,"16,828.66",CHILDREN�S RESID,RESIDENTIAL CARE,2103846620,1000080423
08.03.2024,Housing,BURKE NIAZI SOLICITORS AND ADVOCATES,"16,666.67",DISREPAIR,PAYMENTS FOR LEGAL SERVICES,2103830056,1000058360
26.03.2024,Children and Adults,KINGSDALE FOUNDATION SCHOOL,"16,666.67",AC & FREE - MSTREAM,STATEMENTED FEES,2103845092,1000065405
11.03.2024,Children and Adults,WELLSPRING CARE HOMES LIMITED,"16,632.00",LD LTS 18-64 AAD,SUPPORTED LIVING,2103838258,1000088216
26.03.2024,Children and Adults,WANDSWORTH COUNCIL,"16,499.36",OTHER LA SPECIAL,STATEMENTED FEES,2103845090,1000020692
27.03.2024,Children and Adults,ILDERTON PRIMARY SCHOOL,"16,467.00",LBS MAINSTREAM,SCHOOLS CAPITATION,2103842547,5001000037
22.03.2024,Children and Adults,ILDERTON PRIMARY SCHOOL,"16,467.00",LBS MAINSTREAM,SCHOOLS CAPITATION,2103843294,5001000037
12.03.2024,Corporate,GRANGE PRIMARY SCHOOL,"16,436.62",EDUCATION VAT INPUTS,VAT CONTROL ACCOUNT,2103838524,5001000029
25.03.2024,Environment Neighbourhoods and Growth,KENT COUNTY COUNCIL - LASER,"16,411.13",DULWICH LEISURE CENTRE,ELECTRICITY,5902628696,1000012926
14.03.2024,Children and Adults,ROTHERHITHE PRIMARY SCHOOL,"16,366.00",DSG CONTINGENCY,MISCELLANEOUS RECHARGES,5902627281,1000089862
23.03.2024,Children and Adults,NHS SOUTH EAST LONDON CCG,"16,339.35",PARTNERSHIP COMMISSIONING TEAM,EXTERNAL AGENCIES AND BODIES,5902627952,1000085592
21.03.2024,Environment Neighbourhoods and Growth,FAITHFUL & GOULD,"16,130.00",CAPITAL PS (REGEN),CONSTRUCTION FEES  - EXTERNAL,5902628634,1000061390
12.03.2024,Housing,RELIANCE RESIDENTIAL,"16,129.30",PSL PLACEMENTS,EXTERNAL AGENCIES AND BODIES,5902626590,1000084814
12.03.2024,Children and Adults,PROSPERO RECRUITMENT LTD,"16,116.75",ALTERNATIVE PROVISION,EXTERNAL AGENCIES AND BODIES,5902626641,1000082492
26.03.2024,Children and Adults,JAMMA UMOJA (RESIDENTIAL SERVICES),"16,111.14",RESID PARENT ASSESS,RESIDENTIAL CARE,2103844807,1000080325
25.03.2024,Children and Adults,ST GILES TRUST,"16,100.00",GRANT FUNDED PROJ�S,EXTERNAL AGENCIES AND BODIES,5902628652,1013828
28.03.2024,Children and Adults,TUTELAGE CARE GROUP LTD,"16,008.00",CHILDREN�S RESID,RESIDENTIAL CARE,2103849059,1000088232
18.03.2024,Children and Adults,SOUTHWARK PARK PRIMARY SCHOOL,"16,000.00",EHCP INCLUSION FUND,SCHOOLS CAPITATION,2103841227,5001000062
11.03.2024,Corporate,AMPLIFY TECHNOLOGY LIMITED,"16,000.00",ERP PROGRAMME BUDGET,CONSULTANTS SERVICES,5902626407,1000090570
04.03.2024,Children and Adults,HAVERSTOCK,"15,990.00",CAPITAL PS (EDUCATION),CONSTRUCTION FEES - ARCHITECT,5902625052,1000074288
28.03.2024,Children and Adults,NORTHUMBERLAND COUNTY COUNCIL,"15,950.00",CHILDREN�S RESID,RESIDENTIAL CARE,2103846633,1000030424
27.03.2024,Children and Adults,ST JAMES CE PRIMARY SCHOOL,"15,850.00",LBS MAINSTREAM,SCHOOLS CAPITATION,2103842563,5001000070
22.03.2024,Children and Adults,ST JAMES CE PRIMARY SCHOOL,"15,850.00",LBS MAINSTREAM,SCHOOLS CAPITATION,2103843310,5001000070
28.03.2024,DSO,ARMINA LTD,"15,782.11",ROTHERHITHE & BERMONDSEY DD,OTHER CONTRACTORS,2103846577,3000002121
07.03.2024,Children and Adults,ALFRED SALTER PRIMARY SCHOOL,"15,777.60",COVID-19 SCHOOLS GRANTS,SCHOOLS CAPITATION,2103835427,5001000005
26.03.2024,Children and Adults,TOGETHER FOR CHILDREN,"15,695.00",SCH TRANS � TRAVEL,M&M ALLOWANCE CO-OPS,5902629324,1000089719
12.03.2024,Corporate,SOUTHWARK PARK PRIMARY SCHOOL,"15,692.53",EDUCATION VAT INPUTS,VAT CONTROL ACCOUNT,2103838573,5001000062
19.03.2024,Children and Adults,COMMITTED CARE HOUSING,"15,656.72",SEMI-IND LAC 16-17,EXTERNAL AGENCIES AND BODIES,2103841567,1000086257
14.03.2024,Suspense,EDWARDES BROS (DULWICH) LTD,"15,637.40",SUSPENSE ACCOUNT (COMPANY CODE 1000),CREDITORS -GR/IR CLEARING ACCOUNT,5902627411,1004945
22.03.2024,Environment Neighbourhoods and Growth,VIVACITY LABS LIMITED,"15,634.00",CAPITAL PS (LEISURE),CONSTRUCTION FEES - ARCHITECT,5902627926,1000083935
14.03.2024,Housing,DUCTCLEAN (UK) LTD,"15,580.50",DUCTCLEAN,I-WORLD CONTRACTORS HOLDING ACCOUNT,2103839391,3000001635
12.03.2024,Children and Adults,TRANSPORT TRADING LTD,"15,531.50",SCH TRANS � TRAVEL,PUBLIC TRANSPORT,5902626682,11252077
08.03.2024,Children and Adults,REDACTED PERSONAL DATA,"15,525.44",LD LTS 18-64,PAYMENTS TO CLIENTS (DIRECT PAYMENTS),2103836838,1000046071
25.03.2024,Housing,SANDERSONS BUILDING SERVICES LTD,"15,475.63",DISREPAIR,BUILDING R&M,2103844440,3000002065
28.03.2024,Children and Adults,ACORN CARE & EDUCATION LTD,"15,413.49",CHILDREN�S RESID,RESIDENTIAL CARE,2103846631,1000085841
20.03.2024,Children and Adults,SURREY SQUARE PRIMARY SCHOOL,"15,400.00",SUPERZONES,EXTERNAL AGENCIES AND BODIES,2103842642,1000082648
20.03.2024,Children and Adults,KEYWORTH PRIMARY SCHOOL,"15,400.00",SUPERZONES,EXTERNAL AGENCIES AND BODIES,2103842643,5001000041
20.03.2024,Children and Adults,BACONS COLLEGE,"15,400.00",SUPERZONES,EXTERNAL AGENCIES AND BODIES,2103842756,1693125
20.03.2024,Children and Adults,1ST PLACE CHILDREN & PARENTS CENTRE,"15,386.67",FAMILY HUBS GRANT,PROFESSIONAL FEES,5902628173,1000049952
26.03.2024,Children and Adults,WANDSWORTH COUNCIL,"15,316.55",OTHER LA SPECIAL,STATEMENTED FEES,2103845089,1000020692
17.03.2024,Children and Adults,LONDON BOROUGH OF SUTTON,"15,297.30",PH DIRECTOR'S TEAM,SUBSCRIPTIONS,5902627187,1000082458
19.03.2024,Children and Adults,PILGRIM'S WAY PRIMARY SCHOOL,"15,263.61",SUPPORTING FAMILIES,EXTERNAL AGENCIES AND BODIES,5902628127,5001000054
26.03.2024,Environment Neighbourhoods and Growth,STANDAGE & CO LTD,"15,226.43",CAPITAL PS (REGEN),CONSTRUCTION,2103844782,4002817
28.03.2024,DSO,ARMINA LTD,"15,222.53",WALWORTH DD,OTHER CONTRACTORS,2103846577,3000002121
20.03.2024,Children and Adults,Rise Adaptations Ltd,"15,200.00",CAPITAL PS (SOC SERV),CONSTRUCTION FEES - ARCHITECT,2103842800,3000002270
22.03.2024,Children and Adults,SPRING COMMUNITY HUB,"15,200.00",HOLIDAY ACTIVITIES & FOOD,EXTERNAL AGENCIES AND BODIES,5902628226,1000083089
04.03.2024,Environment Neighbourhoods and Growth,METIS CONSULTANTS LIMITED,"15,166.67",STREET WORKS OVERHEADS,MISCELLANEOUS RECHARGES,5902624944,1000086330
04.03.2024,Environment Neighbourhoods and Growth,METIS CONSULTANTS LIMITED,"15,166.67",STREET WORKS OVERHEADS,MISCELLANEOUS RECHARGES,5902624945,1000086330
04.03.2024,Environment Neighbourhoods and Growth,METIS CONSULTANTS LIMITED,"15,166.66",STREET WORKS OVERHEADS,MISCELLANEOUS RECHARGES,5902624947,1000086330
10.03.2024,Housing,MARTIN ARNOLD LTD,"15,122.19",CAPITAL PS (HRA),CONSTRUCTION FEES - EMPLOYERS AGENT,5902626098,1000076993
14.03.2024,Governance and Assurance,REDACTED PERSONAL DATA,"15,112.50",COMMUNITIES,LEGAL FEES & COURT COSTS,2103839510,1000040341
15.03.2024,Housing,RNS HOMES LTD,"15,072.41",PSL PLACEMENTS,EXTERNAL AGENCIES AND BODIES,5902627622,1000090648
08.03.2024,Environment Neighbourhoods and Growth,HARRISON DESIGN DEVELOPMENT LTD,"15,042.50",CEMETERIES,CONSULTANTS SERVICES,5902625027,1000066896
22.03.2024,Housing,LTA DIRECT LTD,"15,028.09",PSL PLACEMENTS,EXTERNAL AGENCIES AND BODIES,5902628741,1000085314
14.03.2024,Finance,REDACTED PERSONAL DATA,"15,000.00",BUSINESS UNIT MANAGER & SUPPORT COSTS,LEGAL FEES & COURT COSTS,2103839520,1000055067
15.03.2024,Children and Adults,BROADLANDS HALL LIMITED,"15,000.00",DISABILITIES LAC,EXTERNAL AGENCIES AND BODIES,2103841153,1000084303
02.03.2024,Housing,PINNICALE BUILDING SERVICES LIMITED,"15,000.00",CAPITAL PS (HOUSING GF),CAPITAL GRANTS,5902624151,1000082308
04.03.2024,Children and Adults,ALLPAY LTD (CHILDREN - PETTY CASH),"15,000.00",C & F FINANCE TEAM,OTHER PAYMENTS FOR CLIENTS,5902625096,1000079888
24.03.2024,Children and Adults,THE CENTRE FOR OUTCOMES OF CARE,"15,000.00",CHILDREN�S RES PROJ,CONSULTANTS SERVICES,5902628225,1000083363
31.03.2024,Children and Adults,HL COACHING LIMITED,"15,000.00",SSMTRG,OTHER CONTRACTORS,5902629676,1000090911
08.03.2024,Children and Adults,REDACTED PERSONAL DATA,"14,990.08",LD LTS 18-64,PAYMENTS TO CLIENTS (DIRECT PAYMENTS),2103836634,1000070120
04.03.2024,Housing,ARCHITECTURAL DECORATORS LTD,"14,962.50",CAPITAL PS (HRA),CONSTRUCTION MAIN CONTRACT -CERTIFICATED,2103834074,3000001065
13.03.2024,Housing,GAS ADVISORY SERVICES LIMITED,"14,957.23",PHOENIX,I-WORLD CONTRACTORS HOLDING ACCOUNT,5902626919,1000064649
04.03.2024,Corporate,JOHN RUSKIN PRIMARY SCHOOL,"14,947.84",EDUCATION VAT INPUTS,VAT CONTROL ACCOUNT,2103832274,5001000040
12.03.2024,Corporate,CAMELOT PRIMARY SCHOOL,"14,924.96",EDUCATION VAT INPUTS,VAT CONTROL ACCOUNT,2103838556,5001000014
24.03.2024,Housing,BUILDING ASSOCIATES LTD,"14,920.00",CAPITAL PS (HRA),CONSTRUCTION MAIN CONTRACT,2103842868,3000002218
13.03.2024,Environment Neighbourhoods and Growth,F M CONWAY LTD,"14,919.00",CAPITAL PS (LEISURE),CONSTRUCTION FEES  - EXTERNAL,2103839356,4001384
28.03.2024,Children and Adults,PROSPERO RECRUITMENT LTD,"14,730.75",ALTERNATIVE PROVISION,EXTERNAL AGENCIES AND BODIES,5902630410,1000082492
26.03.2024,Housing,ASPEN BUILD (EAST ANGLIA) LTD,"14,724.68",CAPITAL PS (HRA),CONSTRUCTION MAIN CONTRACT -CERTIFICATED,2103845101,3000002075
21.03.2024,Children and Adults,FAITHFUL & GOULD,"14,711.60",CAPITAL PS (SOC SERV),CONSTRUCTION FEES  - EXTERNAL,5902627789,1000061390
05.03.2024,Children and Adults,FAMILY ACTION,"14,661.25",ADOPT LONDON SOUTH,PROFESSIONAL FEES,5902625169,1013739
19.03.2024,Housing,HM REVENUE & CUSTOMS,"14,659.06",APPRENTICE LEVY,APPRENTICESHIP LEVY,2103829541,1016231
04.03.2024,Children and Adults,STREET SUPPORT LTD,"14,656.00",16-17 AND CL TEAM,OTHER PAYMENTS FOR CLIENTS,2103834077,1000090710
13.03.2024,Housing,BUILDTRUST LTD,"14,545.55",BUILD TRUST,I-WORLD CONTRACTORS HOLDING ACCOUNT,2103839357,3000002010
28.03.2024,Children and Adults,CARE2SHARE2 LTD,"14,500.00",CHILDREN�S RESID,RESIDENTIAL CARE,2103846608,1000086672
16.03.2024,Housing,BEACON PARTNERSHIP LLP,"14,469.00",AYLESBURY AGENCY COSTS,PROFESSIONAL FEES,5902627077,1000082300
04.03.2024,Children and Adults,SAFE FAMILIES FOR CHILDREN,"14,400.00",DIRECTOR OF C&F,PROFESSIONAL FEES,5902624941,1000089577
21.03.2024,Strategy and Communities,NEW LOCAL LTD,"14,300.00",CORPORATE & DEPARTMENTAL EXPENDITURE,SUBSCRIPTIONS,5902628646,1000004785
12.03.2024,Corporate,ST JOHNS & ST CLEMENTS CE SCHOOL,"14,244.66",EDUCATION VAT INPUTS,VAT CONTROL ACCOUNT,2103838535,5001000073
08.03.2024,Housing,PULSE ASSOCIATES LTD (T/A PULSE CONSULT),"14,225.00",CAPITAL PS (HRA),CONSTRUCTION FEES  - EXTERNAL,5902625093,1000087233
08.03.2024,Housing,SOUTH LONDON & MAUDSLEY HOSPITAL,"14,103.99",RAPID REHOUSING,PROFESSIONAL FEES,5902625088,1000013096
14.03.2024,Housing,VEOLIA ES SOUTHWARK LTD,"14,002.17",CAPITAL PS (HRA),CONSTRUCTION SITE COSTS,5902627237,1000056979
15.03.2024,Children and Adults,BROADLANDS HALL LIMITED,"14,000.00",DISABILITIES LAC,RESIDENTIAL CARE,2103841154,1000084303
18.03.2024,Children and Adults,SURREY SQUARE PRIMARY SCHOOL,"14,000.00",EHCP INCLUSION FUND,SCHOOLS CAPITATION,2103841243,1000082648
11.03.2024,Housing,LPS CONSULTING (LONDON) LIMITED,"14,000.00",DIRECTOR OF ASSET MANAGEMENT,PROFESSIONAL FEES,5902625533,1000084208
15.03.2024,Corporate,GROUP FINANCE SOLUTIONS CONSULTING,"14,000.00",ERP PROGRAMME BUDGET,PROFESSIONAL FEES,5902627496,1000090315
12.03.2024,Corporate,MICHAEL FARADAY PRIMARY SCHOOL,"13,997.63",EDUCATION VAT INPUTS,VAT CONTROL ACCOUNT,2103838554,5001000048
20.03.2024,Housing,CALFORD SEADEN LLP,"13,994.78",CAPITAL PS (HRA),CONSTRUCTION FEES  - EXTERNAL,5902628147,1061592
27.03.2024,Children and Adults,THE GROVE CHILDRENS CENTRE,"13,958.00",LBS MAINSTREAM,SCHOOLS CAPITATION,2103842540,5001000090
22.03.2024,Children and Adults,THE GROVE CHILDRENS CENTRE,"13,958.00",LBS MAINSTREAM,SCHOOLS CAPITATION,2103843287,5001000090
20.03.2024,Environment Neighbourhoods and Growth,ALLIANCE LEISURE SERVICES LTD,"13,950.00",LEISURE CENTRAL COST,MARKETING & PUBLICITY SERVICES,5902628266,1000088982
12.03.2024,Corporate,COMBER GROVE PRIMARY SCHOOL,"13,920.75",EDUCATION VAT INPUTS,VAT CONTROL ACCOUNT,2103838512,5001000022
06.03.2024,Children and Adults,E & E BUILDING SERVICES LTD,"13,906.01",CAPITAL PS (SOC SERV),CONSTRUCTION MAIN CONTRACT,2103835296,3000001176
28.03.2024,Finance,VIRGIN MEDIA,"13,901.44",IT MANAGEMENT,COMMS & COMPUTING CONTRACT CHARGES,5902629904,1000026457
11.03.2024,Children and Adults,CYGNET CARE SERVICES LTD,"13,891.72",LD LTS 18-64,RESIDENTIAL CARE,2103838150,1000050432
31.03.2024,Housing,NIBLOCK (BUILDERS) LTD,"13,871.28",CAPITAL PS (HRA),CONSTRUCTION MAIN CONTRACT -CERTIFICATED,2103845098,3000000235
07.03.2024,Children and Adults,SAFE HAVEN ACCOMODATION LTD,"13,787.43",SEMI-IND LAC 16-17,EXTERNAL AGENCIES AND BODIES,2103835350,1000081573
06.03.2024,DSO,ARMINA LTD,"13,699.60",WALWORTH DD,OTHER CONTRACTORS,2103834365,3000002121
28.03.2024,Housing,JUDGE AND PRIESTLEY SOLICITORS,"13,635.00",DISREPAIR,BUILDING R&M,5902630479,1472217
28.03.2024,Children and Adults,AON SOLUTIONS UK LTD,"13,630.00",DIRECTOR OF EDUCATION,PROFESSIONAL FEES,5902629013,1000000036
16.03.2024,Housing,A & E ELKINS LTD,"13,620.95",CAPITAL PS (HRA),CONSTRUCTION MAIN CONTRACT -CERTIFICATED,2103839374,4012501
21.03.2024,Children and Adults,QUAY HEALTH SOLUTIONS,"13,592.00",DIGITAL HEALTH,EXTERNAL AGENCIES AND BODIES,5902628615,1000079308
11.03.2024,Children and Adults,SPECTRA CARE LTD,"13,585.72",LD LTS 18-64,SUPPORTED LIVING,2103837329,1000086280
27.03.2024,Children and Adults,BARTS HEALTH NHS TRUST,"13,573.88",SEXUAL HEALTH - STI,MEDICAL / HEALTH & SAFETY SERVICES,5902629638,1000055762
11.03.2024,Children and Adults,YPR LIMITED,"13,520.00",LD LTS 18-64,SUPPORTED LIVING,2103837527,1000086517
19.03.2024,Environment Neighbourhoods and Growth,REDACTED PERSONAL DATA,"13,466.10",NO RECOURSE TO PUBLIC FUNDS,ACCOMMODATION CHARGES,5902628073,1000061134
22.03.2024,Children and Adults,ROYAL SOCIETY FOR BLIND CHILDREN,"13,451.37",SPECIALIST POST-16,STATEMENTED FEES,2103844413,1000087497
21.03.2024,Housing,HOMELY HOUSING LETS LTD,"13,401.70",NIGHTLY TA (NSC),EXTERNAL AGENCIES AND BODIES,5902628556,1000050013
20.03.2024,Children and Adults,WALWORTH ACADEMY,"13,400.00",PUBLIC HEALTH FHSM,SCHOOLS CAPITATION,2103842675,1000062868
26.03.2024,Housing,PRB ESTATES LTD,"13,390.98",GARAGE REPAIRS,BUILDING R&M,2103844785,3000001691
20.03.2024,Environment Neighbourhoods and Growth,STUDIO JA PROJECTS LTD,"13,379.00",CAPITAL PS (REGEN),CONSTRUCTION FEES,5902628218,1000087196
28.03.2024,Environment Neighbourhoods and Growth,CLYDE & CO,"13,320.00",FACILITIES MANAGEMENT,PAYMENTS FOR LEGAL SERVICES,5902629921,1000067838
01.03.2024,Governance and Assurance,ATALIAN SERVEST LTD,"13,304.19",FM SERVICES BY INTERSERVE,BUILDING R&M,5902624582,1000088775
21.03.2024,Suspense,UNISON,"13,233.15",SUSPENSE ACCOUNT (COMPANY CODE 1000),PAYROLL CREDITORS - UNION DEDUCTIONS,2103843231,11060053
12.03.2024,Children and Adults,DULWICH WOOD CHILDRENS CENTRE,"13,228.20",DULWICH WOOD NURSERY SCHOOL,EARLY YEARS - 3 AND 4 YEAR OLDS,2103838733,5001000099
19.03.2024,Strategy and Communities,BETA DISTRIBUTION (SOUTH) LTD,"13,215.50",SOUTHWARK LIFE,PROFESSIONAL FEES,5902627966,1000044844
28.03.2024,Governance and Assurance,KORN FERRY HAY GROUP LTD,"13,213.00",HR PAYROLL COSTS,PAYMENTS FOR PERSONNEL MANAGEMENT SERVS,5902630183,1000079084
23.03.2024,Children and Adults,BURGESS SPORTS,"13,200.00",HOLIDAY ACTIVITIES & FOOD,EXTERNAL AGENCIES AND BODIES,5902627945,1000069532
11.03.2024,Children and Adults,PECULIAR CARE HOMES LTD,"13,148.00",LD LTS 18-64,SUPPORTED LIVING,2103837594,1000076991
11.03.2024,Children and Adults,PECULIAR CARE HOMES LTD,"13,129.36",LD LTS 18-64,SUPPORTED LIVING,2103837324,1000076991
19.03.2024,Children and Adults,CAMELOT PRIMARY SCHOOL,"13,125.00",HOLIDAY ACTIVITIES & FOOD,EXTERNAL AGENCIES AND BODIES,5902628112,5001000014
19.03.2024,Children and Adults,INTEGRATED FOSTERING SERVICES LTD,"13,057.33",FRIENDS & FAMILY FOSTERING,EXTERNAL AGENCIES AND BODIES,2103841560,1000082605
15.03.2024,Environment Neighbourhoods and Growth,METIS CONSULTANTS LIMITED,"13,025.00",CAPITAL PS (LEISURE),CONSTRUCTION FEES - ARCHITECT,5902627593,1000086330
13.03.2024,Environment Neighbourhoods and Growth,KENT COUNTY COUNCIL - LASER,"13,007.51",PECKHAM LIBRARY,ELECTRICITY,5902627026,1000012926
11.03.2024,Children and Adults,VOICEABILITY ADVOCACY,"13,000.00",SHORT BREAKS INNV FUND,EXTERNAL AGENCIES AND BODIES,5902625820,1000064254
22.03.2024,Children and Adults,PECAN LTD,"13,000.00",SUSTAINABLE FOOD,EXTERNAL AGENCIES AND BODIES,5902627784,11263114
15.03.2024,Corporate,GROUP FINANCE SOLUTIONS CONSULTING,"12,980.00",ERP PROGRAMME BUDGET,PROFESSIONAL FEES,5902627499,1000090315
02.03.2024,Housing,SOUTH EAST BUILDING CONTRACTORS LTD,"12,960.97",CAPITAL PS (HOUSING GF),CAPITAL GRANTS,5902624573,1000049893
27.03.2024,Housing,COLLECTIVE ENTERPRISES LIMITED,"12,950.00",HANDY PERSONS,COMPUTER CONSUMABLES,5902629622,1000037585
26.03.2024,Children and Adults,CRESSEY OASIS EDUCATION LTD,"12,932.08",NMSS/ INDEP SPECIAL,STATEMENTED FEES,2103845091,1000068133
12.03.2024,Children and Adults,ST DAVIDS COLLEGE,"12,917.40",FURTHER EDUCATION,STATEMENTED FEES,2103838647,1000052749
27.03.2024,Finance,PECKHAM LEVELS LTD,"12,916.69",PROFESSIONAL SERVICES GENERAL,GRANTS,5902629745,1000084365
22.03.2024,Children and Adults,ZENOCH COMMUNITY HUB,"12,880.00",HOLIDAY ACTIVITIES & FOOD,EXTERNAL AGENCIES AND BODIES,5902628141,1000089476
12.03.2024,Corporate,BESSEMER GRANGE PRIMARY SCHOOL,"12,831.79",EDUCATION VAT INPUTS,VAT CONTROL ACCOUNT,2103838528,5001000009
11.03.2024,Children and Adults,CASSRA LLP T/A CROHAM PLACE,"12,811.24",LD LTS 18-64,NURSING PLACEMENTS FEES,2103838259,1000082899
14.03.2024,Children and Adults,DOG KENNEL HILL PRIMARY SCHOOL,"12,800.00",DSG CONTINGENCY,MISCELLANEOUS RECHARGES,5902627287,1000089861
01.03.2024,Children and Adults,EVERYONE HEALTH LTD,"12,785.98",STOP SMOKING,EXTERNAL AGENCIES AND BODIES,5902624453,1000084159
12.03.2024,Children and Adults,ST JAMES HATCHAM CE PRIMARY SCHOOL,"12,770.00",OTHER LA MAINSTREAM,STATEMENTED FEES,2103838635,1000080746
12.03.2024,Children and Adults,ST JAMES HATCHAM CE PRIMARY SCHOOL,"12,770.00",OTHER LA MAINSTREAM,STATEMENTED FEES,2103838636,1000080746
12.03.2024,Children and Adults,ST JAMES HATCHAM CE PRIMARY SCHOOL,"12,770.00",OTHER LA MAINSTREAM,STATEMENTED FEES,2103838637,1000080746
22.03.2024,Children and Adults,SYDENHAM SCHOOL,"12,770.00",OTHER LA MAINSTREAM,STATEMENTED FEES,2103844414,1000079303
07.03.2024,Governance and Assurance,TABRIS LTD,"12,768.00",ILM COSTS,TRAINING,5902625813,1000080027
28.03.2024,Housing,HARROW GREEN LTD,"12,723.07",RESIDENT SERVICES BUSINESS SUPPORT,REMOVAL EXPENSES,5902629677,1000076673
27.03.2024,Children and Adults,GRANGE PRIMARY SCHOOL,"12,721.00",LBS MAINSTREAM,SCHOOLS CAPITATION,2103842545,5001000029
22.03.2024,Children and Adults,GRANGE PRIMARY SCHOOL,"12,721.00",LBS MAINSTREAM,SCHOOLS CAPITATION,2103843292,5001000029
28.03.2024,Children and Adults,INTEGRATED SERVICES PROGRAMME,"12,712.21",FRIENDS & FAMILY FOSTERING,EXTERNAL AGENCIES AND BODIES,2103846637,1642068
13.03.2024,Housing,DUCTCLEAN (UK) LTD,"12,697.97",DUCTCLEAN,I-WORLD CONTRACTORS HOLDING ACCOUNT,2103839367,3000001635
18.03.2024,Housing,NIBLOCK (BUILDERS) LTD,"12,696.54",CAPITAL PS (HRA),CONSTRUCTION MAIN CONTRACT -CERTIFICATED,2103839392,3000000235
11.03.2024,Children and Adults,SALUTEM SHARED SERVICES III LTD,"12,695.20",PHY LTS 65+,RESIDENTIAL CARE,2103837715,1000088099
11.03.2024,Children and Adults,HC-ONE LTD (TOWER BRIDGE CARE HOME),"12,686.49",PHY LTS 65+,"MAND STATUTORY CHARGES, RESIDENTIAL",2103837941,1000067670
25.03.2024,Housing,BRESLIN CONSTRUCTION LTD,"12,650.00",COMMERCIAL PROPERTIES,BUILDING R&M,2103844446,3000001948
20.03.2024,Environment Neighbourhoods and Growth,BUILDING SOFTWARE LTD,"12,650.00",HIGHWAY MAINTENANCE OVERHEADS,PARKING CHARGES,5902628171,1000030337
27.03.2024,Environment Neighbourhoods and Growth,PWLC PROJECTS,"12,645.00",STREETS FOR PEOPLE - CYCLING,MISCELLANEOUS RECHARGES,5902629532,1000079351
08.03.2024,Children and Adults,PEOPLE PLUS GROUP LTD (INDEPENDENT LIVING SERVICES),"12,619.20",LD LTS 18-64,PAYMENTS TO CLIENTS (DIRECT PAYMENTS),2103836777,1000061886
27.03.2024,Finance,WEB LABS LTD,"12,575.00",DIGITAL DELIVERY,CONSULTANTS SERVICES,5902629530,1000039819
27.03.2024,Children and Adults,ROBERT BROWNING PRIMARY SCHOOL,"12,567.00",LBS MAINSTREAM,SCHOOLS CAPITATION,2103842553,5001000057
22.03.2024,Children and Adults,ROBERT BROWNING PRIMARY SCHOOL,"12,567.00",LBS MAINSTREAM,SCHOOLS CAPITATION,2103843300,5001000057
21.03.2024,Children and Adults,EVERYONE HEALTH LTD,"12,509.43",HEALTHY WEIGHT,EXTERNAL AGENCIES AND BODIES,5902628558,1000084159
21.03.2024,Finance,WILSON'S SCHOOL FOUNDATION CIO,"12,500.00",CPHA  MANAGED PROPERTIES,RENTS,2103842984,3000767
21.03.2024,Governance and Assurance,THE ARCH COMPANY PROPERTIES LTD,"12,500.00",160 TOOLEY ST.,RENTS,2103843020,1000082466
21.03.2024,Children and Adults,DOBBIN & SULLIVAN LTD,"12,500.00",THE NEST 255 RYELANE,RENTS,2103843026,1000084055
25.03.2024,Environment Neighbourhoods and Growth,VALLEY PROVINCIAL GROUP LLP,"12,500.00",CAPITAL PS (LEISURE),CONSTRUCTION FEES - INTERNAL,2103843324,3000001895
08.03.2024,Children and Adults,FAITHFUL & GOULD,"12,500.00",CAPITAL PS (EDUCATION),CONSTRUCTION FEES  - EXTERNAL,5902626091,1000061390
11.03.2024,Children and Adults,FERRY CARE LTD,"12,472.96",LD LTS 18-64,RESIDENTIAL CARE,2103838140,1000041775
18.03.2024,Environment Neighbourhoods and Growth,MACCREANOR LAVINGTON LTD,"12,460.25",CAPITAL PS (REGEN),CONSTRUCTION FEES  - EXTERNAL,5902627713,1000075874
04.03.2024,Children and Adults,WHEEL FREEDOM LTD,"12,415.00",SOUTHWARK RESOURCE CENTRE,OTHER EMPLOYEE EXPENSES,5902625106,1000072277
12.03.2024,Corporate,KEYWORTH PRIMARY SCHOOL,"12,407.25",EDUCATION VAT INPUTS,VAT CONTROL ACCOUNT,2103838530,5001000041
01.03.2024,Finance,S&J CONSULTING LIMITED,"12,400.00",PROCUREMENT ADVICE TEAM,TRAINING,5902623976,1000090465
12.03.2024,Corporate,ALFRED SALTER PRIMARY SCHOOL,"12,394.37",EDUCATION VAT INPUTS,VAT CONTROL ACCOUNT,2103838538,5001000005
15.03.2024,Corporate,GROUP FINANCE SOLUTIONS CONSULTING,"12,390.00",ERP PROGRAMME BUDGET,PROFESSIONAL FEES,5902627054,1000090315
15.03.2024,Corporate,GROUP FINANCE SOLUTIONS CONSULTING,"12,250.00",ERP PROGRAMME BUDGET,PROFESSIONAL FEES,5902627057,1000090315
22.03.2024,Housing,PURCELL ARCHITECTURE LTD,"12,221.70",COMMERCIAL PROPERTIES,PROFESSIONAL FEES,5902628743,1000082955
08.03.2024,Children and Adults,PEOPLE PLUS GROUP LTD (INDEPENDENT LIVING SERVICES),"12,194.16",LD LTS 18-64,PAYMENTS TO CLIENTS (DIRECT PAYMENTS),2103836514,1000061886
04.03.2024,Children and Adults,ORCHARD HILL COLLEGE,"12,190.51",SPECIALIST POST-16,STATEMENTED FEES,2103834195,1000070978
27.03.2024,Housing,BRISAC GONZALEZ LTD,"12,185.00",CAPITAL PS (HRA),CONSTRUCTION FEES - ARCHITECT,5902629518,1000087687
12.03.2024,Children and Adults,REDACTED PERSONAL DATA,"12,160.00",AP & HOSPITAL SCHLS,STATEMENTED FEES,2103838633,1000090637
28.03.2024,Housing,A & E ELKINS LTD,"12,157.11",DESIGN & DELIVERY,PLANNED MAINTENANCE,2103849115,4012501
25.03.2024,Housing,JUDGE AND PRIESTLEY SOLICITORS,"12,150.00",DISREPAIR,BUILDING R&M,5902629000,1472217
11.03.2024,Children and Adults,REESON CARE HOMES LTD,"12,141.04",LD LTS 18-64,SUPPORTED LIVING,2103838454,1000084007
19.03.2024,Environment Neighbourhoods and Growth,METIS CONSULTANTS LIMITED,"12,117.00",STREETS FOR PEOPLE - WALKING,CONSULTANTS SERVICES,5902627949,1000086330
05.03.2024,Finance,VENN GROUP LTD,"12,100.00",IT MANAGEMENT,AGENCY STAFF,5902625311,1000033315
13.03.2024,Finance,BIG BLUE DOOR LTD,"12,100.00",CAPITAL PS (STRAT SERV),ICT ACQUISITION,5902626989,1000087674
28.03.2024,Housing,GUIDELINE LIFT SERVICES LTD,"12,091.20",CAPITAL PS (HRA),UTILITIES INSTALLATION,5902630123,1000064176
26.03.2024,Housing,SALTASH ENTERPRISES LTD,"12,027.92",CAPITAL PS (HRA),CONSTRUCTION MAIN CONTRACT -CERTIFICATED,2103844779,4013605
19.03.2024,Housing,DENHAN INTERNATIONAL LIMITED,"12,014.70",NIGHTLY TA (NSC),EXTERNAL AGENCIES AND BODIES,5902627996,1000075567
18.03.2024,Children and Adults,QUALITY EDUCATION SOLUTIONS LTD,"12,014.53",HEALTH PROTECTION,EXTERNAL AGENCIES AND BODIES,5902627859,1000084042
08.03.2024,Children and Adults,REDACTED PERSONAL DATA,"12,010.80",CHILDREN PHB - SEL ICB,PAYMENTS TO CLIENTS (DIRECT PAYMENTS),2103835795,1000076363
14.03.2024,Housing,SPD ESTATE LTD,"12,006.00",RAPID REHOUSING,EXTERNAL AGENCIES AND BODIES,5902627267,1000087122
15.03.2024,Children and Adults,BROADLANDS HALL LIMITED,"12,000.00",DISABILITIES LAC,EXTERNAL AGENCIES AND BODIES,2103841162,1000084303
18.03.2024,Children and Adults,ROBERT BROWNING PRIMARY SCHOOL,"12,000.00",EHCP INCLUSION FUND,SCHOOLS CAPITATION,2103841225,5001000057
18.03.2024,Children and Adults,ST GEORGES CE SCHOOL,"12,000.00",EHCP INCLUSION FUND,SCHOOLS CAPITATION,2103841232,5001000069
18.03.2024,Children and Adults,COMPASS SCHOOLS TRUST,"12,000.00",EHCP INCLUSION FUND,SCHOOLS CAPITATION,2103841240,1000076195
02.03.2024,Housing,PINNICALE BUILDING SERVICES LIMITED,"12,000.00",CAPITAL PS (HOUSING GF),CAPITAL GRANTS,5902624164,1000082308
04.03.2024,Environment Neighbourhoods and Growth,BAY MEDIA LTD,"12,000.00",CAPITAL PS (REGEN),CONSTRUCTION FEES,5902625036,1000090841
13.03.2024,Housing,CALFORD SEADEN LLP,"12,000.00",CAPITAL PS (HRA),CONSTRUCTION FEES - EMPLOYERS AGENT,5902626997,1061592
23.03.2024,Children and Adults,ANGELS BREAKFAST AND AFTER SCHOOL CLUB,"12,000.00",HOLIDAY ACTIVITIES & FOOD,EXTERNAL AGENCIES AND BODIES,5902627960,1000087659
27.03.2024,Finance,RISUAL LIMITED,"12,000.00",TECHNOLOGY TRANSFORMATION,AGENCY STAFF,5902629591,1000088911
29.03.2024,Finance,LAND USE CONSULTANTS LTD,"11,986.50",STRATEGIC APPLICATIONS,PROFESSIONAL FEES,5902629393,11132526
25.03.2024,Environment Neighbourhoods and Growth,VALLEY PROVINCIAL GROUP LLP,"11,983.51",CAPITAL PS (LEISURE),CONSTRUCTION FEES - INTERNAL,2103843324,3000001895
28.03.2024,Housing,A & E ELKINS LTD,"11,946.10",DESIGN & DELIVERY,PLANNED MAINTENANCE,2103849304,4012501
14.03.2024,Environment Neighbourhoods and Growth,TW BARBER LIMITED,"11,927.95",CAPITAL PS (LEISURE),CONSTRUCTION MAIN CONTRACT,2103839386,3000002267
27.03.2024,Finance,WEB LABS LTD,"11,825.00",DIGITAL DELIVERY,CONSULTANTS SERVICES,5902629529,1000039819
12.03.2024,Environment Neighbourhoods and Growth,KINGFISHER LIGHTING LTD,"11,802.70",PUBLIC LIGHTING,MATERIALS,5902626772,1000090459
09.03.2024,Housing,CALFORD SEADEN LLP,"11,777.17",CAPITAL PS (HRA),CONSTRUCTION FEES - EMPLOYERS AGENT,5902625849,1061592
11.03.2024,Children and Adults,OCEAN COMMUNITY SERVICES LTD,"11,772.88",LD LTS 18-64,RESIDENTIAL CARE,2103838061,1000050124
11.03.2024,Children and Adults,ALWAYS INCLUSIVE LTD,"11,760.00",LD LTS 18-64,SUPPORTED LIVING,2103838394,1000088268
28.03.2024,Finance,WYNNDALE LTD,"11,760.00",ADMINISTRATIVE SUPPORT,TRAINING,5902630120,1000090869
11.03.2024,Children and Adults,WELLSPRING CARE HOMES LIMITED,"11,702.08",LD LTS 18-64,SUPPORTED LIVING,2103837332,1000088216
22.03.2024,Children and Adults,THE BREASTFEEDING NETWORK,"11,694.00",FAMILY HUBS GRANT,EXTERNAL AGENCIES AND BODIES,5902627772,1000090479
15.03.2024,Environment Neighbourhoods and Growth,TYCO INTEGRATED FIRE & SECURITY,"11,692.66",TOWN CENTRE CCTV,EQUIPMENT PURCHASE & REPAIR,5902626339,1000077948
15.03.2024,Environment Neighbourhoods and Growth,TYCO INTEGRATED FIRE & SECURITY,"11,692.66",TOWN CENTRE CCTV,EQUIPMENT PURCHASE & REPAIR,5902626576,1000077948
11.03.2024,Children and Adults,CARLTON NURSING HOMES LTD,"11,647.36",LD LTS 18-64,RESIDENTIAL CARE,2103838346,1000070431
11.03.2024,Children and Adults,VOYAGE CARE (MOUNTEARL),"11,622.12",LD LTS 18-64,RESIDENTIAL CARE,2103837355,1000078173
11.03.2024,Children and Adults,GARLAND LODGE LTD,"11,589.76",LD LTS 18-64,SUPPORTED LIVING,2103837829,1000084016
24.03.2024,Suspense,CITY ELECTRICAL FACTORS LTD,"11,555.00",SUSPENSE ACCOUNT (COMPANY CODE 1000),CREDITORS -GR/IR CLEARING ACCOUNT,5902628886,1003485
23.03.2024,Environment Neighbourhoods and Growth,TYCO INTEGRATED FIRE & SECURITY,"11,549.00",TOWN CENTRE CCTV,OTHER CONTRACTORS,5902627951,1000077948
07.03.2024,Children and Adults,ALBION PRIMARY SCHOOL,"11,543.00",MATERNITY COVER,SCHOOLS CAPITATION,2103835423,5001000000
07.03.2024,Children and Adults,CAMELOT PRIMARY SCHOOL,"11,543.00",MATERNITY COVER,SCHOOLS CAPITATION,2103835430,5001000014
07.03.2024,Governance and Assurance,TABRIS LTD,"11,534.00",ILM COSTS,TRAINING,5902625815,1000080027
11.03.2024,Children and Adults,ACHIEVE TOGETHER SERVICES LIMITED,"11,507.28",LD LTS 18-64,SUPPORTED LIVING,2103837808,1000089975
14.03.2024,Housing,MOTT MACDONALD LTD,"11,500.00",DEVELOPMENT DELIVERY,PROFESSIONAL FEES,5902627250,1000067305
18.03.2024,Environment Neighbourhoods and Growth,STOCKLEY BUILDING SERVICES LTD,"11,500.00",CAMBERWELL LEISURE CENTRE,BUILDING R&M,5902627745,1000089995
12.03.2024,Finance,LEADTEC LIMITED,"11,475.00",CAPITAL PS (STRAT SERV),ICT ACQUISITION,5902626617,1000088992
11.03.2024,Children and Adults,INSIGHT,"11,458.64",LD LTS 18-64,RESIDENTIAL CARE,2103838365,1825618
28.03.2024,Environment Neighbourhoods and Growth,F M CONWAY LTD,"11,456.77",CAPITAL PS (LEISURE),CONSTRUCTION,2103844433,4001384
11.03.2024,Children and Adults,OPTIMA CARE (SHINE) LONDON LTD,"11,444.80",LD LTS 18-64,SUPPORTED LIVING,2103837825,1000079614
07.03.2024,Housing,REDACTED PERSONAL DATA,"11,315.00",NIGHTLY TA (NSC),EXTERNAL AGENCIES AND BODIES,5902625950,1000061134
19.03.2024,Children and Adults,BEDE HOUSE ASSOCIATION,"11,310.00",SHORT BREAKS INNV FUND,EXTERNAL AGENCIES AND BODIES,5902627969,1553877
15.03.2024,Children and Adults,ADVANCEMENTS ABA LTD,"11,290.00",AP & HOSPITAL SCHLS,STATEMENTED FEES,2103841203,1000081719
10.03.2024,Governance and Assurance,BURMAN RECRUITMENT LIMITED,"11,268.36",HR PAYROLL COSTS,SALARIES & WAGES (INCL LW),5902625320,1000090605
11.03.2024,Children and Adults,OVAL CARE HOMES LTD,"11,268.00",LD LTS 18-64 AAD,SUPPORTED LIVING,2103837431,1000089506
11.03.2024,Children and Adults,WELLSPRING CARE HOMES LIMITED,"11,252.00",LD LTS 18-64,SUPPORTED LIVING,2103838144,1000088216
07.03.2024,Children and Adults,TRANSPORT TRADING LTD,"11,250.20",SCH TRANS � TRAVEL,PUBLIC TRANSPORT,5902625889,11252077
15.03.2024,Children and Adults,BROADLANDS HALL LIMITED,"11,200.00",DISABILITIES LAC,RESIDENTIAL CARE,2103841163,1000084303
11.03.2024,Children and Adults,OPTIMA CARE (SHINE) LONDON LTD,"11,198.84",LD LTS 18-64,SUPPORTED LIVING,2103837862,1000079614
11.03.2024,Children and Adults,KARE HEALTHCARE LTD,"11,198.72",LD LTS 18-64,SUPPORTED LIVING,2103837334,1000089212
11.03.2024,Children and Adults,INDEPENDENCE HOMES LTD,"11,184.00",SEN LTS 18-64,RESIDENTIAL CARE,2103837747,1000058961
26.03.2024,Children and Adults,THE COMPLETE WORKS INDEPENDENT SCHOOL,"11,180.80",INDEP MAINSTREAM,STATEMENTED FEES,2103845073,1000033256
12.03.2024,Children and Adults,ST JOHNS RC PRIMARY SCHOOL,"11,170.00",MATERNITY COVER,SCHOOLS CAPITATION,2103838684,5001000075
11.03.2024,Children and Adults,BEECHCROFT SUPPORT LIMITED,"11,168.28",LD LTS 18-64,SUPPORTED LIVING,2103837868,1000085412
08.03.2024,Children and Adults,REDACTED PERSONAL DATA,"11,162.76",MEM LTS 18-64,PAYMENTS TO CLIENTS (DIRECT PAYMENTS),2103836258,1000087779
27.03.2024,Environment Neighbourhoods and Growth,ORTON ELECTRICAL SERVICES LIMITED,"11,149.85",CAPITAL PS (REGEN),CONSTRUCTION FEES  - EXTERNAL,5902629748,1000090749
07.03.2024,Housing,BAILY  GARNER LLP,"11,142.12",CAPITAL PS (HRA),CONSTRUCTION FEES - EMPLOYERS AGENT,5902624740,1000663
07.03.2024,Children and Adults,WILLCOB CARE LTD,"11,116.00",SPECIALIST CARE,PLACEMENTS - RESPITE,2103835412,1000090119
11.03.2024,Children and Adults,SALUTEM SHARED SERVICES II LIMITED,"11,113.20",LD LTS 18-64,SUPPORTED LIVING,2103838066,1000088055
14.03.2024,Environment Neighbourhoods and Growth,WATER PLUS LTD,"11,103.56",PECKHAM PULSE LEISURE CENTRE,WATER,5902627172,1000087903
08.03.2024,Children and Adults,REDACTED PERSONAL DATA,"11,100.00",LD LTS 18-64,PAYMENTS TO CLIENTS (DIRECT PAYMENTS),2103836159,1000074131
20.03.2024,Environment Neighbourhoods and Growth,J C CONSULTANT SERVICES LTD,"11,096.00",CHIEF EXECUTIVE'S OFFICE,EXTERNAL AGENCIES AND BODIES,5902627568,1000042476
14.03.2024,Strategy and Communities,DENMAUR INDEPENDENT PAPERS LTD,"11,087.24",SOUTHWARK LIFE,PROFESSIONAL FEES,5902627170,1000064794
11.03.2024,Children and Adults,RICHARDSON DUSTON LIMITED,"11,070.52",PHY LTS 18-64,RESIDENTIAL CARE,2103838100,1000089236
17.03.2024,Environment Neighbourhoods and Growth,DRAIN SCAN (LONDON) LIMITED,"11,070.00",CAPITAL PS (LEISURE),CAPITAL GRANTS,5902627089,1908746
15.03.2024,Finance,SAPPHIRE CONSULTANCY LIMITED,"11,050.00",SMART DIGITAL TRANSFORMATION,OTHER CONTRACTORS,5902627052,1000089101
24.03.2024,Housing,L H BRIDGE LTD,"11,000.00",CAPITAL PS (HOUSING GF),CAPITAL GRANTS,5902628604,1000056928
28.03.2024,Housing,ARMINA LTD,"10,972.59",DISREPAIR,BUILDING R&M,2103849316,3000002121
12.03.2024,Environment Neighbourhoods and Growth,MARK BAILEY ASSOCIATES LTD,"10,965.00",PUBLIC LIGHTING,MATERIALS,5902626767,1000061353
08.03.2024,Children and Adults,PENDERELS TRUST LTD,"10,957.64",PHB - SEL ICB,RECOVERABLE COSTS INCL. HEALTH,2103836615,1000075856
13.03.2024,Housing,CAPITAL SERVICES LONDON LTD,"10,945.00",COMMERCIAL (QS),PROFESSIONAL FEES,5902626892,1000082548
20.03.2024,Housing,SAFEGUARDS SECURITY SERVICES LTD,"10,944.00",CAPITAL PS (HRA),CONSTRUCTION SITE COSTS,5902628219,1000087544
24.03.2024,Suspense,CITY ELECTRICAL FACTORS LTD,"10,941.00",SUSPENSE ACCOUNT (COMPANY CODE 1000),CREDITORS -GR/IR CLEARING ACCOUNT,5902628886,1003485
12.03.2024,Corporate,ST JOHNS & ST CLEMENTS CE SCHOOL,"10,919.14",EDUCATION VAT INPUTS,VAT CONTROL ACCOUNT,2103838534,5001000073
27.03.2024,Housing,WENTWORTH HOUSING LTD,"10,908.35",PSL PLACEMENTS,EXTERNAL AGENCIES AND BODIES,5902629474,1000083640
22.03.2024,Children and Adults,LONDON & QUADRANT HOUSING TRUST,"10,894.15",SOUTHWARK RESOURCE CENTRE,SERVICE CHARGES,5902628860,1000014718
18.03.2024,Housing,VIGILANT SECURITY SERVICES UK,"10,884.00",DAVID BARKER HOSTEL,SECURITY SERVICES,5902627810,1000090073
15.03.2024,Environment Neighbourhoods and Growth,SOPHIA LOONEY ASSOCIATES LTD,"10,850.00",STRATEGIC DIRECTOR'S OFFICE E AND L,CONSULTANTS SERVICES,5902627539,1000089094
08.03.2024,Environment Neighbourhoods and Growth,CEMETERY DEVELOPMENT SERVICES,"10,837.50",CEMETERIES,CONSULTANTS SERVICES,5902625024,1000059484
20.03.2024,Housing,HANSEN PALOMARES SOLICITORS,"10,805.17",DISREPAIR,PAYMENTS FOR LEGAL SERVICES,2103842662,11053592
16.03.2024,Housing,C&C BUILDERS LTD,"10,804.71",CAPITAL PS (HOUSING GF),CAPITAL GRANTS,2103841000,3000001986
18.03.2024,Housing,EQUANS REGENERATION (APOLLO) LTD,"10,797.86",CAPITAL PS (HRA),CONSTRUCTION MAIN CONTRACT -CERTIFICATED,2103841522,4000449
22.03.2024,Children and Adults,DRUMHEAD LTD,"10,785.00",LEA MUSIC SERVICE(310) - 5018566,CONSULTANTS SERVICES,5902627864,1000051656
19.03.2024,Children and Adults,HOLLYDALE PRIMARY SCHOOL,"10,779.00",LBS MAINSTREAM,SCHOOLS CAPITATION,2103842546,5001000036
22.03.2024,Children and Adults,HOLLYDALE PRIMARY SCHOOL,"10,779.00",LBS MAINSTREAM,SCHOOLS CAPITATION,2103843293,5001000036
22.03.2024,Environment Neighbourhoods and Growth,C L ROADMARKINGS LTD,"10,772.37",ENGINEERING CRAFTS,OTHER CONTRACTORS,2103843334,3000000825
11.03.2024,Housing,SANDERSONS BUILDING SERVICES LTD,"10,746.23",DISREPAIR,BUILDING R&M,2103838491,3000002065
11.03.2024,Children and Adults,FIRST CARE LODGE,"10,734.88",LD LTS 18-64,SUPPORTED LIVING,2103837875,1000084196
15.03.2024,Housing,SOUTH EAST BUILDING CONTRACTORS LTD,"10,733.74",CAPITAL PS (HOUSING GF),CAPITAL GRANTS,5902627552,1000049893
15.03.2024,Children and Adults,BROADLANDS HALL LIMITED,"10,725.00",DISABILITIES LAC,RESIDENTIAL CARE,2103841152,1000084303
21.03.2024,Environment Neighbourhoods and Growth,THE DULWICH ESTATE,"10,718.75",ACCOMMODATION,RENTS,2103842933,3000036
08.03.2024,Children and Adults,PEOPLE PLUS GROUP LTD (INDEPENDENT LIVING SERVICES),"10,707.20",LD LTS 18-64,PAYMENTS TO CLIENTS (DIRECT PAYMENTS),2103836444,1000061886
11.03.2024,Children and Adults,KARE HEALTHCARE LTD,"10,674.56",LD LTS 18-64,SUPPORTED LIVING,2103838166,1000089212
22.03.2024,Housing,BETA DISTRIBUTION (SOUTH) LTD,"10,670.00",GENERAL HOLDING AC,BOOKS & PUBLICATIONS,5902628690,1000044844
06.03.2024,DSO,ARMINA LTD,"10,667.26",PECKHAM & DULWICH DD,OTHER CONTRACTORS,2103834365,3000002121
20.03.2024,Housing,CANTER LEVIN & BERG LTD,"10,625.00",DISREPAIR,PAYMENTS FOR LEGAL SERVICES,2103842661,1000089898
20.03.2024,Housing,FINEFAIR LTD,"10,617.69",PSL PLACEMENTS,EXTERNAL AGENCIES AND BODIES,5902628258,1000075570
11.03.2024,Children and Adults,LONDON CYRENIANS HOUSING LTD,"10,608.00",LD LTS 18-64,SUPPORTED LIVING,2103837519,1000078600
27.03.2024,Children and Adults,ST FRANCIS'S RC PRIMARY SCHOOL,"10,588.00",LBS MAINSTREAM,SCHOOLS CAPITATION,2103842561,5001000067
22.03.2024,Children and Adults,ST FRANCIS'S RC PRIMARY SCHOOL,"10,588.00",LBS MAINSTREAM,SCHOOLS CAPITATION,2103843308,5001000067
22.03.2024,Housing,SPOKEMEAD MAINTENANCE LTD,"10,583.66",DISREPAIR,BUILDING R&M,5902628727,1000059211
01.03.2024,Environment Neighbourhoods and Growth,CC LEISURE SOLUTIONS LTD,"10,565.00",LEISURE CENTRAL COST,TRAINING,5902623684,1000090699
11.03.2024,Children and Adults,OPTIMA CARE (SHINE) LONDON LTD,"10,535.88",LD LTS 18-64,SUPPORTED LIVING,2103837365,1000079614
20.03.2024,Housing,NATIONWIDE ACCOMMODATION,"10,530.00",NIGHTLY TA (NSC),EXTERNAL AGENCIES AND BODIES,5902628274,1000076112
13.03.2024,Housing,HITACHI SOLUTIONS EUROPE LIMITED,"10,511.06",CAPITAL PS (HOUSING GF),ICT ACQUISITION,5902627053,1000084180
20.03.2024,Children and Adults,ARK ALL SAINTS ACADEMY,"10,500.00",PUBLIC HEALTH FHSM,SCHOOLS CAPITATION,2103842673,1000074048
18.03.2024,Housing,HILTON INTERNATIONAL HOTELS (UK) LTD,"10,488.00",NIGHTLY TA (NSC),EXTERNAL AGENCIES AND BODIES,5902627820,1000052384
15.03.2024,Environment Neighbourhoods and Growth,THE KNOWLEDGE ACADEMY LTD,"10,465.00",PARKS SERVICES NEW,TRAINING,5902627628,1000064533
11.03.2024,Children and Adults,ROYAL HOSPITAL FOR NEURODISABILITY,"10,463.12",PHY LTS 65+,NURSING PLACEMENTS FEES,2103838170,1010365
11.03.2024,Children and Adults,SAFFRONLAND HOMES (MUNDANIA),"10,460.00",LD LTS 18-64,RESIDENTIAL CARE,2103838012,1000072153
25.03.2024,Children and Adults,ACHIEVERS CARE SOLUTIONS LIMITED,"10,440.00",SPECIALIST CARE,SECTION 17 PAYMENTS TO AGENCIES/CARERS,2103844761,1000086268
11.03.2024,Children and Adults,BOUGHTON GREEN ROAD LIMITED,"10,427.64",PHY LTS 18-64,NURSING PLACEMENTS FEES,2103837807,1000089115
28.03.2024,DSO,ARMINA LTD,"10,414.01",PECKHAM & DULWICH DD,OTHER CONTRACTORS,2103846577,3000002121
11.03.2024,Children and Adults,LOVING CARE LTD,"10,405.00",LD LTS 18-64,RESIDENTIAL CARE,2103837677,1000082873
07.03.2024,Environment Neighbourhoods and Growth,KENT COUNTY COUNCIL - LASER,"10,385.18",BURGESS SPORTS CENTRE,ELECTRICITY,5902625934,1000012926
11.03.2024,Children and Adults,INSIGHT,"10,368.64",LD LTS 18-64,RESIDENTIAL CARE,2103838344,1825618
07.03.2024,Children and Adults,ST JOSEPHS CATHOLIC SCHOOL,"10,368.00",COVID-19 SCHOOLS GRANTS,SCHOOLS CAPITATION,2103835429,5001000076
11.03.2024,Children and Adults,LUU-BRIDGETS HEALTHCARE LIMITED,"10,368.00",MEM LTS 65+,OTHER PAYMENTS FOR CLIENTS,2103837739,1000090695
21.03.2024,Housing,C&C BUILDERS LTD,"10,324.14",CAPITAL PS (HOUSING GF),CAPITAL GRANTS,2103843261,3000001986
25.03.2024,Environment Neighbourhoods and Growth,KENT COUNTY COUNCIL - LASER,"10,315.29",DULWICH LEISURE CENTRE,ELECTRICITY,5902628699,1000012926
13.03.2024,Environment Neighbourhoods and Growth,J & M OASIS LTD,"10,312.70",NO RECOURSE TO PUBLIC FUNDS,ACCOMMODATION CHARGES,5902627049,1000072169
11.03.2024,Children and Adults,WELLSPRING CARE HOMES LIMITED,"10,296.00",LD LTS 18-64,SUPPORTED LIVING,2103837924,1000088216
28.03.2024,Housing,A & E ELKINS LTD,"10,253.69",DESIGN & DELIVERY,PLANNED MAINTENANCE,2103849301,4012501
11.03.2024,Children and Adults,VOICEABILITY ADVOCACY,"10,250.00",INDEPENDENT MC ADVOCACY,ADVOCACY,5902625830,1000064254
12.03.2024,Environment Neighbourhoods and Growth,FABRIKAT (NOTTINGHAM) LTD,"10,247.97",PUBLIC LIGHTING,MATERIALS,5902626741,1036223
05.03.2024,Suspense,N & C BUILDING MATERIALS,"10,227.20",SUSPENSE ACCOUNT (COMPANY CODE 1000),CREDITORS -GR/IR CLEARING ACCOUNT,5902625259,1005586
20.03.2024,Children and Adults,EXCEL BEYOND BARRIERS CIC,"10,208.00",HOLIDAY ACTIVITIES & FOOD,EXTERNAL AGENCIES AND BODIES,5902628247,1000089472
18.03.2024,Environment Neighbourhoods and Growth,LEASEPLAN UK LTD,"10,195.37",COMMERCIAL VEH CTRL A/C,HIRED VEHICLES,5902627835,11014756
21.03.2024,Environment Neighbourhoods and Growth,LEASEPLAN UK LTD,"10,195.37",COMMERCIAL VEH CTRL A/C,HIRED VEHICLES,5902628430,11014756
22.03.2024,Housing,SILK & MACKMAN SERVICES LTD,"10,178.30",TA HOSTELS,BUILDING R&M,5902628729,1000035282
13.03.2024,Children and Adults,HM PRISON & PROBATION SERVICE,"10,168.00",REMAND - YDA YOI,RESIDENTIAL CARE,2103838956,1000083827
13.03.2024,Children and Adults,HM PRISON & PROBATION SERVICE,"10,168.00",REMAND - YDA YOI,EXTERNAL AGENCIES AND BODIES,5902626945,1000083827
12.03.2024,Children and Adults,BRENT KNOLL SCHOOL,"10,160.00",OTHER LA SPECIAL,STATEMENTED FEES,2103838646,1000073656
12.03.2024,Corporate,HEBER PRIMARY SCHOOL,"10,158.00",EDUCATION VAT INPUTS,VAT CONTROL ACCOUNT,2103838547,5001000035
28.03.2024,Children and Adults,STRIDES CHILDCARE SERVICES LTD,"10,150.00",CHILDREN�S RESID,RESIDENTIAL CARE,2103849049,1000090771
11.03.2024,Children and Adults,ACHIEVE TOGETHER SERVICES LIMITED,"10,142.40",LD LTS 18-64,RESIDENTIAL CARE,2103838185,1000089975
11.03.2024,Children and Adults,VALUE IN CARE LTD,"10,120.72",LD LTS 18-64,RESIDENTIAL CARE,2103837469,1000041975
11.03.2024,Children and Adults,CARETECH COMMUNITY SERVICES LTD,"10,034.64",LD LTS 18-64,RESIDENTIAL CARE,2103838029,1000066698
12.03.2024,Corporate,ST ANTHONYS RC SCHOOL,"10,031.63",EDUCATION VAT INPUTS,VAT CONTROL ACCOUNT,2103838568,5001000064
27.03.2024,Environment Neighbourhoods and Growth,ZFA ACCOMMODATION LTD,"10,005.00",UKRAINIAN REFUGEES,ACCOMMODATION CHARGES,5902629461,1000082620
21.03.2024,Housing,DIAMOND PROPERTY MANAGEMENT LTD,"10,003.00",TA PLACEMENTS,EXTERNAL AGENCIES AND BODIES,5902628436,1000088789
14.03.2024,Finance,REDACTED PERSONAL DATA,"10,000.00",NNDR,LEGAL FEES & COURT COSTS,2103839488,1000052426
14.03.2024,Housing,REDACTED PERSONAL DATA,"10,000.00",COMMERCIAL PROPERTIES,LEGAL FEES & COURT COSTS,2103839527,1000042898
14.03.2024,Children and Adults,REDACTED PERSONAL DATA,"10,000.00",SFS MGMT & SUPPORT,LEGAL FEES & COURT COSTS,2103839539,1000089037
18.03.2024,Children and Adults,ST JOSEPHS CATHOLIC SCHOOL,"10,000.00",EHCP INCLUSION FUND,SCHOOLS CAPITATION,2103841234,5001000076
20.03.2024,Children and Adults,ST MICHAELS CATHOLIC COLLEGE,"10,000.00",VIRTUAL SCHOOL PP,SCHOOLS CAPITATION,2103842757,1000071000
21.03.2024,Housing,BRESLIN CONSTRUCTION LTD,"10,000.00",COMMERCIAL PROPERTIES,BUILDING R&M,2103843257,3000001948
03.03.2024,Environment Neighbourhoods and Growth,COMPLETE ECOLOGY LIMITED,"10,000.00",SOUTHWARK AREA TEAM,GROUNDS MAINTENANCE,5902624478,1000062303
05.03.2024,Housing,CALFORD SEADEN LLP,"10,000.00",CAPITAL PS (HRA),CONSTRUCTION FEES - EMPLOYERS AGENT,5902625150,1061592
08.03.2024,Finance,GUYS & ST THOMAS NHS FOUNDATION TRUST,"10,000.00",MORTUARY,OTHER CONTRACTORS,5902626036,1765536
16.03.2024,Children and Adults,ALFRED SALTER PRIMARY SCHOOL,"10,000.00",INTERVENTION FUND,COMPENSATION,5902626640,5001000005
17.03.2024,Children and Adults,BASIS LTD,"10,000.00",PUBLIC HEALTH FHSM,EXTERNAL AGENCIES AND BODIES,5902627065,1000082776
18.03.2024,Children and Adults,W A NICHOLSON LIMITED,"10,000.00",PLACE & HEALTH IMPROVEMENT,CONSULTANTS SERVICES,5902627580,1000085960
21.03.2024,Children and Adults,BROMLEY EDUCATION AND TRAINING HUB,"10,000.00",PLACE & HEALTH IMPROVEMENT,TRAINING,5902627759,1000089871
22.03.2024,Children and Adults,SCRIBEASY LTD,"10,000.00",SUPERZONES,EXTERNAL AGENCIES AND BODIES,5902627804,1000089776
20.03.2024,Environment Neighbourhoods and Growth,SOUTHWARK PENSIONERS CENTRE,"10,000.00",CAPITAL PS (REGEN),CONSTRUCTION FEES,5902628294,1000027831
20.03.2024,Children and Adults,ALLPAY LTD (CHILDREN - INSTANT ISSU,"10,000.00",C & F FINANCE TEAM,OTHER PAYMENTS FOR CLIENTS,5902628365,1000079883
29.03.2024,Children and Adults,IMPERIAL COLLEGE PROJECTS LTD,"10,000.00",COVID-19 CONTROL OUTBREAK MGMNT.FUND,EXTERNAL AGENCIES AND BODIES,5902629009,1000080106
27.03.2024,Governance and Assurance,DIGITAL COURTROOMS LTD,"10,000.00",LEGAL SVCES MANAGEMENT,SOFTWARE,5902629432,1000084611
29.03.2024,Environment Neighbourhoods and Growth,METASTREET LTD,"10,000.00",RESIDENTIAL SERVICES,SOFTWARE,5902630438,1000083150
13.03.2024,Housing,CONTAKT LTD,"9,975.00",ENG CONTRACTS,PROFESSIONAL FEES,5902626889,1000089730
10.03.2024,Environment Neighbourhoods and Growth,METIS CONSULTANTS LIMITED,"9,965.50",CAPITAL PS (LEISURE),CAPITAL GRANTS,5902625655,1000086330
13.03.2024,Environment Neighbourhoods and Growth,REFUGE,"9,960.50",VIOLENCE AGAINST WOMEN & GIRLS,OTHER CONTRACTORS,5902627007,1000034825
13.03.2024,Environment Neighbourhoods and Growth,REFUGE,"9,960.50",VIOLENCE AGAINST WOMEN & GIRLS,OTHER CONTRACTORS,5902627016,1000034825
18.03.2024,Environment Neighbourhoods and Growth,RIDGE & PARTNERS LLP,"9,958.00",CAPITAL PS (LEISURE),CONSTRUCTION FEES  - EXTERNAL,5902627871,1000042536
11.03.2024,Children and Adults,OPTIMA CARE (SHINE) LONDON LTD,"9,946.12",LD LTS 18-64,SUPPORTED LIVING,2103838157,1000079614
11.03.2024,Children and Adults,OPTIMA CARE (SHINE) LONDON LTD,"9,946.12",LD LTS 18-64,SUPPORTED LIVING,2103838158,1000079614
11.03.2024,Environment Neighbourhoods and Growth,LEASEPLAN UK LTD,"9,940.14",COMMERCIAL VEH CTRL A/C,VEHICLE REPAIRS & MAINTENANCE,5902626506,11014756
12.03.2024,Corporate,CAMELOT PRIMARY SCHOOL,"9,934.71",EDUCATION VAT INPUTS,VAT CONTROL ACCOUNT,2103838537,5001000014
20.03.2024,Housing,SAFEGUARDS SECURITY SERVICES LTD,"9,918.00",CAPITAL PS (HRA),CONSTRUCTION SITE COSTS,5902628187,1000087544
19.03.2024,Housing,PRB ESTATES LTD,"9,916.13",PRBE,I-WORLD CONTRACTORS HOLDING ACCOUNT,2103841530,3000001691
11.03.2024,Children and Adults,OZUMBA TRAINING AND CONSULTANCY SERVICES,"9,914.72",LD LTS 18-64,SUPPORTED LIVING,2103838238,1000090089
11.03.2024,Children and Adults,BEECHCROFT SUPPORT LIMITED,"9,909.96",LD LTS 18-64,SUPPORTED LIVING,2103837869,1000085412
07.03.2024,Children and Adults,ACCESS MOBILITY TRANSPORT LTD,"9,879.50",SCH TRANS � TRAVEL,CAB FARES,5902625883,1000074637
11.03.2024,Children and Adults,LONDON CYRENIANS HOUSING LTD,"9,876.16",LD LTS 18-64,SUPPORTED LIVING,2103837363,1000078600
12.03.2024,Corporate,SNOWSFIELDS PRIMARY SCHOOL,"9,848.91",EDUCATION VAT INPUTS,VAT CONTROL ACCOUNT,2103838542,5001000061
05.03.2024,Governance and Assurance,WORKING ON WELLBEING LTD,"9,846.02",OPTIMA HEALTH,MEDICAL / HEALTH & SAFETY SERVICES,5902625125,1000077251
05.03.2024,Environment Neighbourhoods and Growth,AUSTIN WINKLEY & ASSOCIATES LTD,"9,840.20",CAPITAL PS (REGEN),CONSTRUCTION FEES  - EXTERNAL,5902625163,1000088887
25.03.2024,Environment Neighbourhoods and Growth,LONDON BUS SERVICES LTD,"9,823.84",STREETS FOR PEOPLE - WALKING,OTHER CONTRACTORS,5902628987,1000079143
11.03.2024,Children and Adults,CASSRA LLP T/A CROHAM PLACE,"9,780.00",PHY LTS 18-64,NURSING PLACEMENTS FEES,2103838297,1000082899
10.03.2024,Housing,STAR PEOPLE LTD,"9,775.32",PSL PLACEMENTS,EXTERNAL AGENCIES AND BODIES,5902626166,1000088790
11.03.2024,Children and Adults,COATE WATER CARE COMPANY LTD,"9,771.43",MEM LTS 65+,RESIDENTIAL CARE,2103838063,1000090797
12.03.2024,Corporate,ST JOHNS RC PRIMARY SCHOOL,"9,752.36",EDUCATION VAT INPUTS,VAT CONTROL ACCOUNT,2103838550,5001000075
04.03.2024,Children and Adults,ILDERTON MOTORVEHICLE PROJECT,"9,750.00",AP & HOSPITAL SCHLS,STATEMENTED FEES,2103834176,1000066082
04.03.2024,Children and Adults,ILDERTON MOTORVEHICLE PROJECT,"9,750.00",AP & HOSPITAL SCHLS,STATEMENTED FEES,2103834178,1000066082
04.03.2024,Children and Adults,ILDERTON MOTORVEHICLE PROJECT,"9,750.00",AP & HOSPITAL SCHLS,STATEMENTED FEES,2103834180,1000066082
10.03.2024,Environment Neighbourhoods and Growth,METIS CONSULTANTS LIMITED,"9,750.00",CAPITAL PS (LEISURE),CONSTRUCTION FEES - ARCHITECT,5902625501,1000086330
11.03.2024,Children and Adults,HIGH VIEW CARE SERVICES LTD,"9,745.92",SUB LTS 18-64,RESIDENTIAL CARE,2103837415,1000065920
11.03.2024,Children and Adults,FIRST CARE LODGE,"9,730.24",LD LTS 18-64,SUPPORTED LIVING,2103837366,1000084196
13.03.2024,Children and Adults,CHIPTECH INTERNATIONAL LIMITED,"9,720.00",TELECARE EQUIPMENT,EQUIPMENT PURCHASE & REPAIR,5902627113,1000088502
26.03.2024,Finance,LNRS DATA SERVICES LIMITED,"9,717.00",PROPERTY SERVICES,SUBSCRIPTIONS,5902629274,1000005640
18.03.2024,Environment Neighbourhoods and Growth,STOCKLEY BUILDING SERVICES LTD,"9,681.10",THE CASTLE CENTRE,BUILDING R&M,5902627673,1000089995
30.03.2024,Children and Adults,TOGETHER FOR CHILDREN,"9,675.00",SCH TRANS � TRAVEL,M&M ALLOWANCE CO-OPS,5902630488,1000089719
11.03.2024,Children and Adults,ASD UNIQUE SERVICES LTD,"9,665.80",LD LTS 18-64,RESIDENTIAL CARE,2103837359,1000038819
25.03.2024,Housing,SECURENT LTD,"9,657.00",NIGHTLY TA (NSC),EXTERNAL AGENCIES AND BODIES,5902629123,1000079400
11.03.2024,Children and Adults,BRANDON TRUST,"9,620.36",LD LTS 18-64,SUPPORTED LIVING,2103838280,1000042417
19.03.2024,Housing,BRIDGEWATER ROOFING CONTRACTORS LTD,"9,611.28",COMMERCIAL PROPERTIES,BUILDING R&M,2103841617,3000001482
11.03.2024,Children and Adults,ABBEY UPLANDS CARE HOME LIMITED,"9,600.00",PHY LTS 65+,NURSING PLACEMENTS FEES,2103838321,1000090830
15.03.2024,Environment Neighbourhoods and Growth,BRESLIN CONSTRUCTION LTD,"9,600.00",CAPITAL PS (REGEN),CONSTRUCTION FEES  - EXTERNAL,5902627210,1000078031
23.03.2024,Finance,BLACKFOOT UK LIMITED,"9,585.00",SHARED SERVICES,CONSULTANTS SERVICES,5902628079,1000087718
27.03.2024,Housing,RESOLUTE  LEGAL,"9,583.33",DISREPAIR,PAYMENTS FOR LEGAL SERVICES,2103846555,1000087819
05.03.2024,Environment Neighbourhoods and Growth,THE CONSERVATION VOLUNTEERS,"9,566.00",ENVIRONMENT & LEISURE GRANTS,OTHER CONTRACTORS,5902625319,1872821
05.03.2024,Environment Neighbourhoods and Growth,THE CONSERVATION VOLUNTEERS,"9,566.00",ENVIRONMENT & LEISURE GRANTS,OTHER CONTRACTORS,5902625319,1872821
25.03.2024,Environment Neighbourhoods and Growth,THE CONSERVATION VOLUNTEERS,"9,566.00",ENVIRONMENT & LEISURE GRANTS,OTHER CONTRACTORS,5902629032,1872821
11.03.2024,Children and Adults,CARETECH COMMUNITY SERVICES LTD,"9,553.40",LD LTS 18-64,RESIDENTIAL CARE,2103837671,1000066698
13.03.2024,Children and Adults,WHIPPERSNAPPERS CIC,"9,551.25",SHORT BREAKS INNV FUND,EXTERNAL AGENCIES AND BODIES,5902626665,1000062256
21.03.2024,Environment Neighbourhoods and Growth,LEASEPLAN UK LTD,"9,522.31",COMMERCIAL VEH CTRL A/C,HIRED VEHICLES,5902628431,11014756
28.03.2024,Housing,EQUANS REGENERATION LTD,"9,522.00",CAPITAL PS (HRA),CONSTRUCTION MAIN CONTRACT -CERTIFICATED,2103849108,3000002035
21.03.2024,Housing,C&C BUILDERS LTD,"9,513.71",CAPITAL PS (HOUSING GF),CAPITAL GRANTS,2103841625,3000001986
27.03.2024,Environment Neighbourhoods and Growth,NATIONWIDE ACCOMMODATION,"9,512.00",UKRAINIAN REFUGEES,ACCOMMODATION CHARGES,5902629431,1000076112
11.03.2024,Children and Adults,RAINTREE CARE LTD,"9,480.00",LD LTS 18-64 AAD,SUPPORTED LIVING,2103837971,1000087495
10.03.2024,Environment Neighbourhoods and Growth,MACE LTD,"9,450.00",CAPITAL PS (REGEN),CONSTRUCTION FEES  - EXTERNAL,5902625299,1000067959
11.03.2024,Housing,ALEXANDER MILLS CONSULTING LTD,"9,450.00",BUILDING SAFETY PROGRAMME,CONSULTANTS SERVICES,5902625811,1000088721
14.03.2024,Environment Neighbourhoods and Growth,MACE LTD,"9,450.00",CAPITAL PS (REGEN),CONSTRUCTION FEES  - EXTERNAL,5902627689,1000067959
28.03.2024,Housing,BRITISH GAS TRADING LTD,"9,438.24",RESIDENT SERVICES BUSINESS SUPPORT,ELECTRICITY,5902630064,1000055977
11.03.2024,Children and Adults,CHOICE SUPPORT,"9,434.40",LD LTS 18-64,SUPPORTED LIVING,2103837341,1104183
11.03.2024,Children and Adults,ABBEY UPLANDS CARE HOME LIMITED,"9,428.57",PHY LTS 65+,NURSING PLACEMENTS FEES,2103838057,1000090830
11.03.2024,Children and Adults,ALWAYS INCLUSIVE LTD,"9,422.40",LD LTS 18-64,SUPPORTED LIVING,2103838118,1000088268
04.03.2024,Housing,GUILDMORE LTD,"9,405.73",CAPITAL PS (HRA),CONSTRUCTION MAIN CONTRACT -CERTIFICATED,2103834219,3000002150
22.03.2024,Housing,POTTER RAPER LTD,"9,400.09",CAPITAL PS (HRA),CONSTRUCTION FEES - EMPLOYERS AGENT,5902628700,1009369
11.03.2024,Environment Neighbourhoods and Growth,CLYDE & CO,"9,360.00",FACILITIES MANAGEMENT,PAYMENTS FOR LEGAL SERVICES,5902626315,1000067838
28.03.2024,Children and Adults,COMMITTED CARE HOUSING,"9,322.00",SEMI-IND LAC 16-17,EXTERNAL AGENCIES AND BODIES,2103847504,1000086257
05.03.2024,Environment Neighbourhoods and Growth,KENT COUNTY COUNCIL - LASER,"9,314.13",JOHN HARVARD LIBRARY,ELECTRICITY,5902625128,1000012926
21.03.2024,DSO,SER CONTRACTOR LTD,"9,307.58",SR - VOIDS TEAM,OTHER CONTRACTORS,2103842822,3000002234
04.03.2024,Children and Adults,CHANGE GROW LIVE SERVICES LTD,"9,300.00",SSMTRG,OTHER CONTRACTORS,5902625067,1000082721
11.03.2024,Children and Adults,GREEN CARE AND SUPPORT LIMITED,"9,276.80",LD LTS 18-64,SUPPORTED LIVING,2103837874,1000087661
11.03.2024,Children and Adults,FIRST CARE LODGE,"9,256.00",LD LTS 18-64,SUPPORTED LIVING,2103838189,1000084196
08.03.2024,Housing,PULSE ASSOCIATES LTD (T/A PULSE CONSULT),"9,250.00",CAPITAL PS (HRA),CONSTRUCTION FEES  - EXTERNAL,5902625099,1000087233
25.03.2024,Children and Adults,RADIUS 360 LIMITED,"9,243.00",C&F GENERAL TRAINING,TRAINING,5902629038,1000090860
28.03.2024,Children and Adults,FIG TREE INTERNATIONAL LTD,"9,225.00",SWK STANDS TOGETHER,SUBSCRIPTIONS,5902630223,1000090934
28.03.2024,Housing,DSI BILLING SERVICES LTD,"9,208.62",DESIGN & DELIVERY,POSTAGES,5902630379,1000058640
11.03.2024,Children and Adults,CHOICE CARE GROUP,"9,200.08",LD LTS 18-64,RESIDENTIAL CARE,2103837375,1572506
11.03.2024,Children and Adults,LONDON CYRENIANS HOUSING LTD,"9,196.40",LD LTS 18-64,SUPPORTED LIVING,2103837518,1000078600
30.03.2024,Environment Neighbourhoods and Growth,FAITHFUL & GOULD,"9,194.80",CAPITAL PS (REGEN),CONSTRUCTION FEES  - EXTERNAL,5902630429,1000061390
11.03.2024,Children and Adults,CHOICE CARE GROUP,"9,181.28",LD LTS 18-64,RESIDENTIAL CARE,2103837597,1572506
04.03.2024,Environment Neighbourhoods and Growth,CARMELCREST LTD,"9,161.72",CAPITAL PS (REGEN),CONSTRUCTION FEES - ARCHITECT,2103834062,3000002177
25.03.2024,Finance,TRUSTMARQUE SOLUTIONS LTD,"9,159.00",SHARED SERVICES,SOFTWARE,5902628804,1000035838
08.03.2024,Children and Adults,REDACTED PERSONAL DATA,"9,142.28",LD LTS 18-64 AAD,PAYMENTS TO CLIENTS (DIRECT PAYMENTS),2103836736,1000080806
14.03.2024,Environment Neighbourhoods and Growth,TRANSPORT FOR LONDON,"9,130.00",COMMERCIAL VEH CTRL A/C,CONGESTION CHARGE,5902627451,1000023986
11.03.2024,Children and Adults,LEONARD CHESHIRE (CHIPSTEAD LAKE),"9,126.12",PHY LTS 18-64,RESIDENTIAL CARE,2103838138,1000049764
11.03.2024,Children and Adults,ANGELINA CARE LIMITED,"9,114.29",PHY LTS 18-64,RESIDENTIAL CARE,2103837608,1000090835
20.03.2024,Housing,HMRC STAMP TAXES ONLY SDLT,"9,100.00",CAPITAL PS (HRA),LAND & BUILDINGS ACQUISITION,5902628306,1000052141
11.03.2024,Children and Adults,THE AVENUES TRUST,"9,091.48",LD LTS 18-64,RESIDENTIAL CARE,2103838038,1981708
11.03.2024,Children and Adults,CHOICE CARE GROUP,"9,089.08",LD LTS 18-64,RESIDENTIAL CARE,2103837429,1572506
11.03.2024,Children and Adults,CHOICE SUPPORT,"9,079.36",LD LTS 65+,SUPPORTED LIVING,2103838156,1104183
08.03.2024,Children and Adults,REDACTED PERSONAL DATA,"9,079.20",PHB - SEL ICB,RECOVERABLE COSTS INCL. HEALTH,2103836597,1000044274
11.03.2024,Housing,STABILIS ASSOCIATES LTD,"9,072.00",REPAIRS OPERATIONS,PROFESSIONAL FEES,5902625745,1000082512
07.03.2024,Children and Adults,OWNLIFE RESIDENTIAL LTD,"9,050.00",CHILDREN�S RESID,RESIDENTIAL CARE,2103835340,1000085398
11.03.2024,Children and Adults,ABBEY UPLANDS CARE HOME LIMITED,"9,042.32",LD LTS 65+,NURSING PLACEMENTS FEES,2103838010,1000090830
28.03.2024,Finance,VIRGIN MEDIA,"9,038.99",IT MANAGEMENT,COMMS & COMPUTING CONTRACT CHARGES,5902629942,1000026457
10.03.2024,Housing,CHRIS DAVIS CONSULTANCY LTD,"9,025.00",CAPITAL PS (HRA),CONSTRUCTION,5902625730,1000084202
07.03.2024,Children and Adults,RIVERSIDE PRIMARY SCHOOL,"9,024.00",MATERNITY COVER,SCHOOLS CAPITATION,2103835426,5001000056
21.03.2024,Children and Adults,NATIONAL FOSTERING AGENCY LTD,"9,009.67",FRIENDS & FAMILY FOSTERING,EXTERNAL AGENCIES AND BODIES,2103843183,1000038868
02.03.2024,Housing,AJM ADAPTIONS LTD,"9,000.00",CAPITAL PS (HOUSING GF),CAPITAL GRANTS,5902624107,1000080297
01.03.2024,Finance,NEC SOFTWARE SOLUTIONS UK LTD,"9,000.00",ADMINISTRATIVE SUPPORT,SOFTWARE,5902624537,1000087043
16.03.2024,Children and Adults,ALFRED SALTER PRIMARY SCHOOL,"9,000.00",SEND CONSULTANTS,TRAINING,5902627600,5001000005
19.03.2024,Housing,ANTONY HODARI  SOLICITORS,"9,000.00",HOMELESS PROJECTS,LEGAL FEES & COURT COSTS,5902628137,1000031040
27.03.2024,Finance,RISUAL LIMITED,"9,000.00",TECHNOLOGY TRANSFORMATION,AGENCY STAFF,5902629591,1000088911
11.03.2024,Children and Adults,FIR TREE LODGE (SEE ABILITY),"8,995.40",LD LTS 18-64,RESIDENTIAL CARE,2103838338,1000052257
27.03.2024,DSO,SANDERSONS BUILDING SERVICES LTD,"8,979.67",CAMBERWELL DD,OTHER CONTRACTORS,2103846570,3000002065
11.03.2024,Children and Adults,SAFFRONLAND HOMES (HESTIA),"8,978.92",LD LTS 18-64,RESIDENTIAL CARE,2103837709,1000021616
11.03.2024,Children and Adults,SAFFRONLAND HOMES (HESTIA),"8,978.92",LD LTS 18-64,RESIDENTIAL CARE,2103837763,1000021616
22.03.2024,Environment Neighbourhoods and Growth,KINDLY PROPERTIES LTD,"8,977.00",NO RECOURSE TO PUBLIC FUNDS,ACCOMMODATION CHARGES,5902628736,1000060734
27.03.2024,Children and Adults,KEYWORTH PRIMARY SCHOOL,"8,969.00",LBS MAINSTREAM,SCHOOLS CAPITATION,2103842550,5001000041
22.03.2024,Children and Adults,KEYWORTH PRIMARY SCHOOL,"8,969.00",LBS MAINSTREAM,SCHOOLS CAPITATION,2103843297,5001000041
21.03.2024,Children and Adults,HOMERTON UNIVERSITY HOSPITAL NHS FOUNDATION TRUST,"8,947.49",SEXUAL HEALTH - STI,MEDICAL / HEALTH & SAFETY SERVICES,5902628542,1000075435
04.03.2024,Housing,J & M OASIS LTD,"8,943.50",NIGHTLY TA (NSC),EXTERNAL AGENCIES AND BODIES,5902625101,1000072169
11.03.2024,Children and Adults,CARETECH COMMUNITY SERVICES LTD,"8,927.16",LD LTS 18-64,RESIDENTIAL CARE,2103837817,1000066698
11.03.2024,Children and Adults,SAFFRONLAND HOMES (HESTIA),"8,906.00",LD LTS 18-64,RESIDENTIAL CARE,2103838149,1000021616
15.03.2024,Environment Neighbourhoods and Growth,BANKSIDE OPEN SPACES TRUST,"8,900.00",NORTH WEST,GRANTS,5902627550,1000018290
14.03.2024,Environment Neighbourhoods and Growth,F M CONWAY LTD,"8,899.76",HIGHWAY MAINTENANCE OVERHEADS,HIGHWAYS TERM CONTRACT,2103839378,4001384
14.03.2024,Environment Neighbourhoods and Growth,F M CONWAY LTD,"8,899.76",HIGHWAY MAINTENANCE OVERHEADS,HIGHWAYS TERM CONTRACT,2103839379,4001384
27.03.2024,Environment Neighbourhoods and Growth,GOLDSTONE ESTATES LTD,"8,888.50",NO RECOURSE TO PUBLIC FUNDS,ACCOMMODATION CHARGES,5902629587,1000076548
06.03.2024,Environment Neighbourhoods and Growth,ZFA ACCOMMODATION LTD,"8,880.00",UKRAINIAN REFUGEES,ACCOMMODATION CHARGES,5902625422,1000082620
22.03.2024,Housing,REDACTED PERSONAL DATA,"8,873.00",NIGHTLY TA (NSC),EXTERNAL AGENCIES AND BODIES,5902628711,1000061134
21.03.2024,Children and Adults,CBS MAINTENANCE SERVICES LTD,"8,862.50",CAPITAL PS (EDUCATION),CONSTRUCTION,2103843266,3000001518
28.03.2024,Finance,TROWERS & HAMLINS LLP,"8,861.00",MASTER PLAN - H/WAY & TRANS INTERCHANGE,PAYMENTS FOR LEGAL SERVICES,5902629923,1000016239
11.03.2024,Children and Adults,DIAGRAMA HEALTH CARE,"8,859.44",LD LTS 18-64,RESIDENTIAL CARE,2103837395,1000075492
12.03.2024,Children and Adults,ST JAMES CE PRIMARY SCHOOL,"8,835.40",NURSERY ED GRANT 3 AND 4 YR OLDS,EARLY YEARS - 3 AND 4 YEAR OLDS,2103838764,5001000070
28.03.2024,Children and Adults,NATIONAL FOSTERING AGENCY LTD,"8,832.66",FRIENDS & FAMILY FOSTERING,EXTERNAL AGENCIES AND BODIES,2103846684,1000038868
11.03.2024,Children and Adults,RIGHT SUPPORT MANAGEMENT LTD,"8,825.84",LD LTS 18-64,SUPPORTED LIVING,2103838160,1000070289
13.03.2024,Finance,FAMILY FUND TRADING LTD,"8,825.00",SESS,OTHER PAYMENTS FOR CLIENTS,5902627056,1000071092
11.03.2024,Children and Adults,ASHINGHAM HOUSE LIMITED,"8,819.16",LD LTS 18-64,RESIDENTIAL CARE,2103838329,1000016504
11.03.2024,Children and Adults,BEECHCROFT SUPPORT LIMITED,"8,806.72",MH LTS 18-64,SUPPORTED LIVING,2103837830,1000085412
18.03.2024,Housing,SANDERSONS BUILDING SERVICES LTD,"8,806.33",DISREPAIR,BUILDING R&M,2103841220,3000002065
31.03.2024,Environment Neighbourhoods and Growth,BRESLIN CONSTRUCTION LTD,"8,800.00",CAPITAL PS (REGEN),CONSTRUCTION FEES,2103849302,3000001948
13.03.2024,Environment Neighbourhoods and Growth,C S G (USHERS) LTD,"8,790.00",TREES TERM CONTRACT,TREE MAINTENANCE,5902626939,1000073203
11.03.2024,Children and Adults,BRITISH HOME & HOSPITAL FOR INCURABLES,"8,789.16",PHY LTS 65+,NURSING PLACEMENTS FEES,2103837400,1001606
11.03.2024,Children and Adults,BROADHAM CARE LIMITED,"8,752.16",LD LTS 18-64,RESIDENTIAL CARE,2103837682,1000057411
15.03.2024,Finance,BIDVEST NOONAN (UK) LTD,"8,750.07",TOWER WORKSHOPS,SECURITY SERVICES,5902627590,1000087102
15.03.2024,Housing,ANTONY HODARI  SOLICITORS,"8,750.00",DISREPAIR,PAYMENTS FOR LEGAL SERVICES,2103841054,1000031040
24.03.2024,Housing,C&C BUILDERS LTD,"8,736.90",CAPITAL PS (HOUSING GF),CAPITAL GRANTS,2103842824,3000001986
12.03.2024,Children and Adults,THE COMPLETE WORKS INDEPENDENT SCHOOL,"8,735.00",ALTERNATIVE PROVISION,EXTERNAL AGENCIES AND BODIES,5902626730,1000033256
12.03.2024,Children and Adults,THE COMPLETE WORKS INDEPENDENT SCHOOL,"8,735.00",ALTERNATIVE PROVISION,EXTERNAL AGENCIES AND BODIES,5902626735,1000033256
13.03.2024,Children and Adults,EVERYONE HEALTH LTD,"8,728.33",HEALTH INTERVENTIONS,EXTERNAL AGENCIES AND BODIES,5902626998,1000084159
21.03.2024,Children and Adults,EVERYONE HEALTH LTD,"8,728.33",HEALTH INTERVENTIONS,EXTERNAL AGENCIES AND BODIES,5902627708,1000084159
19.03.2024,Children and Adults,COMMITTED CARE HOUSING,"8,720.00",SEMI-IND LAC 16-17,EXTERNAL AGENCIES AND BODIES,2103841571,1000086257
21.03.2024,Housing,GOLDSTONE ESTATES LTD,"8,719.40",NIGHTLY TA (NSC),EXTERNAL AGENCIES AND BODIES,5902628610,1000076548
11.03.2024,Children and Adults,HIGH VIEW CARE SERVICES LTD,"8,682.80",PHY LTS 18-64,RESIDENTIAL CARE,2103837984,1000053562
22.03.2024,Housing,SILK & MACKMAN SERVICES LTD,"8,680.00",TA HOSTELS,BUILDING R&M,5902628874,1000035282
11.03.2024,Children and Adults,BRITISH HOME & HOSPITAL FOR INCURABLES,"8,664.00",PHY LTS 18-64,NURSING PLACEMENTS FEES,2103837467,1001606
11.03.2024,Children and Adults,BRANDON TRUST,"8,647.00",LD LTS 18-64,SUPPORTED LIVING,2103838310,1000042417
27.03.2024,Housing,QUINARY LTD,"8,642.00",NIGHTLY TA (NSC),EXTERNAL AGENCIES AND BODIES,5902629771,1000029106
11.03.2024,Children and Adults,NCYPE,"8,620.00",PHY LTS 18-64,RESIDENTIAL CARE,2103838381,1264546
11.03.2024,Children and Adults,SAFFRONLAND HOMES (HESTIA),"8,612.20",LD LTS 18-64,RESIDENTIAL CARE,2103838395,1000021616
13.03.2024,Children and Adults,LONDON & QUADRANT HOUSING TRUST,"8,555.04",COMMISSIONING DIRECTORATE,RENTS,2103839351,1000014718
28.03.2024,Children and Adults,LONDON & QUADRANT HOUSING TRUST,"8,555.04",COMMISSIONING DIRECTORATE,RENTS,2103846596,1000014718
08.03.2024,Housing,LODGISTICS ESTATES,"8,553.50",PSL PLACEMENTS,EXTERNAL AGENCIES AND BODIES,5902626150,1000080324
12.03.2024,Children and Adults,THE GROVE CHILDRENS CENTRE,"8,546.50",SCHOOLS SUPPLEMENTARY GRANT,SCHOOLS CAPITATION,2103838690,5001000090
22.03.2024,Children and Adults,INTERCOUNTRY ADOPTION CENTRE,"8,542.50",ADOPT LONDON SOUTH,EXTERNAL AGENCIES AND BODIES,5902627645,1000035796
04.03.2024,Children and Adults,JOHN RUSKIN PRIMARY SCHOOL,"8,540.50",COVID-19 SCHOOLS GRANTS,SCHOOLS CAPITATION,2103831898,5001000040
25.03.2024,Housing,JUDGE AND PRIESTLEY SOLICITORS,"8,540.50",DISREPAIR,BUILDING R&M,5902628679,1472217
04.03.2024,Children and Adults,SACRED HEART CATHOLIC SCHOOL,"8,535.74",AC & FREE - MSTREAM,STATEMENTED FEES,2103834206,1000071091
04.03.2024,Children and Adults,SACRED HEART CATHOLIC SCHOOL,"8,535.64",AC & FREE - MSTREAM,STATEMENTED FEES,2103834204,1000071091
22.03.2024,Children and Adults,HARRIS ACADEMY BERMONDSEY,"8,531.00",AC & FREE - MSTREAM,STATEMENTED FEES,2103844398,1000052842
22.03.2024,Children and Adults,HARRIS ACADEMY BERMONDSEY,"8,531.00",AC & FREE - MSTREAM,STATEMENTED FEES,2103844399,1000052842
22.03.2024,Children and Adults,HARRIS ACADEMY BERMONDSEY,"8,531.00",AC & FREE - MSTREAM,STATEMENTED FEES,2103844400,1000052842
22.03.2024,Children and Adults,HARRIS ACADEMY BERMONDSEY,"8,531.00",AC & FREE - MSTREAM,STATEMENTED FEES,2103844402,1000052842
22.03.2024,Children and Adults,HARRIS ACADEMY BERMONDSEY,"8,531.00",AC & FREE - MSTREAM,STATEMENTED FEES,2103844404,1000052842
22.03.2024,Children and Adults,HARRIS ACADEMY BERMONDSEY,"8,531.00",AC & FREE - MSTREAM,STATEMENTED FEES,2103844405,1000052842
22.03.2024,Children and Adults,SYDENHAM SCHOOL,"8,531.00",OTHER LA MAINSTREAM,STATEMENTED FEES,2103844418,1000079303
22.03.2024,Children and Adults,FUTURE ACADEMIES PIMLICO ACADEMY,"8,531.00",AC & FREE - MSTREAM,STATEMENTED FEES,2103844419,1000073315
22.03.2024,Children and Adults,FUTURE ACADEMIES PIMLICO ACADEMY,"8,531.00",AC & FREE - MSTREAM,STATEMENTED FEES,2103844422,1000073315
11.03.2024,Children and Adults,ACHIEVE TOGETHER SERVICES LIMITED,"8,521.56",LD LTS 18-64,RESIDENTIAL CARE,2103837441,1000089975
21.03.2024,Housing,C&C BUILDERS LTD,"8,518.41",CAPITAL PS (HOUSING GF),CAPITAL GRANTS,2103841624,3000001986
11.03.2024,Children and Adults,BOUGHTON GREEN ROAD LIMITED,"8,505.00",PHY LTS 18-64,NURSING PLACEMENTS FEES,2103838004,1000089115
18.03.2024,Housing,POTTER RAPER LTD,"8,500.47",CAPITAL PS (HRA),CONSTRUCTION FEES - EMPLOYERS AGENT,5902627780,1009369
04.03.2024,Children and Adults,SACRED HEART CATHOLIC SCHOOL,"8,498.98",AC & FREE - MSTREAM,STATEMENTED FEES,2103834197,1000071091
12.03.2024,Corporate,ST SAVIOURS & ST OLAVES SCHOOL,"8,490.20",EDUCATION VAT INPUTS,VAT CONTROL ACCOUNT,2103838566,5001000084
11.03.2024,Children and Adults,L & Q LIVING,"8,485.00",LD LTS 18-64,SUPPORTED LIVING,2103837326,1000057917
27.03.2024,Children and Adults,SNOWSFIELDS PRIMARY SCHOOL,"8,479.00",LBS MAINSTREAM,SCHOOLS CAPITATION,2103842554,5001000061
22.03.2024,Children and Adults,SNOWSFIELDS PRIMARY SCHOOL,"8,479.00",LBS MAINSTREAM,SCHOOLS CAPITATION,2103843301,5001000061
21.03.2024,Children and Adults,NATIONAL FOSTERING AGENCY LTD,"8,472.53",FRIENDS & FAMILY FOSTERING,EXTERNAL AGENCIES AND BODIES,2103843182,1000038868
11.03.2024,Children and Adults,GARLAND LODGE LTD,"8,444.80",LD LTS 18-64,SUPPORTED LIVING,2103837866,1000084016
15.03.2024,Housing,YOUR LEGAL COSTS LIMITED,"8,437.50",DISREPAIR,PAYMENTS FOR LEGAL SERVICES,2103841097,1000089552
11.03.2024,Children and Adults,OPTIMA CARE (SHINE) LONDON LTD,"8,433.00",LD LTS 18-64,SUPPORTED LIVING,2103837861,1000079614
20.03.2024,Children and Adults,PRO TOUCH SA,"8,400.00",HOLIDAY ACTIVITIES & FOOD,EXTERNAL AGENCIES AND BODIES,5902628249,1000074843
21.03.2024,Housing,DACS LTD,"8,396.00",CAPITAL PS (HOUSING GF),CAPITAL GRANTS,5902628611,1000079747
16.03.2024,Finance,LONDON BRIDGE BUSINESS IMPROVEMENT,"8,381.15",TEAM LONDON BRIDGE,EXTERNAL AGENCIES AND BODIES,5902626976,1000050879
11.03.2024,Children and Adults,SAFFRONLAND HOMES (MINEHEAD),"8,377.68",LD LTS 18-64,RESIDENTIAL CARE,2103837680,1000072152
22.03.2024,Housing,J & M OASIS LTD,"8,366.50",NIGHTLY TA (NSC),EXTERNAL AGENCIES AND BODIES,5902628852,1000072169
11.03.2024,Children and Adults,SAFFRONLAND HOMES (MINEHEAD),"8,352.12",LD LTS 18-64,RESIDENTIAL CARE,2103837853,1000072152
11.03.2024,Children and Adults,P.A.K.S,"8,348.00",PHY LTS 18-64,RESIDENTIAL CARE,2103838372,1000078011
20.03.2024,Housing,HODGE JONES & ALLEN SOLICITORS,"8,333.33",DISREPAIR,PAYMENTS FOR LEGAL SERVICES,2103842672,11011881
11.03.2024,Children and Adults,KARE HEALTHCARE LTD,"8,320.00",PHY LTS 65+,SUPPORTED LIVING,2103838121,1000089212
01.03.2024,Children and Adults,RAYMOND MEDICAL LIMITED,"8,300.00",COVID-19 CONTROL OUTBREAK MGMNT.FUND,EXTERNAL AGENCIES AND BODIES,5902624502,1000089204
12.03.2024,Children and Adults,ST JAMES HATCHAM CE PRIMARY SCHOOL,"8,296.67",OTHER LA MAINSTREAM,STATEMENTED FEES,2103838634,1000080746
09.03.2024,Housing,CALFORD SEADEN LLP,"8,280.55",CAPITAL PS (HRA),CONSTRUCTION FEES  - EXTERNAL,5902625697,1061592
30.03.2024,Housing,CALFORD SEADEN LLP,"8,280.55",CAPITAL PS (HRA),CONSTRUCTION FEES  - EXTERNAL,5902629430,1061592
11.03.2024,Children and Adults,ASHMEAD HEALTHCARE LTD,"8,278.24",LD LTS 18-64,RESIDENTIAL CARE,2103838152,1000077917
19.03.2024,Housing,SITTARA LTD,"8,268.00",TA PLACEMENTS,EXTERNAL AGENCIES AND BODIES,5902628016,1000080857
22.03.2024,Children and Adults,UNLOCKING LANGUAGE LTD,"8,268.00",LAC EDUCATION,EXTERNAL AGENCIES AND BODIES,5902628842,1000081107
03.03.2024,Children and Adults,TURNING POINT LTD,"8,250.00",SEXUAL HEALTH - STI,EXTERNAL AGENCIES AND BODIES,5902624434,1000040642
03.03.2024,Children and Adults,TURNING POINT LTD,"8,250.00",SEXUAL HEALTH - STI,EXTERNAL AGENCIES AND BODIES,5902624436,1000040642
03.03.2024,Children and Adults,TURNING POINT LTD,"8,250.00",SEXUAL HEALTH - STI,EXTERNAL AGENCIES AND BODIES,5902624438,1000040642
14.03.2024,Housing,FRANKHAM CONSULTANCY GROUP LTD,"8,245.00",COMMERCIAL PROPERTIES,PROFESSIONAL FEES,5902627378,1000043952
11.03.2024,Children and Adults,ABBEY UPLANDS CARE HOME LIMITED,"8,243.52",PHY LTS 65+,NURSING PLACEMENTS FEES,2103837472,1000090830
11.03.2024,Children and Adults,GLENPAT HOMES,"8,239.12",LD LTS 18-64,RESIDENTIAL CARE,2103838134,1000059312
14.03.2024,Environment Neighbourhoods and Growth,QUADRON SERVICES LIMITED,"8,235.00",CREMATORIUM,GROUNDS MAINTENANCE,5902626019,1000066528
12.03.2024,Children and Adults,ST SAVIOURS & ST OLAVES SCHOOL,"8,234.00",MATERNITY COVER,SCHOOLS CAPITATION,2103838685,5001000084
22.03.2024,Environment Neighbourhoods and Growth,AGA GROUP ENVIRO-FIX LTD,"8,224.80",SOUTHWARK AREA TEAM,OTHER R&M,5902627967,1000051355
07.03.2024,Environment Neighbourhoods and Growth,CASTLE WATER LTD,"8,224.16",HOMERSTALL ROAD SPORTS GROUND,WATER,5902625822,1000078867
28.03.2024,DSO,J KASH LTD,"8,204.78",DAMP & MOULD TEAM,OTHER CONTRACTORS,2103846574,3000002219
28.03.2024,Governance and Assurance,WORKING ON WELLBEING LTD,"8,203.37",OPTIMA HEALTH,MEDICAL / HEALTH & SAFETY SERVICES,5902629513,1000077251
20.03.2024,Children and Adults,THE ACADEMY @ PECKHAM,"8,200.00",PUBLIC HEALTH FHSM,SCHOOLS CAPITATION,2103842680,1000041433
11.03.2024,Children and Adults,ALWAYS INCLUSIVE LTD,"8,199.36",LD LTS 18-64,SUPPORTED LIVING,2103837834,1000088268
11.03.2024,Children and Adults,GREEN CARE AND SUPPORT LIMITED,"8,195.20",LD LTS 18-64,SUPPORTED LIVING,2103837873,1000087661
13.03.2024,Suspense,LONDON PENSIONS FUND AUTHORITY,"8,183.48",SUSPENSE ACCOUNT (COMPANY CODE 1000),PAYROLL CREDITORS - OTHER PENSION FUNDS,2103838930,1000062252
11.03.2024,Children and Adults,CHOICE SUPPORT,"8,168.84",LD LTS 18-64,SUPPORTED LIVING,2103838214,1104183
12.03.2024,Governance and Assurance,EDEN RED,"8,166.67",BIKE SCHEME,OTHER EMPLOYEE EXPENSES,5902626759,1000015230
11.03.2024,Children and Adults,BEECHCROFT SUPPORT LIMITED,"8,161.36",LD LTS 18-64,SUPPORTED LIVING,2103837832,1000085412
08.03.2024,Housing,LEDBURY T&RA,"8,160.00",LEDBURY ESTATE,GRANTS,5902626145,1000013903
05.03.2024,Environment Neighbourhoods and Growth,AUSTIN WINKLEY & ASSOCIATES LTD,"8,159.80",CAPITAL PS (REGEN),CONSTRUCTION FEES  - EXTERNAL,5902625163,1000088887
11.03.2024,Children and Adults,GLEN CARE GROUP,"8,141.12",LD LTS 18-64,RESIDENTIAL CARE,2103838361,1000050223
26.03.2024,Children and Adults,WANDSWORTH COUNCIL,"8,129.31",OTHER LA SPECIAL,STATEMENTED FEES,2103845084,1000020692
22.03.2024,Children and Adults,REDACTED PERSONAL DATA,"8,128.00",AP & HOSPITAL SCHLS,STATEMENTED FEES,2103844425,1000090905
15.03.2024,Housing,VERITAS  SOLICITORS,"8,125.00",DISREPAIR,PAYMENTS FOR LEGAL SERVICES,2103841092,1000088269
11.03.2024,Children and Adults,CHOICE CARE GROUP,"8,118.80",LD LTS 18-64,RESIDENTIAL CARE,2103837675,1572506
26.03.2024,Children and Adults,WANDSWORTH COUNCIL,"8,104.18",OTHER LA SPECIAL,STATEMENTED FEES,2103845085,1000020692
06.03.2024,Environment Neighbourhoods and Growth,DIRECT SERVICES SOLUTIONS LTD,"8,100.00",PUBLIC LIGHTING,OTHER CONTRACTORS,2103835309,3000002277
26.03.2024,Children and Adults,MILLWALL COMMUNITY TRUST,"8,096.00",HOLIDAY ACTIVITIES & FOOD,EXTERNAL AGENCIES AND BODIES,5902629284,11011221
28.03.2024,Environment Neighbourhoods and Growth,M H COACHWORKS & SONS LTD,"8,093.28",FLEET INSURANCE WORKS,TRANSPORT INSURANCE COSTS,5902630215,1000033495
02.03.2024,Housing,DACS LTD,"8,078.50",CAPITAL PS (HOUSING GF),CAPITAL GRANTS,5902624205,1000079747
11.03.2024,Children and Adults,ALWAYS INCLUSIVE LTD,"8,064.00",LD LTS 18-64,SUPPORTED LIVING,2103837572,1000088268
12.03.2024,Children and Adults,TEACHER ACTIVE LIMITED,"8,045.55",AP & HOSPITAL SCHLS,STATEMENTED FEES,2103838643,1000088338
22.03.2024,Children and Adults,TEACHER ACTIVE LIMITED,"8,045.55",AP & HOSPITAL SCHLS,STATEMENTED FEES,2103844423,1000088338
22.03.2024,Children and Adults,TEACHER ACTIVE LIMITED,"8,045.55",AP & HOSPITAL SCHLS,STATEMENTED FEES,2103844424,1000088338
22.03.2024,DSO,PROPERTY FACILITIES GROUP PLC,"8,015.00",SR TEMPORARY ACCOMMODATION DD,OTHER CONTRACTORS,2103843326,3000001420
11.03.2024,Children and Adults,LEONARD CHESHIRE (THICKET ROAD),"8,004.84",LD LTS 18-64,RESIDENTIAL CARE,2103838197,1000049761
11.03.2024,Children and Adults,THE LONDON CARE GROUP,"8,000.00",LD LTS 18-64,SUPPORTED LIVING,2103838383,1000090111
18.03.2024,Children and Adults,ST FRANCIS'S RC PRIMARY SCHOOL,"8,000.00",EHCP INCLUSION FUND,SCHOOLS CAPITATION,2103841231,5001000067
18.03.2024,Children and Adults,ST MARY MAGDALENE CE SCHOOL,"8,000.00",EHCP INCLUSION FUND,SCHOOLS CAPITATION,2103841236,5001000080
04.03.2024,Housing,ANISTEN HOMES,"8,000.00",PSL PLACEMENTS,GRANTS,5902625091,1000084438
05.03.2024,Housing,STAR PEOPLE LTD,"8,000.00",PSL PLACEMENTS,GRANTS,5902625318,1000088790
17.03.2024,Children and Adults,EDIBLE ROTHERHITHE CIC,"8,000.00",SUPERZONES,PROFESSIONAL FEES,5902627200,1000082775
31.03.2024,Housing,FUTURE OF LONDON 2011 LTD,"7,990.00",DEVELOPMENT DELIVERY,SUBSCRIPTIONS,5902629943,1000066868
11.03.2024,Children and Adults,ACHIEVE TOGETHER SERVICES LIMITED,"7,988.00",LD LTS 18-64,RESIDENTIAL CARE,2103837448,1000089975
11.03.2024,Children and Adults,DOLPHIN HOMES LTD,"7,970.84",PHY LTS 18-64,RESIDENTIAL CARE,2103838379,1000079959
23.03.2024,Housing,CLARKE WILLMOTT LLP,"7,965.00",CAPITAL PS (HRA),LAND & BUILDINGS ACQUISITION FEES,5902628084,1000026561
11.03.2024,Children and Adults,HIGH VIEW CARE SERVICES LTD,"7,957.88",MEM LTS 18-64,NURSING PLACEMENTS FEES,2103838169,1000053562
11.03.2024,Children and Adults,REESON CARE HOMES LTD,"7,931.04",LD LTS 18-64,SUPPORTED LIVING,2103838453,1000084007
13.03.2024,Environment Neighbourhoods and Growth,BLUE ELEPHANT THEATRE LTD,"7,922.00",ARTS GRANTS,GRANTS,5902627063,1000015417
25.03.2024,Environment Neighbourhoods and Growth,GLENDALE COUNTRYSIDE LTD,"7,900.46",TREES TERM CONTRACT,TREE MAINTENANCE,5902629060,1000070980
04.03.2024,Environment Neighbourhoods and Growth,UNIFIED CONSULTANCY LTD,"7,875.00",LEISURE INSOURCING MOBILISATION COST,PROFESSIONAL FEES,5902624500,1000081827
17.03.2024,Children and Adults,BHR PHARMACEUTICALS LTD,"7,875.00",HEALTH CHECKS CONTRACTS,MATERIALS,5902627610,1000082660
12.03.2024,Environment Neighbourhoods and Growth,TOFCO CPP LTD,"7,872.00",PUBLIC LIGHTING,MATERIALS,5902626764,1000084062
11.03.2024,Children and Adults,VOYAGE LTD (EVESLEIGH KENT),"7,859.88",PHY LTS 18-64,RESIDENTIAL CARE,2103837793,1000041320
11.03.2024,Children and Adults,ABBEY UPLANDS CARE HOME LIMITED,"7,846.48",PHY LTS 65+,NURSING PLACEMENTS FEES,2103837755,1000090830
15.03.2024,Environment Neighbourhoods and Growth,STOCKLEY BUILDING SERVICES LTD,"7,824.58",PECKHAM PULSE LEISURE CENTRE,BUILDING R&M,5902627663,1000089995
11.03.2024,Children and Adults,CHOICE SUPPORT,"7,818.80",LD LTS 18-64,SUPPORTED LIVING,2103838178,1104183
11.03.2024,Children and Adults,DISABILITIES TRUST,"7,815.40",PHY LTS 18-64,NURSING PLACEMENTS FEES,2103837497,1000043358
28.03.2024,Housing,A & E ELKINS LTD,"7,806.03",DESIGN & DELIVERY,PLANNED MAINTENANCE,2103849117,4012501
11.03.2024,Children and Adults,SAFFRONLAND HOMES (MINEHEAD),"7,800.00",LD LTS 18-64,RESIDENTIAL CARE,2103838289,1000072152
20.03.2024,Children and Adults,CITY OF LONDON ACADEMY,"7,800.00",PUBLIC HEALTH FHSM,SCHOOLS CAPITATION,2103842677,1000049128
29.03.2024,Housing,SEVILLE DEVELOPMENTS LIMITED,"7,800.00",CAPITAL PS (HRA),CONSTRUCTION MAIN CONTRACT -CERTIFICATED,5902628868,1000090393
11.03.2024,Children and Adults,SUNRISE REHABILITATION CENTRE,"7,789.60",LD LTS 18-64,SUPPORTED LIVING,2103837367,1000086998
13.03.2024,Children and Adults,EVERYONE HEALTH LTD,"7,777.00",HEALTHY WEIGHT,EXTERNAL AGENCIES AND BODIES,5902626995,1000084159
21.03.2024,Children and Adults,EVERYONE HEALTH LTD,"7,777.00",HEALTHY WEIGHT,EXTERNAL AGENCIES AND BODIES,5902627706,1000084159
28.03.2024,Housing,A & E ELKINS LTD,"7,766.23",DESIGN & DELIVERY,PLANNED MAINTENANCE,2103849113,4012501
22.03.2024,Environment Neighbourhoods and Growth,F M CONWAY LTD,"7,763.38",CAPITAL PS (LEISURE),CONSTRUCTION,2103844434,4001384
11.03.2024,Children and Adults,VALUE IN CARE LTD,"7,761.08",LD LTS 18-64,RESIDENTIAL CARE,2103838153,1000041975
26.03.2024,Children and Adults,WANDSWORTH COUNCIL,"7,751.62",OTHER LA SPECIAL,STATEMENTED FEES,2103845083,1000020692
11.03.2024,Children and Adults,PLUS SERVICES,"7,721.60",LD LTS 18-64,RESIDENTIAL CARE,2103838213,1000021241
11.03.2024,Children and Adults,VOYAGE CARE (MOUNTEARL),"7,713.64",LD LTS 18-64,RESIDENTIAL CARE,2103837975,1000078173
18.03.2024,Housing,NPOWER LTD,"7,712.44",RESIDENT SERVICES BUSINESS SUPPORT,ELECTRICITY,5902627791,1000078994
11.03.2024,Children and Adults,BRANDON TRUST,"7,695.64",LD LTS 18-64,SUPPORTED LIVING,2103837628,1000042417
11.03.2024,Children and Adults,CHOICE SUPPORT,"7,685.84",LD LTS 18-64,SUPPORTED LIVING,2103837559,1104183
26.03.2024,Children and Adults,WANDSWORTH COUNCIL,"7,681.10",OTHER LA SPECIAL,STATEMENTED FEES,2103845088,1000020692
26.03.2024,Suspense,TRAVIS PERKINS TRADING COMPANY LTD,"7,668.00",SUSPENSE ACCOUNT (COMPANY CODE 1000),CREDITORS -GR/IR CLEARING ACCOUNT,5902629388,1514319
11.03.2024,Children and Adults,ACHIEVE TOGETHER SERVICES LIMITED,"7,666.12",LD LTS 18-64,SUPPORTED LIVING,2103837960,1000089975
11.03.2024,Children and Adults,ACHIEVE TOGETHER SERVICES LIMITED,"7,662.68",LD LTS 18-64,RESIDENTIAL CARE,2103837345,1000089975
13.03.2024,Children and Adults,HOUSING 21,"7,659.14",EXTRA CARE CONTRACT,RENTS,5902626977,1000037120
28.03.2024,Children and Adults,SYNERGY FOSTERING LTD,"7,657.00",FRIENDS & FAMILY FOSTERING,EXTERNAL AGENCIES AND BODIES,2103846690,1000031559
04.03.2024,Housing,ARCHITECTURAL DECORATORS LTD,"7,653.96",CAPITAL PS (HRA),CONSTRUCTION MAIN CONTRACT -CERTIFICATED,2103834075,3000001065
12.03.2024,Corporate,ST FRANCIS'S RC PRIMARY SCHOOL,"7,652.73",EDUCATION VAT INPUTS,VAT CONTROL ACCOUNT,2103838555,5001000067
11.03.2024,Environment Neighbourhoods and Growth,R H  ENVIRONMENTAL LTD,"7,650.00",EH & TS MANAGER,SUBSCRIPTIONS,5902626446,1000070361
15.03.2024,Environment Neighbourhoods and Growth,PROJECT CENTRE LTD,"7,650.00",TRANSPORT PROJECTS,OTHER CONTRACTORS,5902626877,1000072621
05.03.2024,Environment Neighbourhoods and Growth,F M CONWAY LTD,"7,643.90",CAPITAL PS (REGEN),CONSTRUCTION,2103834357,4001384
04.03.2024,Housing,GUILDMORE LTD,"7,643.25",CAPITAL PS (HRA),CONSTRUCTION MAIN CONTRACT -CERTIFICATED,2103834219,3000002150
28.03.2024,Children and Adults,OPENMINDS SOCIAL CARE,"7,639.29",SEMI-IND LAC 16-17,EXTERNAL AGENCIES AND BODIES,2103847490,1000085800
04.03.2024,Corporate,BESSEMER GRANGE PRIMARY SCHOOL,"7,632.89",EDUCATION VAT INPUTS,VAT CONTROL ACCOUNT,2103832240,5001000009
08.03.2024,Environment Neighbourhoods and Growth,TREE SHEPHERD LTD,"7,630.73",BUSINESS SUPPORT,GRANTS,5902624949,1000076895
11.03.2024,Children and Adults,RESIDENTIAL CARE SERVICES LTD,"7,628.20",LD LTS 18-64,SUPPORTED LIVING,2103837520,1000082629
27.03.2024,Suspense,LONDON TOOLS LIMITED,"7,626.00",SUSPENSE ACCOUNT (COMPANY CODE 1000),CREDITORS -GR/IR CLEARING ACCOUNT,5902629806,1000003017
11.03.2024,Environment Neighbourhoods and Growth,THE GOOD PEOPLE BUSINESS LTD,"7,625.00",CHIEF EXECUTIVE'S OFFICE,EXTERNAL AGENCIES AND BODIES,5902626518,1000072947
04.03.2024,Environment Neighbourhoods and Growth,LONDON WILDLIFE TRUST,"7,620.00",ENVIRONMENT & LEISURE GRANTS,OTHER CONTRACTORS,5902624454,1832374
26.03.2024,Suspense,TRAVIS PERKINS TRADING COMPANY LTD,"7,620.00",SUSPENSE ACCOUNT (COMPANY CODE 1000),CREDITORS -GR/IR CLEARING ACCOUNT,5902629390,1514319
27.03.2024,Finance,GUYS & ST THOMAS NHS FOUNDATION TRUST,"7,613.00",MORTUARY,OTHER CONTRACTORS,5902629470,1765536
14.03.2024,Corporate,VALUATION OFFICE AGENCY,"7,610.00",PROPERTY RELATED INSURANCE,PROFESSIONAL FEES,5902627331,1000065901
14.03.2024,Environment Neighbourhoods and Growth,QUADRON SERVICES LIMITED,"7,588.00",CEMETERIES,GROUNDS MAINTENANCE,5902626020,1000066528
15.03.2024,Finance,BYWATERS (LEYTON) LTD,"7,566.76",TOWER WORKSHOPS,REFUSE COLLECTION CONTRACT,5902627679,1822101
11.03.2024,Children and Adults,BRANDON TRUST,"7,565.44",LD LTS 18-64,SUPPORTED LIVING,2103837471,1000042417
11.03.2024,Children and Adults,BRANDON TRUST,"7,565.44",LD LTS 18-64,SUPPORTED LIVING,2103837478,1000042417
11.03.2024,Children and Adults,BRANDON TRUST,"7,565.44",LD LTS 18-64,SUPPORTED LIVING,2103837743,1000042417
11.03.2024,Children and Adults,BRANDON TRUST,"7,565.44",LD LTS 18-64,SUPPORTED LIVING,2103838322,1000042417
11.03.2024,Children and Adults,COUNTRY COURT CARE HOMES 2 LTD,"7,563.24",PHY LTS 65+,NURSING PLACEMENTS FEES,2103837489,1000080172
11.03.2024,Children and Adults,COUNTRY COURT CARE HOMES 2 LTD,"7,563.24",PHY LTS 65+,NURSING PLACEMENTS FEES,2103838291,1000080172
27.03.2024,Housing,THEORI HOUSING MANAGEMENT SERVICES,"7,555.66",NIGHTLY TA (NSC),EXTERNAL AGENCIES AND BODIES,5902629651,1000079264
11.03.2024,Children and Adults,CHOICE SUPPORT,"7,551.88",LD LTS 18-64,SUPPORTED LIVING,2103837882,1104183
11.03.2024,Children and Adults,GARLAND LODGE LTD,"7,546.24",LD LTS 18-64,SUPPORTED LIVING,2103837522,1000084016
07.03.2024,Children and Adults,KEYRING-LIVING SUPPORT NETWORKS LTD,"7,544.87",LD LTS 18-64,EXTERNAL AGENCIES AND BODIES,5902624553,1486496
07.03.2024,Children and Adults,KEYRING-LIVING SUPPORT NETWORKS LTD,"7,544.87",LD LTS 18-64,EXTERNAL AGENCIES AND BODIES,5902624555,1486496
19.03.2024,Environment Neighbourhoods and Growth,RS REAL ESTATE LTD,"7,540.00",NO RECOURSE TO PUBLIC FUNDS,ACCOMMODATION CHARGES,5902628013,1000072485
11.03.2024,Children and Adults,CHOICE SUPPORT,"7,535.60",LD LTS 65+,SUPPORTED LIVING,2103837786,1104183
11.03.2024,Children and Adults,GREEN CARE AND SUPPORT LIMITED,"7,529.60",LD LTS 18-64,SUPPORTED LIVING,2103837368,1000087661
11.03.2024,Children and Adults,REDACTED PERSONAL DATA,"7,512.96",LD LTS 18-64,SUPPORTED LIVING,2103837697,1000088380
11.03.2024,Children and Adults,WELLSPRING CARE HOMES LIMITED,"7,508.00",LD LTS 18-64,SUPPORTED LIVING,2103837401,1000088216
18.03.2024,Housing,NIBLOCK (BUILDERS) LTD,"7,507.06",CAPITAL PS (HRA),CONSTRUCTION MAIN CONTRACT -CERTIFICATED,2103839383,3000000235
08.03.2024,Environment Neighbourhoods and Growth,PRELUDE PROPERTY SERVICES LTD,"7,500.00",SDM BUDGET,BUILDING R&M,2103835505,4010855
20.03.2024,Children and Adults,WALWORTH ACADEMY,"7,500.00",VIRTUAL SCHOOL PP,SCHOOLS CAPITATION,2103842799,1000062868
04.03.2024,Environment Neighbourhoods and Growth,ELEVATED MINDS CIC,"7,500.00",GRANTS COMMISSIONING,GRANTS,5902625084,1000083956
22.03.2024,Environment Neighbourhoods and Growth,GOLDSMITHS COLLEGE,"7,500.00",BUSINESS SUPPORT,GRANTS,5902628002,1000083164
20.03.2024,Environment Neighbourhoods and Growth,INSPIRE WALWORTH LTD,"7,500.00",GRANTS COMMISSIONING,GRANTS,5902628211,1000041565
25.03.2024,Environment Neighbourhoods and Growth,WESTMINSTER HOUSE YOUTH CLUB,"7,500.00",GRANTS COMMISSIONING,GRANTS,5902629034,11088645
29.03.2024,Children and Adults,IMPERIAL COLLEGE PROJECTS LTD,"7,500.00",SUPERZONES,MATERIALS,5902629113,1000080106
30.03.2024,Children and Adults,COHESION CONSULTING LTD,"7,500.00",PUBLIC HEALTH FHSM,EXTERNAL AGENCIES AND BODIES,5902629409,1000089725
11.03.2024,Children and Adults,BEECHCROFT SUPPORT LIMITED,"7,475.52",LD LTS 18-64,SUPPORTED LIVING,2103837831,1000085412
02.03.2024,Strategy and Communities,PENNA PLC,"7,472.00","POLICY, PARTNERSHIP & PERFORMANCE",CONSULTANTS SERVICES,5902624496,1000050664
11.03.2024,Children and Adults,LONDON CYRENIANS HOUSING LTD,"7,470.12",LD LTS 18-64,SUPPORTED LIVING,2103837325,1000078600
11.03.2024,Finance,NEC SOFTWARE SOLUTIONS UK LTD,"7,468.00",ADMINISTRATIVE SUPPORT,SOFTWARE,5902626157,1000087043
04.03.2024,Children and Adults,BESSEMER GRANGE PRIMARY SCHOOL,"7,459.00",SCHOOLS SUPPLEMENTARY GRANT,SCHOOLS CAPITATION,2103832059,5001000009
28.03.2024,DSO,CRATUS BUILDING SERVICES LIMITED,"7,453.04",PECKHAM & DULWICH DD,OTHER CONTRACTORS,2103846582,3000001055
11.03.2024,Children and Adults,ALWAYS INCLUSIVE LTD,"7,450.56",LD LTS 18-64,SUPPORTED LIVING,2103837693,1000088268
11.03.2024,Children and Adults,LONDON CYRENIANS HOUSING LTD,"7,427.20",LD LTS 18-64,SUPPORTED LIVING,2103838240,1000078600
06.03.2024,Suspense,BEW ELECTRICAL DISTRIBUTORS LTD,"7,424.00",SUSPENSE ACCOUNT (COMPANY CODE 1000),CREDITORS -GR/IR CLEARING ACCOUNT,5902625344,1000045371
04.03.2024,Children and Adults,WHITEFIELD ACADEMY TRUST,"7,416.67",OTHER LA SPECIAL,STATEMENTED FEES,2103834167,1000080971
11.03.2024,Children and Adults,HIGH VIEW CARE SERVICES LTD,"7,398.72",MH LTS 18-64,RESIDENTIAL CARE,2103837681,1000065920
11.03.2024,Children and Adults,CHOICE SUPPORT,"7,395.32",LD LTS 18-64,RESIDENTIAL CARE,2103837683,1104183
28.03.2024,Housing,LIBRA CONSTRUCTION SERVICES LTD,"7,386.12",DISREPAIR,BUILDING R&M,2103849111,3000000875
11.03.2024,Children and Adults,AGINCARE (SOUTHWARK) LIMITED,"7,385.71",PHY LTS 65+,RESIDENTIAL CARE,2103837600,1000089635
21.03.2024,DSO,DIAMOND SCAFFOLDING (SOUTH EAST),"7,359.30",SR COMMUNAL - DELIVERY TEAM,OTHER CONTRACTORS,2103842864,3000001625
04.03.2024,Children and Adults,ILDERTON MOTORVEHICLE PROJECT,"7,350.00",AP & HOSPITAL SCHLS,STATEMENTED FEES,2103834174,1000066082
28.03.2024,Environment Neighbourhoods and Growth,LONDON TOOLS LIMITED,"7,350.00",PUBLIC LIGHTING,MATERIALS,5902629876,1000003017
11.03.2024,Children and Adults,BURGESS AUTISTIC TRUST,"7,349.48",LD LTS 18-64,SUPPORTED LIVING,2103837863,1000044550
12.03.2024,Corporate,EVELINA HOSPITAL SCHOOL,"7,347.30",EDUCATION VAT INPUTS,VAT CONTROL ACCOUNT,2103838520,5001000031
12.03.2024,Environment Neighbourhoods and Growth,LEASEPLAN UK LTD,"7,337.83",COMMERCIAL VEH CTRL A/C,HIRED VEHICLES,5902626577,11014756
23.03.2024,Environment Neighbourhoods and Growth,BERMONDSEY PROJECT SPACE,"7,333.00",BUSINESS SUPPORT,GRANTS,5902628650,1000088331
28.03.2024,Environment Neighbourhoods and Growth,CABLE TEST LTD,"7,321.54",PUBLIC LIGHTING,OTHER CONTRACTORS,5902630095,1000079183
28.03.2024,Housing,T BROWN & SONS (HEATING) LTD,"7,313.07",HEATING AND HOT WATER,HEATING -DISTRICT SERVICE (CONTRACT SUM),5902629042,1000040191
11.03.2024,Children and Adults,BRANDON TRUST,"7,300.76",LD LTS 18-64,SUPPORTED LIVING,2103837921,1000042417
11.03.2024,Environment Neighbourhoods and Growth,EAST STREET COMMUNITY CIC,"7,300.00",BUSINESS SUPPORT,GRANTS,5902626371,1000090545
22.03.2024,Children and Adults,REDACTED PERSONAL DATA,"7,272.17",AP & HOSPITAL SCHLS,STATEMENTED FEES,2103844427,1000090899
22.03.2024,Children and Adults,REDACTED PERSONAL DATA,"7,272.16",AP & HOSPITAL SCHLS,STATEMENTED FEES,2103844428,1000090899
12.03.2024,Children and Adults,FAITHFUL & GOULD,"7,272.00",CAPITAL PS (EDUCATION),CONSTRUCTION FEES  - EXTERNAL,5902626596,1000061390
12.03.2024,Corporate,ROBERT BROWNING PRIMARY SCHOOL,"7,256.34",EDUCATION VAT INPUTS,VAT CONTROL ACCOUNT,2103838541,5001000057
11.03.2024,Children and Adults,ALWAYS INCLUSIVE LTD,"7,250.88",LD LTS 18-64,SUPPORTED LIVING,2103838117,1000088268
01.03.2024,Children and Adults,BLOOM PROCUREMENT SERVICES LTD,"7,250.00",CAPITAL PS (EDUCATION),CONSTRUCTION FEES  - EXTERNAL,5902623696,1000082531
21.03.2024,Finance,MAKING PLACES TOGETHER LTD.,"7,250.00",DIGITAL TRANSFORMATION TEAM,CONSULTANTS SERVICES,5902627786,1000089222
28.03.2024,Children and Adults,BLOOM PROCUREMENT SERVICES LTD,"7,250.00",CAPITAL PS (EDUCATION),CONSTRUCTION FEES  - EXTERNAL,5902628810,1000082531
11.03.2024,Children and Adults,SALISBURY SUPPORT 4 AUTISM LTD,"7,235.20",LD LTS 18-64,SUPPORTED LIVING,2103837721,1000082674
26.03.2024,Environment Neighbourhoods and Growth,CENTRE FOR ACCESSIBLE ENVIRONMENTS,"7,225.00",CAPITAL PS (LEISURE),CONSTRUCTION FEES,5902629260,1000084909
11.03.2024,Children and Adults,BOSCOMBE CARE HOMES LIMITED,"7,215.89",PHY LTS 65+,NURSING PLACEMENTS FEES,2103838318,1000090825
04.03.2024,Children and Adults,ILDERTON MOTORVEHICLE PROJECT,"7,200.00",AP & HOSPITAL SCHLS,STATEMENTED FEES,2103834182,1000066082
20.03.2024,Children and Adults,UNIVERSITY ENGINEERING ACADEMY,"7,200.00",PUBLIC HEALTH FHSM,SCHOOLS CAPITATION,2103842685,1000074104
12.03.2024,Children and Adults,TEACHER ACTIVE LIMITED,"7,198.65",AP & HOSPITAL SCHLS,STATEMENTED FEES,2103838640,1000088338
12.03.2024,Children and Adults,TEACHER ACTIVE LIMITED,"7,198.65",AP & HOSPITAL SCHLS,STATEMENTED FEES,2103838641,1000088338
12.03.2024,Children and Adults,TEACHER ACTIVE LIMITED,"7,198.65",AP & HOSPITAL SCHLS,STATEMENTED FEES,2103838642,1000088338
09.03.2024,Children and Adults,LONDON BOROUGH OF HARINGEY,"7,174.49",PH DIRECTOR'S TEAM,SUBSCRIPTIONS,5902625127,1000070686
28.03.2024,Corporate,MARSTON GROUP LTD,"7,164.54",VAT INPUTS - ADJUSTMENTS,VAT CONTROL ACCOUNT,2103847757,1000076638
07.03.2024,Housing,HEXAGON HOUSING ASSOCIATION LTD,"7,153.14",JOE RICHARDS HOSTEL,EXTERNAL AGENCIES AND BODIES,5902625817,1000014698
27.03.2024,Housing,HEXAGON HOUSING ASSOCIATION LTD,"7,153.14",JOE RICHARDS HOSTEL,EXTERNAL AGENCIES AND BODIES,5902629419,1000014698
30.03.2024,Housing,HEXAGON HOUSING ASSOCIATION LTD,"7,153.14",JOE RICHARDS HOSTEL,EXTERNAL AGENCIES AND BODIES,5902629443,1000014698
21.03.2024,Children and Adults,OPENMINDS SOCIAL CARE,"7,146.42",SEMI-IND LAC 16-17,EXTERNAL AGENCIES AND BODIES,2103843190,1000085800
11.03.2024,Children and Adults,BRANDON TRUST,"7,142.20",LD LTS 18-64,SUPPORTED LIVING,2103837474,1000042417
11.03.2024,Children and Adults,BRANDON TRUST,"7,142.20",LD LTS 18-64,SUPPORTED LIVING,2103838059,1000042417
11.03.2024,Children and Adults,BRANDON TRUST,"7,142.20",LD LTS 18-64,SUPPORTED LIVING,2103838070,1000042417
12.03.2024,Corporate,WILDER CITY LIMITED,"7,139.60",VAT INPUTS - ADJUSTMENTS,VAT CONTROL ACCOUNT,2103838929,1000089927
11.03.2024,Children and Adults,ALWAYS INCLUSIVE LTD,"7,138.56",LD LTS 18-64,SUPPORTED LIVING,2103838119,1000088268
11.03.2024,Children and Adults,ALWAYS INCLUSIVE LTD,"7,138.56",LD LTS 18-64,SUPPORTED LIVING,2103838163,1000088268
11.03.2024,Children and Adults,OVAL CARE HOMES LTD,"7,113.60",LD LTS 18-64,SUPPORTED LIVING,2103838199,1000089506
12.03.2024,Corporate,BELLENDEN PRIMARY SCHOOL,"7,095.58",EDUCATION VAT INPUTS,VAT CONTROL ACCOUNT,2103838521,5001000007
18.03.2024,Environment Neighbourhoods and Growth,KENT COUNTY COUNCIL - LASER,"7,083.40",BUSINESS CORE,ELECTRICITY,5902627845,1000012926
08.03.2024,Environment Neighbourhoods and Growth,CBS MAINTENANCE SERVICES LTD,"7,080.00",CAPITAL PS (REGEN),CONSTRUCTION FEES  - EXTERNAL,2103835480,3000001518
23.03.2024,Housing,STANDAGE & CO LTD,"7,074.75",CAPITAL PS (HRA),CONSTRUCTION MAIN CONTRACT -CERTIFICATED,2103841620,4002817
11.03.2024,Children and Adults,GREEN CARE AND SUPPORT LIMITED,"7,072.00",LD LTS 18-64,SUPPORTED LIVING,2103838120,1000087661
11.03.2024,Children and Adults,CHOICE SUPPORT,"7,064.12",LD LTS 18-64,SUPPORTED LIVING,2103837343,1104183
28.03.2024,Children and Adults,ASCENT FOSTERING AGENCY LTD,"7,063.66",FRIENDS & FAMILY FOSTERING,EXTERNAL AGENCIES AND BODIES,2103846665,1000074714
11.03.2024,Children and Adults,CLACTON FAMILY TRUST RESIDENTIAL HOME,"7,062.52",LD LTS 18-64,SUPPORTED LIVING,2103838116,1000086761
11.03.2024,Children and Adults,ST JOHNS NURSING HOME LTD,"7,059.20",DISCHARGE TO ACCESS,NURSING PLACEMENTS FEES,2103837437,1000047405
06.03.2024,Environment Neighbourhoods and Growth,NATIONWIDE ACCOMMODATION,"7,056.14",NO RECOURSE TO PUBLIC FUNDS,ACCOMMODATION CHARGES,5902625603,1000076112
18.03.2024,Environment Neighbourhoods and Growth,KENT COUNTY COUNCIL - LASER,"7,055.22",SOUTHWARK ATHLETICS CENTRE,ELECTRICITY,5902627732,1000012926
12.03.2024,Environment Neighbourhoods and Growth,JAMES M ANDERSON LTD,"7,050.00",PUBLIC LIGHTING,MATERIALS,5902626750,1000089698
11.03.2024,Children and Adults,CRAEGMOOR HEALTHCARE,"7,047.92",LD LTS 18-64,RESIDENTIAL CARE,2103837508,1323845
11.03.2024,Children and Adults,GREEN CARE AND SUPPORT LIMITED,"7,040.00",LD LTS 18-64 AAD,SUPPORTED LIVING,2103837896,1000087661
11.03.2024,Children and Adults,CHOICE SUPPORT,"7,036.76",LD LTS 18-64,SUPPORTED LIVING,2103837782,1104183
22.03.2024,Children and Adults,BALLERS ACADEMY CIC,"7,022.00",HOLIDAY ACTIVITIES & FOOD,EXTERNAL AGENCIES AND BODIES,5902627838,1000088628
08.03.2024,Children and Adults,PEOPLE PLUS GROUP LTD (INDEPENDENT LIVING SERVICES),"7,014.72",PHB - SEL ICB,RECOVERABLE COSTS INCL. HEALTH,2103836605,1000061886
11.03.2024,Children and Adults,VOYAGE LTD (EVESLEIGH KENT),"7,010.28",LD LTS 18-64,RESIDENTIAL CARE,2103838091,1000041320
07.03.2024,Environment Neighbourhoods and Growth,KENT COUNTY COUNCIL - LASER,"7,005.07",CEMETERIES,GAS,5902626011,1000012926
28.03.2024,Housing,MOTT MACDONALD LTD,"7,000.00",DEVELOPMENT DELIVERY,PROFESSIONAL FEES,5902629961,1000067305
28.03.2024,Finance,ASTEROS ADVISORS LTD,"7,000.00",MASTER PLAN - H/WAY & TRANS INTERCHANGE,PROFESSIONAL FEES,5902630129,1000089270
01.03.2024,Children and Adults,EVERYONE HEALTH LTD,"6,995.00",STOP SMOKING,EXTERNAL AGENCIES AND BODIES,5902624453,1000084159
11.03.2024,Children and Adults,CHOICE SUPPORT,"6,988.32",LD LTS 18-64,SUPPORTED LIVING,2103837432,1104183
05.03.2024,Housing,THAMES VALLEY CONTROLS LTD,"6,983.00",THAMES VALLEY CONTROL,I-WORLD CONTRACTORS HOLDING ACCOUNT,5902625245,1295718
06.03.2024,DSO,ARMINA LTD,"6,969.65",DAMP & MOULD TEAM,OTHER CONTRACTORS,2103834365,3000002121
21.03.2024,Suspense,HSF HEALTH PLAN,"6,962.83",SUSPENSE ACCOUNT (COMPANY CODE 1000),PAYROLL - 3RD PARTY DEDUCTIONS,2103843233,1000053489
21.03.2024,Environment Neighbourhoods and Growth,M H COACHWORKS & SONS LTD,"6,962.43",FLEET INSURANCE WORKS,TRANSPORT INSURANCE COSTS,5902628518,1000033495
11.03.2024,Children and Adults,COGNITHAN LTD,"6,952.20",PHY LTS 18-64,SUPPORTED LIVING,2103838009,1000090046
27.03.2024,Children and Adults,REDACTED PERSONAL DATA,"6,945.14",FOSTERING ALLOWANCES,PAYMENTS TO CARERS,2103845494,1000046003
11.03.2024,Children and Adults,CHOICE SUPPORT,"6,924.68",LD LTS 18-64,SUPPORTED LIVING,2103838261,1104183
11.03.2024,Children and Adults,ARIA HEALTHCARE GROUP LTD,"6,921.16",PHY LTS 18-64,NURSING PLACEMENTS FEES,2103837850,1000090139
11.03.2024,Children and Adults,VOYAGE LTD (EVESLEIGH KENT),"6,921.12",LD LTS 18-64,RESIDENTIAL CARE,2103837652,1000041320
11.03.2024,Suspense,BEW ELECTRICAL DISTRIBUTORS LTD,"6,910.00",SUSPENSE ACCOUNT (COMPANY CODE 1000),CREDITORS -GR/IR CLEARING ACCOUNT,5902626517,1000045371
12.03.2024,Corporate,ST MARY MAGDALENE CE SCHOOL,"6,909.26",EDUCATION VAT INPUTS,VAT CONTROL ACCOUNT,2103838543,5001000080
12.03.2024,Governance and Assurance,INFINITY NETWORKS LTD,"6,902.00",160 TOOLEY ST.,BUILDING R&M,5902626618,1000035571
11.03.2024,Children and Adults,ABBEY UPLANDS CARE HOME LIMITED,"6,887.44",MEM LTS 65+,NURSING PLACEMENTS FEES,2103837754,1000090830
11.03.2024,Children and Adults,ABBEY UPLANDS CARE HOME LIMITED,"6,887.44",PHY LTS 65+,NURSING PLACEMENTS FEES,2103838386,1000090830
12.03.2024,Corporate,ILDERTON PRIMARY SCHOOL,"6,874.10",EDUCATION VAT INPUTS,VAT CONTROL ACCOUNT,2103838577,5001000037
05.03.2024,Children and Adults,LITTLE ACORNS DAY NURSERY,"6,873.00",TEAM C,OTHER PAYMENTS FOR CLIENTS,5902625197,1000015844
04.03.2024,Housing,LONDON CLAPHAM SOUTH LTD,"6,860.00",NIGHTLY TA (NSC),EXTERNAL AGENCIES AND BODIES,5902625074,1000087760
11.03.2024,Children and Adults,COUNTRY COURT CARE HOMES 2 LTD,"6,852.86",MH LTS 18-64,NURSING PLACEMENTS FEES,2103837601,1000080172
28.03.2024,DSO,ARMINA LTD,"6,852.61",NUNHEAD DD,OTHER CONTRACTORS,2103846577,3000002121
11.03.2024,Children and Adults,CARE UK,"6,851.52",PHY LTS 65+,NURSING PLACEMENTS FEES,2103837634,1000063363
11.03.2024,Children and Adults,INDEPENDENCE HOMES LTD,"6,834.12",LD LTS 18-64,SUPPORTED LIVING,2103837977,1000058961
15.03.2024,Children and Adults,INTERCOUNTRY ADOPTION CENTRE,"6,825.00",ADOPT LONDON SOUTH,PROFESSIONAL FEES,5902626112,1000035796
07.03.2024,Housing,LIVING ACCOMMODATION LTD,"6,820.00",NIGHTLY TA (NSC),EXTERNAL AGENCIES AND BODIES,5902625689,1000063985
11.03.2024,Children and Adults,STEPPING STONES RESETTLEMENT UNIT,"6,810.64",LD LTS 18-64,RESIDENTIAL CARE,2103837501,1000032806
11.03.2024,Housing,CITYGLEN LTD,"6,791.80",NIGHTLY TA (NSC),EXTERNAL AGENCIES AND BODIES,5902626161,1000026239
07.03.2024,Children and Adults,PHEBDAN HEALTHCARE SERVICES LIMITED,"6,790.00",LD LTS 18-64 AAD,OUTREACH,2103835404,1000087033
09.03.2024,Housing,CALFORD SEADEN LLP,"6,783.72",CAPITAL PS (HRA),CONSTRUCTION FEES  - EXTERNAL,5902625709,1061592
04.03.2024,Children and Adults,ILDERTON MOTORVEHICLE PROJECT,"6,780.00",AP & HOSPITAL SCHLS,STATEMENTED FEES,2103834179,1000066082
14.03.2024,Environment Neighbourhoods and Growth,WATER PLUS LTD,"6,778.22",PECKHAM PULSE LEISURE CENTRE,WATER,5902627172,1000087903
24.03.2024,Suspense,CITY ELECTRICAL FACTORS LTD,"6,778.00",SUSPENSE ACCOUNT (COMPANY CODE 1000),CREDITORS -GR/IR CLEARING ACCOUNT,5902628886,1003485
11.03.2024,Children and Adults,TEACHERS PENSIONS,"6,775.80",SCHOOLS IN FINANCIAL DIFFICULTY,PROFESSIONAL FEES,5902626370,1000002334
20.03.2024,Environment Neighbourhoods and Growth,STOCKLEY BUILDING SERVICES LTD,"6,761.34",SEVEN ISLANDS LEISURE CENTRE,BUILDING R&M,5902628395,1000089995
12.03.2024,Corporate,ST GEORGES RC SCHOOL,"6,760.48",EDUCATION VAT INPUTS,VAT CONTROL ACCOUNT,2103838517,5001000068
14.03.2024,Housing,DUCTCLEAN (UK) LTD,"6,757.51",DUCTCLEAN,I-WORLD CONTRACTORS HOLDING ACCOUNT,2103839390,3000001635
17.03.2024,Housing,HARROW GREEN LTD,"6,748.00",RESIDENT SERVICES BUSINESS SUPPORT,REMOVAL EXPENSES,5902627114,1000076673
07.03.2024,Environment Neighbourhoods and Growth,LDA DESIGN CONSULTING LTD,"6,744.00",CAPITAL PS (REGEN),CONSTRUCTION FEES - ARCHITECT,5902625976,1000031830
12.03.2024,Corporate,BOUCHER C OF E PRIMARY SCHOOL,"6,743.28",EDUCATION VAT INPUTS,VAT CONTROL ACCOUNT,2103838544,5001000011
12.03.2024,Corporate,ST JAMES CE PRIMARY SCHOOL,"6,737.59",EDUCATION VAT INPUTS,VAT CONTROL ACCOUNT,2103838567,5001000070
11.03.2024,Children and Adults,SAFFRONLAND HOMES,"6,737.12",LD LTS 65+,RESIDENTIAL CARE,2103838362,11172608
22.03.2024,Children and Adults,PARENT SKILLS2GO,"6,720.00",HOLIDAY ACTIVITIES & FOOD,EXTERNAL AGENCIES AND BODIES,5902628175,1000066441
28.03.2024,Children and Adults,FUTURES FOR CHILDREN LIMITED,"6,713.98",FRIENDS & FAMILY FOSTERING,EXTERNAL AGENCIES AND BODIES,2103846642,1000041984
11.03.2024,Children and Adults,CHOICE SUPPORT,"6,713.00",LD LTS 18-64,SUPPORTED LIVING,2103837781,1104183
20.03.2024,Children and Adults,THE ST THOMAS THE APOSTLE COLLEGE,"6,700.00",PUBLIC HEALTH FHSM,SCHOOLS CAPITATION,2103842691,5001000074
15.03.2024,Children and Adults,BROADLANDS HALL LIMITED,"6,695.00",DISABILITIES LAC,EXTERNAL AGENCIES AND BODIES,2103841151,1000084303
28.03.2024,Children and Adults,E A JIGSAW CARE LIMITED,"6,687.01",SEMI-IND LAC 16-17,OTHER PAYMENTS FOR CLIENTS,2103847480,1000084233
11.03.2024,Children and Adults,CHOICE SUPPORT,"6,686.84",LD LTS 18-64,SUPPORTED LIVING,2103838154,1104183
25.03.2024,Children and Adults,INTEGRATED SERVICES PROGRAMME,"6,685.72",FRIENDS & FAMILY FOSTERING,EXTERNAL AGENCIES AND BODIES,2103844643,1642068
28.03.2024,Children and Adults,THE XCEL 2000 PARTNERSHIP LTD,"6,668.66",FRIENDS & FAMILY FOSTERING,EXTERNAL AGENCIES AND BODIES,2103846675,1000024427
20.03.2024,Housing,CENTRE 70 LTD,"6,666.67",DISREPAIR,PAYMENTS FOR LEGAL SERVICES,2103842668,1000048314
10.03.2024,Environment Neighbourhoods and Growth,STAFFORDSHIRE STREET C.I.C,"6,666.67",ARTS GRANTS,GRANTS,5902625514,1000090838
11.03.2024,Children and Adults,PRIORY,"6,665.48",PHY LTS 18-64,NURSING PLACEMENTS FEES,2103838083,1000015902
04.03.2024,Housing,LONDON CLAPHAM SOUTH LTD,"6,665.00",NIGHTLY TA (NSC),EXTERNAL AGENCIES AND BODIES,5902625002,1000087760
18.03.2024,Housing,VIGILANT SECURITY SERVICES UK,"6,652.80",DAVID BARKER HOSTEL,SECURITY SERVICES,5902627806,1000090073
08.03.2024,Children and Adults,REDACTED PERSONAL DATA,"6,644.40",LD LTS 18-64,PAYMENTS TO CLIENTS (DIRECT PAYMENTS),2103836111,1000060258
28.03.2024,Children and Adults,INTEGRATED SERVICES PROGRAMME,"6,638.69",FRIENDS & FAMILY FOSTERING,EXTERNAL AGENCIES AND BODIES,2103846680,1642068
28.03.2024,Children and Adults,MOSAIC FOSTER CARE LTD,"6,626.25",FRIENDS & FAMILY FOSTERING,EXTERNAL AGENCIES AND BODIES,2103846653,1000076259
11.03.2024,Children and Adults,PLUS SERVICES,"6,619.56",LD LTS 65+,SUPPORTED LIVING,2103837322,1000021241
28.03.2024,Children and Adults,LIKA FAMILY FOSTERING,"6,607.43",FRIENDS & FAMILY FOSTERING,EXTERNAL AGENCIES AND BODIES,2103847348,1000080099
05.03.2024,Suspense,N & C BUILDING MATERIALS,"6,592.00",SUSPENSE ACCOUNT (COMPANY CODE 1000),CREDITORS -GR/IR CLEARING ACCOUNT,5902625259,1005586
11.03.2024,Children and Adults,KEMKARE LTD,"6,580.00",LD LTS 18-64,SUPPORTED LIVING,2103837665,1000084181
11.03.2024,Children and Adults,KEMKARE LTD,"6,580.00",LD LTS 18-64,SUPPORTED LIVING,2103838279,1000084181
13.03.2024,Children and Adults,CHIPTECH INTERNATIONAL LIMITED,"6,576.84",TELECARE EQUIPMENT,EQUIPMENT PURCHASE & REPAIR,5902627104,1000088502
04.03.2024,Housing,OLIVER LANDON LTD,"6,572.00",NIGHTLY TA (NSC),EXTERNAL AGENCIES AND BODIES,5902624972,1000082788
15.03.2024,Children and Adults,KEEVA CARE LIMITED,"6,524.00",LD LTS 65+,SUPPORTED LIVING,2103841129,1000086100
15.03.2024,Children and Adults,KEEVA CARE LIMITED,"6,524.00",LD LTS 65+,SUPPORTED LIVING,2103841132,1000086100
05.03.2024,Environment Neighbourhoods and Growth,F M CONWAY LTD,"6,515.42",CAPITAL PS (LEISURE),CONSTRUCTION,2103834303,4001384
11.03.2024,Children and Adults,BRANDON TRUST,"6,507.96",LD LTS 18-64,SUPPORTED LIVING,2103838055,1000042417
11.03.2024,Children and Adults,KENT COUNTY COUNCIL - LASER,"6,501.07",THOMAS CALTON CENTRE,GAS,5902626363,1000012926
08.03.2024,Housing,PULSE ASSOCIATES LTD (T/A PULSE CONSULT),"6,500.00",CAPITAL PS (HRA),CONSTRUCTION FEES - EMPLOYERS AGENT,5902625028,1000087233
15.03.2024,Children and Adults,IMPROVING HEALTH LTD,"6,500.00",HEALTH CHECKS CONTRACTS,EXTERNAL AGENCIES AND BODIES,5902627064,1000079313
15.03.2024,Environment Neighbourhoods and Growth,BRINSON STANILAND PARTNERSHIP LTD,"6,500.00",LEISURE INSOURCING MOBILISATION COST,PROFESSIONAL FEES,5902627665,1000059553
19.03.2024,Environment Neighbourhoods and Growth,METIS CONSULTANTS LIMITED,"6,489.06",STREETS FOR PEOPLE - WALKING,CONSULTANTS SERVICES,5902627949,1000086330
08.03.2024,Children and Adults,PEOPLE PLUS GROUP LTD (INDEPENDENT LIVING SERVICES),"6,488.48",LD LTS 18-64,PAYMENTS TO CLIENTS (DIRECT PAYMENTS),2103836110,1000061886
28.03.2024,Children and Adults,INTEGRATED SERVICES PROGRAMME,"6,464.16",FRIENDS & FAMILY FOSTERING,EXTERNAL AGENCIES AND BODIES,2103846681,1642068
28.03.2024,Children and Adults,INTEGRATED SERVICES PROGRAMME,"6,464.16",FRIENDS & FAMILY FOSTERING,EXTERNAL AGENCIES AND BODIES,2103846682,1642068
25.03.2024,Environment Neighbourhoods and Growth,COIN STREET CENTRE TRUST,"6,462.50",GRANTS COMMISSIONING,GRANTS,5902629037,1000046703
11.03.2024,Children and Adults,OPTIMA CARE (SHINE) LONDON LTD,"6,453.84",LD LTS 18-64,SUPPORTED LIVING,2103837364,1000079614
11.03.2024,Children and Adults,KEMPTON CARE AND SUPPORT SERVICES LTD,"6,448.00",LD LTS 18-64,SUPPORTED LIVING,2103837696,1000087491
22.03.2024,Environment Neighbourhoods and Growth,SURREY DOCKS FARM PROVIDENT SOCIETY,"6,438.75",GRANTS COMMISSIONING,GRANTS,5902628907,1000000958
11.03.2024,Children and Adults,KEEVA CARE LIMITED,"6,428.60",LD LTS 18-64,SUPPORTED LIVING,2103837526,1000086100
11.03.2024,Children and Adults,COUNTRY COURT CARE HOMES 2 LTD,"6,428.55",DISCHARGE TO ACCESS,NURSING PLACEMENTS FEES,2103837748,1000080172
12.03.2024,Housing,KENT COUNTY COUNCIL - LASER,"6,426.09",HEATING ACCOUNT,ELECTRICITY,5902626666,1000012926
11.03.2024,Children and Adults,BRANDON TRUST,"6,422.24",LD LTS 18-64,SUPPORTED LIVING,2103837667,1000042417
21.03.2024,Children and Adults,DULWICH WOOD CHILDRENS CENTRE,"6,418.00",LBS MAINSTREAM,SCHOOLS CAPITATION,2103842539,5001000099
22.03.2024,Children and Adults,DULWICH WOOD CHILDRENS CENTRE,"6,418.00",LBS MAINSTREAM,SCHOOLS CAPITATION,2103843286,5001000099
13.03.2024,Finance,DSI BILLING SERVICES LTD,"6,417.62",ADMINISTRATIVE SUPPORT,POSTAGES,5902625970,1000058640
11.03.2024,Children and Adults,THE MEATH,"6,414.28",LD LTS 18-64,RESIDENTIAL CARE,2103838088,1000056796
11.03.2024,Children and Adults,AGINCARE (SOUTHWARK) LIMITED,"6,407.14",PHY LTS 65+,RESIDENTIAL CARE,2103837902,1000089635
11.03.2024,Children and Adults,BRANDON TRUST,"6,396.08",LD LTS 18-64,SUPPORTED LIVING,2103838275,1000042417
27.03.2024,Finance,CLYDE & CO,"6,387.00","COURAGE YARD, SHAD THAMES",SOLICITORS FRAMEWORK LEGAL SERVICES,5902629510,1000067838
11.03.2024,Children and Adults,BRANDON TRUST,"6,370.44",LD LTS 18-64,SUPPORTED LIVING,2103837486,1000042417
11.03.2024,Children and Adults,BRANDON TRUST,"6,370.44",LD LTS 65+,SUPPORTED LIVING,2103838011,1000042417
07.03.2024,Children and Adults,WANDSWORTH COUNCIL,"6,367.85",SPECIALIST CARE,PLACEMENTS - RESPITE,2103835411,1000020692
11.03.2024,Children and Adults,ACHIEVE TOGETHER SERVICES LIMITED,"6,363.60",MEM LTS 18-64,SUPPORTED LIVING,2103838184,1000089975
12.03.2024,Children and Adults,JOHN RUSKIN PRIMARY SCHOOL,"6,360.70",NURSERY ED GRANT 3 AND 4 YR OLDS,EARLY YEARS - 3 AND 4 YEAR OLDS,2103838745,5001000040
20.03.2024,Housing,PENNINGTON CHOICES LTD,"6,344.19",PENNINGTON,I-WORLD CONTRACTORS HOLDING ACCOUNT,5902628216,1000067888
28.03.2024,Children and Adults,NATIONAL FOSTERING AGENCY LTD,"6,332.68",FRIENDS & FAMILY FOSTERING,EXTERNAL AGENCIES AND BODIES,2103846686,1000038868
28.03.2024,Children and Adults,INTEGRATED SERVICES PROGRAMME,"6,326.21",FRIENDS & FAMILY FOSTERING,EXTERNAL AGENCIES AND BODIES,2103846677,1642068
28.03.2024,Children and Adults,INTEGRATED SERVICES PROGRAMME,"6,326.21",FRIENDS & FAMILY FOSTERING,EXTERNAL AGENCIES AND BODIES,2103846698,1642068
28.03.2024,Children and Adults,INTEGRATED SERVICES PROGRAMME,"6,326.21",FRIENDS & FAMILY FOSTERING,EXTERNAL AGENCIES AND BODIES,2103846699,1642068
05.03.2024,Children and Adults,BIONICAL SOLUTIONS LIMITED,"6,315.76",STOP SMOKING,EXTERNAL AGENCIES AND BODIES,5902625135,1000084774
21.03.2024,DSO,SMITHY DECORATING,"6,314.98",SBS DISREPAIR,OTHER CONTRACTORS,2103842866,3000002050
11.03.2024,Children and Adults,THE DRIVE CARE HOMES LTD,"6,311.52",LD LTS 18-64,RESIDENTIAL CARE,2103838142,1000003889
11.03.2024,Children and Adults,BRANDON TRUST,"6,309.76",LD LTS 18-64,SUPPORTED LIVING,2103838054,1000042417
11.03.2024,Children and Adults,ACCORDIA SUPPORTED LIVINGS SERVICES LTD,"6,308.64",LD LTS 18-64,SUPPORTED LIVING,2103837560,1000089509
10.03.2024,Environment Neighbourhoods and Growth,VIKING SYSTEMS LTD,"6,300.00",SDM BUDGET,SOFTWARE,5902625678,1000090601
26.03.2024,Environment Neighbourhoods and Growth,FUTURE FIT FOR BUSINESS LTD,"6,300.00",LEISURE INSOURCING MOBILISATION COST,CONSULTANTS SERVICES,5902629374,1000088812
27.03.2024,Suspense,LONDON TOOLS LIMITED,"6,300.00",SUSPENSE ACCOUNT (COMPANY CODE 1000),CREDITORS -GR/IR CLEARING ACCOUNT,5902629807,1000003017
04.03.2024,Housing,CITYGLEN LTD,"6,290.20",RAPID REHOUSING,EXTERNAL AGENCIES AND BODIES,5902625111,1000026239
11.03.2024,Children and Adults,RYDE HOUSE,"6,282.96",LD LTS 18-64,SUPPORTED LIVING,2103837331,1022373
23.03.2024,Environment Neighbourhoods and Growth,BOUYGUES (UK) LTD,"6,280.91",CAPITAL PS (REGEN),CONSTRUCTION MAIN CONTRACT -CERTIFICATED,2103842870,3000002179
07.03.2024,Children and Adults,COMMITTED CARE HOUSING,"6,279.29",SEMI-IND LAC 16-17,EXTERNAL AGENCIES AND BODIES,2103835361,1000086257
27.03.2024,Housing,ILFORD GRAND HOTEL LTD,"6,270.00",NIGHTLY TA (NSC),EXTERNAL AGENCIES AND BODIES,5902629423,1000090883
25.03.2024,Environment Neighbourhoods and Growth,GLENDALE COUNTRYSIDE LTD,"6,269.88",TREES TERM CONTRACT,TREE MAINTENANCE,5902629063,1000070980
28.03.2024,Children and Adults,HYTHE HOUSE SUPPORT LTD,"6,269.30",FRIENDS & FAMILY FOSTERING,EXTERNAL AGENCIES AND BODIES,2103846692,1000081618
26.03.2024,Housing,CALFORD SEADEN LLP,"6,265.00",CAPITAL PS (HRA),CONSTRUCTION FEES  - EXTERNAL,5902629262,1061592
04.03.2024,Environment Neighbourhoods and Growth,METIS CONSULTANTS LIMITED,"6,259.50",CAPITAL PS (LEISURE),CONSTRUCTION FEES  - EXTERNAL,5902625062,1000086330
11.03.2024,Housing,CANTER LEVIN & BERG LTD,"6,250.00",DISREPAIR,PAYMENTS FOR LEGAL SERVICES,2103838485,1000089898
15.03.2024,Housing,ANTONY HODARI  SOLICITORS,"6,250.00",DISREPAIR,PAYMENTS FOR LEGAL SERVICES,2103841084,1000031040
20.03.2024,Housing,SATCHELL MORAN SOLICITORS LTD,"6,250.00",DISREPAIR,PAYMENTS FOR LEGAL SERVICES,2103842667,1000087281
13.03.2024,Children and Adults,ANGELS COMMUNITY HUB CIC,"6,250.00",SHORT BREAKS INNV FUND,EXTERNAL AGENCIES AND BODIES,5902627069,1000090205
15.03.2024,Finance,MOBIUS BUILDING CONSULTANCY LTD,"6,250.00",CPHA SURPLUS,PROFESSIONAL FEES,5902627502,1000089433
11.03.2024,Children and Adults,ACHIEVE TOGETHER SERVICES LIMITED,"6,248.76",LD LTS 18-64,RESIDENTIAL CARE,2103837547,1000089975
11.03.2024,Children and Adults,GREEN CARE AND SUPPORT LIMITED,"6,240.00",LD LTS 18-64,SUPPORTED LIVING,2103837530,1000087661
11.03.2024,Children and Adults,NEXUS PROGRAMME LTD,"6,240.00",LD LTS 18-64,SUPPORTED LIVING,2103837839,1000025336
11.03.2024,Children and Adults,SUNRISE REHABILITATION CENTRE,"6,240.00",MH LTS 18-64,SUPPORTED LIVING,2103837870,1000086998
07.03.2024,DSO,ZAPCARBON LIMITED,"6,240.00",R & M OVERHEADS,CONSULTANTS SERVICES,5902625786,1000090847
31.03.2024,Housing,ARMINA LTD,"6,238.21",DISREPAIR,BUILDING R&M,2103849317,3000002121
13.03.2024,Children and Adults,WHIPPERSNAPPERS CIC,"6,237.00",SHORT BREAKS INNV FUND,EXTERNAL AGENCIES AND BODIES,5902627127,1000062256
11.03.2024,Children and Adults,CHOICE SUPPORT,"6,222.16",LD LTS 18-64,SUPPORTED LIVING,2103837858,1104183
11.03.2024,Children and Adults,LONDON RESIDENTIAL HEALTHCARE LTD,"6,221.49",PHY LTS 18-64,NURSING PLACEMENTS FEES,2103837916,1000030895
11.03.2024,Children and Adults,KENT COUNTY COUNCIL - LASER,"6,200.08",THOMAS CALTON CENTRE,GAS,5902626362,1000012926
11.03.2024,Children and Adults,HOAMA GROUP LTD,"6,200.00",PHY LTS 18-64,NURSING PLACEMENTS FEES,2103838023,1000090553
28.03.2024,Children and Adults,RAINBOW FOSTERING SERVICES LTD,"6,200.00",FRIENDS & FAMILY FOSTERING,EXTERNAL AGENCIES AND BODIES,2103846656,1000076620
28.03.2024,Children and Adults,FIVE RIVERS CHILD CARE LTD,"6,200.00",FRIENDS & FAMILY FOSTERING,EXTERNAL AGENCIES AND BODIES,2103846688,1000018792
22.03.2024,Housing,LHG THORNTON HEATH LTD,"6,200.00",NIGHTLY TA (NSC),EXTERNAL AGENCIES AND BODIES,5902628707,1000086942
28.03.2024,Finance,INVUSE LIMITED,"6,192.00",CAPITAL PS (STRAT SERV),ICT ACQUISITION,5902630155,1000087372
04.03.2024,Children and Adults,LIKA FAMILY FOSTERING,"6,181.14",FRIENDS & FAMILY FOSTERING,EXTERNAL AGENCIES AND BODIES,2103834126,1000080099
17.03.2024,Children and Adults,SOUTH LONDON & MAUDSLEY HOSPITAL,"6,172.32",ADOPTION SUPP FUND 3,EXTERNAL AGENCIES AND BODIES,5902627047,1000013096
12.03.2024,Corporate,RIVERSIDE PRIMARY SCHOOL,"6,160.59",EDUCATION VAT INPUTS,VAT CONTROL ACCOUNT,2103838559,5001000056
26.03.2024,Housing,LIVING ACCOMMODATION LTD,"6,160.00",NIGHTLY TA (NSC),EXTERNAL AGENCIES AND BODIES,5902629376,1000063985
08.03.2024,Housing,ARJ CONSTRUCTION LTD,"6,159.55",CAPITAL PS (HRA),CONSTRUCTION MAIN CONTRACT,2103837033,3000002232
